{"text_format":"1","workbook":"xlsx","n_sheets":2,"sheets":["Расчет","Медикаменты"],"not_rendered":{"charts":0,"images":0,"macros":1,"external_links":0,"defined_names":5,"comments":0,"pivot_tables":0},"unopened":[],"bounds":{"document_bytes":16777216,"sheet_cells":100000,"rows_first":2000,"rows_last":500,"rows_between":2000,"halvings":0,"cell_chars":16384,"cell_head_chars":4096},"cells_cut":0,"cells_raw":0,"read":"whole","date_system":"1900"}

{"sheet":"Расчет","index":0,"n_rows":69,"n_cols":39,"rows_kept":69,"cut":false,"hidden":false,"merged":[[0,37,0,38],[1,37,1,38]]}
[null,null,null,null,null,null,null,null,null,null,null,null,null,null,null,null,null,null,{"$f":"IF((Опер<>\"Заказано у поставщика\")*(Опер<>\"Получено от поставщика\"),,IFERROR(INDEX(Договоры_tb[Поставщик],SMALL(IF((Договоры_tb[Наименование]=Наим)*Договоры_tb[Остаток],ROW(Договоры_tb[Наименование])-ROW(Договоры_tb[[#Headers],[Наименование]])),ROW())),))","v":"ООО \"Восток-Интертрейд\" (дог. №ЗК-2017-04-03-15) Внести данные"},null,"Расчет",null,"по расходованию медикаментов в дневном стационаре ОГАУЗ ИГДП №2 ",{"$f":"--CONCATENATE(#REF!,\" .\",#REF!)","v":{"$error":"#REF!"}},null,null,null,null,null,null,null,null,null,null,null,"Отчет",null,"по расходованию медикаментов в дневном стационаре ОГАУЗ ИГДП №2 "]
[null,null,null,"Формирование отчета по медикаментам",null,null,{"$f":"IF(ISERROR(VLOOKUP(\"ДОСТАВКА ПРОСРОЧЕНА!\",Главная_tb[Информация],1,)=\"ДОСТАВКА ПросроченА!\"),\"\",\"Есть заказы с просроченной доставкой!\")","v":""},null,null,null,null,null,null,null,null,null,null,null,{"$f":"IF((Опер<>\"Заказано у поставщика\")*(Опер<>\"Получено от поставщика\"),,IFERROR(INDEX(Договоры_tb[Поставщик],SMALL(IF((Договоры_tb[Наименование]=Наим)*Договоры_tb[Остаток],ROW(Договоры_tb[Наименование])-ROW(Договоры_tb[[#Headers],[Наименование]])),ROW())),))","v":0},null,null,null,"по расходованию спирта и ИМН  в ОГАУЗ «ИГДП №2»",{"$f":"EOMONTH(X1,0)","v":{"$error":"#REF!"}},null,null,null,null,null,null,null,null,null,null,null,null,null,"по расходованию спирта и ИМН  в ОГАУЗ «ИГДП №2»"]
[null,null,null,"Формирование отчета по получателям",null,null,null,null,null,null,null,null,null,null,null,null,null,null,{"$f":"IF((Опер<>\"Заказано у поставщика\")*(Опер<>\"Получено от поставщика\"),,IFERROR(INDEX(Договоры_tb[Поставщик],SMALL(IF((Договоры_tb[Наименование]=Наим)*Договоры_tb[Остаток],ROW(Договоры_tb[Наименование])-ROW(Договоры_tb[[#Headers],[Наименование]])),ROW())),))","v":0},null,null,null,null,null,null,null,null,null,null,null,null,null,null,null,null,null,null,0]
[null,null,null,"При выборе медикаментов - отображение отсутсвия медикмаентов у поставщиков",null,null,null,null,null,null,null,null,null,null,null,null,null,null,{"$f":"IF((Опер<>\"Заказано у поставщика\")*(Опер<>\"Получено от поставщика\"),,IFERROR(INDEX(Договоры_tb[Поставщик],SMALL(IF((Договоры_tb[Наименование]=Наим)*Договоры_tb[Остаток],ROW(Договоры_tb[Наименование])-ROW(Договоры_tb[[#Headers],[Наименование]])),ROW())),))","v":0}]
[null,null,null,null,null,null,null,null,null,null,null,null,null,null,null,null,null,null,{"$f":"IF((Опер<>\"Заказано у поставщика\")*(Опер<>\"Получено от поставщика\"),,IFERROR(INDEX(Договоры_tb[Поставщик],SMALL(IF((Договоры_tb[Наименование]=Наим)*Договоры_tb[Остаток],ROW(Договоры_tb[Наименование])-ROW(Договоры_tb[[#Headers],[Наименование]])),ROW())),))","v":0}]
[null,null,null,null,null,null,null,null,null,null,null,null,null,null,null,null,null,null,{"$f":"IF((Опер<>\"Заказано у поставщика\")*(Опер<>\"Получено от поставщика\"),,IFERROR(INDEX(Договоры_tb[Поставщик],SMALL(IF((Договоры_tb[Наименование]=Наим)*Договоры_tb[Остаток],ROW(Договоры_tb[Наименование])-ROW(Договоры_tb[[#Headers],[Наименование]])),ROW())),))","v":0}]
[null,null,null,null,null,null,null,null,null,null,null,null,null,null,null,null,null,null,{"$f":"IF((Опер<>\"Заказано у поставщика\")*(Опер<>\"Получено от поставщика\"),,IFERROR(INDEX(Договоры_tb[Поставщик],SMALL(IF((Договоры_tb[Наименование]=Наим)*Договоры_tb[Остаток],ROW(Договоры_tb[Наименование])-ROW(Договоры_tb[[#Headers],[Наименование]])),ROW())),))","v":0}]
[null,null,null,null,null,null,null,null,null,null,null,null,null,null,null,null,null,null,{"$f":"IF((Опер<>\"Заказано у поставщика\")*(Опер<>\"Получено от поставщика\"),,IFERROR(INDEX(Договоры_tb[Поставщик],SMALL(IF((Договоры_tb[Наименование]=Наим)*Договоры_tb[Остаток],ROW(Договоры_tb[Наименование])-ROW(Договоры_tb[[#Headers],[Наименование]])),ROW())),))","v":0}]
[null,null,"Дата","Наименование","Операция","ДС","Выбор поставщика","Информация","Заказано","Дата поставки","Остаток по договору","Остаток на складе","Приход","Расход","Остаток","Кому выдано",null,null,{"$f":"IF((Опер<>\"Заказано у поставщика\")*(Опер<>\"Получено от поставщика\"),,IFERROR(INDEX(Договоры_tb[Поставщик],SMALL(IF((Договоры_tb[Наименование]=Наим)*Договоры_tb[Остаток],ROW(Договоры_tb[Наименование])-ROW(Договоры_tb[[#Headers],[Наименование]])),ROW())),))","v":0},null,null,"Столбец2","Наименование","Единицы","Столбец1","Дата остатка","Начальный остаток","Остаток на отч. период","Приход за период","Расход за период","Наличие за период","Движение за период","Приход общий","Расход общий","Наличие общее",null,"№","Отчет","Наименование"]
[null,null,"2018-06-10","Актовегин (р-р, 5 мл., №5)","Начальный остаток",null,0,{"$f":"IF(Главная_tb[[#This Row],[Операция]]=\"Заказано у поставщика\",IF(Главная_tb[[#This Row],[Дата поставки]]=\"\",IF(Главная_tb[[#This Row],[Выбор поставщика]]=\"\",\"\",\"\"),IF(AND(Главная_tb[[#This Row],[Дата поставки]]<>0,Главная_tb[[#This Row],[Дата поставки]]<TODAY()),\"ДОСТАВКА ПРОСРОЧЕНА!\",\"В ПУТИ\")),IF(AND(Главная_tb[[#This Row],[Операция]]=\"Операции со складом\",Главная_tb[[#This Row],[Остаток на складе]]=0),\"НЕТ НА СКЛАДЕ!\",\"\"))","v":""},null,null,{"$f":"IF(AND(Главная_tb[[#This Row],[Операция]]=\"Заказано у поставщика\",Главная_tb[[#This Row],[Выбор поставщика]]<>\"\"),SUMIFS(Договоры_tb[Остаток],Договоры_tb[Наименование],Главная_tb[[#This Row],[Наименование]],Договоры_tb[Поставщик],Главная_tb[[#This Row],[Выбор поставщика]]),\"\")","v":""},{"$f":"IF(L8=\"\",0,IF(ISERROR(VLOOKUP(Главная_tb[[#This Row],[Наименование]],$D$9:D9,1,)),0,LOOKUP(,-1/(Главная_tb[[#This Row],[Наименование]]=$D$9:D9),$O$9:O9)))","v":0},150,null,{"$f":"Главная_tb[Остаток на складе]+IF(Главная_tb[[#This Row],[Операция]]=\"Заказано у поставщика\",0,Главная_tb[Приход])-Главная_tb[Расход]","v":150},null,null,null,{"$f":"IF((Опер<>\"Заказано у поставщика\")*(Опер<>\"Получено от поставщика\"),,IFERROR(INDEX(Договоры_tb[Поставщик],SMALL(IF((Договоры_tb[Наименование]=Наим)*Договоры_tb[Остаток],ROW(Договоры_tb[Наименование])-ROW(Договоры_tb[[#Headers],[Наименование]])),ROW())),))","v":0},null,null,null,"Адреналин гидрохлорид (р-р, 0,1%, 1 мл.)","уп.",null,{"$f":"IFERROR(INDEX(Главная_tb[[Дата]:[Наименование]],MATCH(Медикаменты[[#This Row],[Наименование]],Главная_tb[Наименование],),1),\"\")","v":"2018-07-16"},{"$f":"SUMIFS(Главная_tb[Приход],Главная_tb[Наименование],Медикаменты[[#This Row],[Наименование]],Главная_tb[Операция],\"Начальный остаток\")","v":0},{"$f":"IFERROR(LOOKUP(,-1/($W10=Главная_tb[Наименование])/(Главная_tb[Дата]<$X$1),Главная_tb[Остаток]),0)+IF(Медикаменты[[#This Row],[Дата остатка]]<$X$1,Медикаменты[[#This Row],[Начальный остаток]],0)","v":{"$error":"#REF!"}},{"$f":"IF(W10=\"\",\"\",SUMPRODUCT((Главная_tb[Дата]>=$X$1)*(Главная_tb[Дата]<=$X$2)*(Главная_tb[Наименование]=$W10)*(Главная_tb[Операция]=\"Операции со складом\"),Главная_tb[Приход]))","v":{"$error":"#REF!"}},{"$f":"IF(W10=\"\",\"\",SUMPRODUCT((Главная_tb[Дата]>=$X$1)*(Главная_tb[Дата]<=$X$2)*(Главная_tb[Наименование]=$W10)*(Главная_tb[Операция]=\"Операции со складом\"),Главная_tb[Расход]))","v":{"$error":"#REF!"}},{"$f":"IFERROR(Медикаменты[[#This Row],[Начальный остаток]]+Медикаменты[[#This Row],[Приход за период]]-Медикаменты[[#This Row],[Расход за период]],\"\")","v":""},{"$f":"IFERROR(Медикаменты[[#This Row],[Остаток на отч. период]]+Медикаменты[[#This Row],[Приход за период]]+Медикаменты[[#This Row],[Расход за период]]+Медикаменты[[#This Row],[Наличие за период]],\"\")","v":""},{"$f":"IFERROR(SUMIFS(Главная_tb[Приход],Главная_tb[Наименование],Медикаменты[[#This Row],[Наименование]],Главная_tb[Операция],\"Получено от поставщика\"),0)","v":0},{"$f":"IFERROR(SUMIFS(Главная_tb[Расход],Главная_tb[Наименование],Медикаменты[[#This Row],[Наименование]],Главная_tb[Операция],\"Операции со складом\"),0)","v":0},{"$f":"IF(Медикаменты[[#This Row],[Начальный остаток]]=\"\",0,Медикаменты[[#This Row],[Начальный остаток]])+Медикаменты[[#This Row],[Приход общий]]-Медикаменты[[#This Row],[Расход общий]]","v":0},null,{"$f":"IF(IFERROR(IF(SEARCH(#REF!,AL10),\"!\",\"\"),\"\")=\"\",0,MAX($AK$9:AK9)+1)","v":0},"Дневной стационар","Актовегин (р-р, 5 мл., №5)"]
[null,null,"2018-06-11","Актовегин (р-р, 5 мл., №5)","Операции со складом",null,0,{"$f":"IF(Главная_tb[[#This Row],[Операция]]=\"Заказано у поставщика\",IF(Главная_tb[[#This Row],[Дата поставки]]=\"\",IF(Главная_tb[[#This Row],[Выбор поставщика]]=\"\",\"\",\"\"),IF(AND(Главная_tb[[#This Row],[Дата поставки]]<>0,Главная_tb[[#This Row],[Дата поставки]]<TODAY()),\"ДОСТАВКА ПРОСРОЧЕНА!\",\"В ПУТИ\")),IF(AND(Главная_tb[[#This Row],[Операция]]=\"Операции со складом\",Главная_tb[[#This Row],[Остаток на складе]]=0),\"НЕТ НА СКЛАДЕ!\",\"\"))","v":""},null,null,{"$f":"IF(AND(Главная_tb[[#This Row],[Операция]]=\"Заказано у поставщика\",Главная_tb[[#This Row],[Выбор поставщика]]<>\"\"),SUMIFS(Договоры_tb[Остаток],Договоры_tb[Наименование],Главная_tb[[#This Row],[Наименование]],Договоры_tb[Поставщик],Главная_tb[[#This Row],[Выбор поставщика]]),\"\")","v":""},{"$f":"IF(L9=\"\",0,IF(ISERROR(VLOOKUP(Главная_tb[[#This Row],[Наименование]],$D$9:D10,1,)),0,LOOKUP(,-1/(Главная_tb[[#This Row],[Наименование]]=$D$9:D10),$O$9:O10)))","v":150},null,150,{"$f":"Главная_tb[Остаток на складе]+IF(Главная_tb[[#This Row],[Операция]]=\"Заказано у поставщика\",0,Главная_tb[Приход])-Главная_tb[Расход]","v":0},null,null,null,{"$f":"IF((Опер<>\"Заказано у поставщика\")*(Опер<>\"Получено от поставщика\"),,IFERROR(INDEX(Договоры_tb[Поставщик],SMALL(IF((Договоры_tb[Наименование]=Наим)*Договоры_tb[Остаток],ROW(Договоры_tb[Наименование])-ROW(Договоры_tb[[#Headers],[Наименование]])),ROW())),))","v":0},null,null,null,"Азитромицин (таб., 125 мг, №6)","уп.",null,{"$f":"IFERROR(INDEX(Главная_tb[[Дата]:[Наименование]],MATCH(Медикаменты[[#This Row],[Наименование]],Главная_tb[Наименование],),1),\"\")","v":"2018-07-16"},{"$f":"SUMIFS(Главная_tb[Приход],Главная_tb[Наименование],Медикаменты[[#This Row],[Наименование]],Главная_tb[Операция],\"Начальный остаток\")","v":0},{"$f":"IFERROR(LOOKUP(,-1/($W11=Главная_tb[Наименование])/(Главная_tb[Дата]<$X$1),Главная_tb[Остаток]),0)+IF(Медикаменты[[#This Row],[Дата остатка]]<$X$1,Медикаменты[[#This Row],[Начальный остаток]],0)","v":{"$error":"#REF!"}},{"$f":"IF(W11=\"\",\"\",SUMPRODUCT((Главная_tb[Дата]>=$X$1)*(Главная_tb[Дата]<=$X$2)*(Главная_tb[Наименование]=$W11)*(Главная_tb[Операция]=\"Операции со складом\"),Главная_tb[Приход]))","v":{"$error":"#REF!"}},{"$f":"IF(W11=\"\",\"\",SUMPRODUCT((Главная_tb[Дата]>=$X$1)*(Главная_tb[Дата]<=$X$2)*(Главная_tb[Наименование]=$W11)*(Главная_tb[Операция]=\"Операции со складом\"),Главная_tb[Расход]))","v":{"$error":"#REF!"}},{"$f":"IFERROR(Медикаменты[[#This Row],[Начальный остаток]]+Медикаменты[[#This Row],[Приход за период]]-Медикаменты[[#This Row],[Расход за период]],\"\")","v":""},{"$f":"IFERROR(Медикаменты[[#This Row],[Остаток на отч. период]]+Медикаменты[[#This Row],[Приход за период]]+Медикаменты[[#This Row],[Расход за период]]+Медикаменты[[#This Row],[Наличие за период]],\"\")","v":""},{"$f":"IFERROR(SUMIFS(Главная_tb[Приход],Главная_tb[Наименование],Медикаменты[[#This Row],[Наименование]],Главная_tb[Операция],\"Получено от поставщика\"),0)","v":0},{"$f":"IFERROR(SUMIFS(Главная_tb[Расход],Главная_tb[Наименование],Медикаменты[[#This Row],[Наименование]],Главная_tb[Операция],\"Операции со складом\"),0)","v":0},{"$f":"IF(Медикаменты[[#This Row],[Начальный остаток]]=\"\",0,Медикаменты[[#This Row],[Начальный остаток]])+Медикаменты[[#This Row],[Приход общий]]-Медикаменты[[#This Row],[Расход общий]]","v":0},null,{"$f":"IF(IFERROR(IF(SEARCH(#REF!,AL11),\"!\",\"\"),\"\")=\"\",0,MAX($AK$9:AK10)+1)","v":0},"Дневной стационар","Валериана (20 мг., №50)"]
[null,null,"2018-07-11","Актовегин (р-р, 5 мл., №5)","Заказано у поставщика",null,"ООО \"Восток-Интертрейд\" (дог. №ЗК-2017-04-03-15) Внести данные",{"$f":"IF(Главная_tb[[#This Row],[Операция]]=\"Заказано у поставщика\",IF(Главная_tb[[#This Row],[Дата поставки]]=\"\",IF(Главная_tb[[#This Row],[Выбор поставщика]]=\"\",\"\",\"\"),IF(AND(Главная_tb[[#This Row],[Дата поставки]]<>0,Главная_tb[[#This Row],[Дата поставки]]<TODAY()),\"ДОСТАВКА ПРОСРОЧЕНА!\",\"В ПУТИ\")),IF(AND(Главная_tb[[#This Row],[Операция]]=\"Операции со складом\",Главная_tb[[#This Row],[Остаток на складе]]=0),\"НЕТ НА СКЛАДЕ!\",\"\"))","v":""},20,null,{"$f":"IF(AND(Главная_tb[[#This Row],[Операция]]=\"Заказано у поставщика\",Главная_tb[[#This Row],[Выбор поставщика]]<>\"\"),SUMIFS(Договоры_tb[Остаток],Договоры_tb[Наименование],Главная_tb[[#This Row],[Наименование]],Договоры_tb[Поставщик],Главная_tb[[#This Row],[Выбор поставщика]]),\"\")","v":2},{"$f":"IF(L10=\"\",0,IF(ISERROR(VLOOKUP(Главная_tb[[#This Row],[Наименование]],$D$9:D11,1,)),0,LOOKUP(,-1/(Главная_tb[[#This Row],[Наименование]]=$D$9:D11),$O$9:O11)))","v":0},null,null,{"$f":"Главная_tb[Остаток на складе]+IF(Главная_tb[[#This Row],[Операция]]=\"Заказано у поставщика\",0,Главная_tb[Приход])-Главная_tb[Расход]","v":0},null,null,null,{"$f":"IF((Опер<>\"Заказано у поставщика\")*(Опер<>\"Получено от поставщика\"),,IFERROR(INDEX(Договоры_tb[Поставщик],SMALL(IF((Договоры_tb[Наименование]=Наим)*Договоры_tb[Остаток],ROW(Договоры_tb[Наименование])-ROW(Договоры_tb[[#Headers],[Наименование]])),ROW())),))","v":0},null,null,null,null,null,null,null,null,null,null,null,null,null,null,null,null,null,{"$f":"IF(IFERROR(IF(SEARCH(#REF!,AL12),\"!\",\"\"),\"\")=\"\",0,MAX($AK$9:AK11)+1)","v":0},"Дневной стационар","Винпоцетин (таб., 5 мг., №10)"]
[null,null,"2018-07-04",null,null,"Да",null,{"$f":"IF(Главная_tb[[#This Row],[Операция]]=\"Заказано у поставщика\",IF(Главная_tb[[#This Row],[Дата поставки]]=\"\",IF(Главная_tb[[#This Row],[Выбор поставщика]]=\"\",\"\",\"\"),IF(AND(Главная_tb[[#This Row],[Дата поставки]]<>0,Главная_tb[[#This Row],[Дата поставки]]<TODAY()),\"ДОСТАВКА ПРОСРОЧЕНА!\",\"В ПУТИ\")),IF(AND(Главная_tb[[#This Row],[Операция]]=\"Операции со складом\",Главная_tb[[#This Row],[Остаток на складе]]=0),\"НЕТ НА СКЛАДЕ!\",\"\"))","v":""},null,null,{"$f":"IF(AND(Главная_tb[[#This Row],[Операция]]=\"Заказано у поставщика\",Главная_tb[[#This Row],[Выбор поставщика]]<>\"\"),SUMIFS(Договоры_tb[Остаток],Договоры_tb[Наименование],Главная_tb[[#This Row],[Наименование]],Договоры_tb[Поставщик],Главная_tb[[#This Row],[Выбор поставщика]]),\"\")","v":""},{"$f":"IF(L11=\"\",0,IF(ISERROR(VLOOKUP(Главная_tb[[#This Row],[Наименование]],$D$9:D12,1,)),0,LOOKUP(,-1/(Главная_tb[[#This Row],[Наименование]]=$D$9:D12),$O$9:O12)))","v":0},null,null,{"$f":"Главная_tb[Остаток на складе]+IF(Главная_tb[[#This Row],[Операция]]=\"Заказано у поставщика\",0,Главная_tb[Приход])-Главная_tb[Расход]","v":0},null,null,null,{"$f":"IF((Опер<>\"Заказано у поставщика\")*(Опер<>\"Получено от поставщика\"),,IFERROR(INDEX(Договоры_tb[Поставщик],SMALL(IF((Договоры_tb[Наименование]=Наим)*Договоры_tb[Остаток],ROW(Договоры_tb[Наименование])-ROW(Договоры_tb[[#Headers],[Наименование]])),ROW())),))","v":0},null,null,null,null,null,null,null,null,null,null,null,null,null,null,null,null,null,{"$f":"IF(IFERROR(IF(SEARCH(#REF!,AL13),\"!\",\"\"),\"\")=\"\",0,MAX($AK$9:AK12)+1)","v":0},"Дневной стационар","Винпоцетин-АКОС (амп., 2 мл., №10)"]
[null,null,"2018-06-26",null,null,"Да",null,{"$f":"IF(Главная_tb[[#This Row],[Операция]]=\"Заказано у поставщика\",IF(Главная_tb[[#This Row],[Дата поставки]]=\"\",IF(Главная_tb[[#This Row],[Выбор поставщика]]=\"\",\"\",\"\"),IF(AND(Главная_tb[[#This Row],[Дата поставки]]<>0,Главная_tb[[#This Row],[Дата поставки]]<TODAY()),\"ДОСТАВКА ПРОСРОЧЕНА!\",\"В ПУТИ\")),IF(AND(Главная_tb[[#This Row],[Операция]]=\"Операции со складом\",Главная_tb[[#This Row],[Остаток на складе]]=0),\"НЕТ НА СКЛАДЕ!\",\"\"))","v":""},null,null,{"$f":"IF(AND(Главная_tb[[#This Row],[Операция]]=\"Заказано у поставщика\",Главная_tb[[#This Row],[Выбор поставщика]]<>\"\"),SUMIFS(Договоры_tb[Остаток],Договоры_tb[Наименование],Главная_tb[[#This Row],[Наименование]],Договоры_tb[Поставщик],Главная_tb[[#This Row],[Выбор поставщика]]),\"\")","v":""},{"$f":"IF(L12=\"\",0,IF(ISERROR(VLOOKUP(Главная_tb[[#This Row],[Наименование]],$D$9:D13,1,)),0,LOOKUP(,-1/(Главная_tb[[#This Row],[Наименование]]=$D$9:D13),$O$9:O13)))","v":0},null,null,{"$f":"Главная_tb[Остаток на складе]+IF(Главная_tb[[#This Row],[Операция]]=\"Заказано у поставщика\",0,Главная_tb[Приход])-Главная_tb[Расход]","v":0},null,null,null,{"$f":"IF((Опер<>\"Заказано у поставщика\")*(Опер<>\"Получено от поставщика\"),,IFERROR(INDEX(Договоры_tb[Поставщик],SMALL(IF((Договоры_tb[Наименование]=Наим)*Договоры_tb[Остаток],ROW(Договоры_tb[Наименование])-ROW(Договоры_tb[[#Headers],[Наименование]])),ROW())),))","v":0},null,null,null,null,null,null,null,null,null,null,null,null,null,null,null,null,null,{"$f":"IF(IFERROR(IF(SEARCH(#REF!,AL14),\"!\",\"\"),\"\")=\"\",0,MAX($AK$9:AK13)+1)","v":0},"Дневной стационар","Гипотиазид (таб., 25 мг., №20)"]
[null,null,"2018-07-16","Азитромицин (таб., 125 мг, №6)","Начальный остаток","Да",null,{"$f":"IF(Главная_tb[[#This Row],[Операция]]=\"Заказано у поставщика\",IF(Главная_tb[[#This Row],[Дата поставки]]=\"\",IF(Главная_tb[[#This Row],[Выбор поставщика]]=\"\",\"\",\"\"),IF(AND(Главная_tb[[#This Row],[Дата поставки]]<>0,Главная_tb[[#This Row],[Дата поставки]]<TODAY()),\"ДОСТАВКА ПРОСРОЧЕНА!\",\"В ПУТИ\")),IF(AND(Главная_tb[[#This Row],[Операция]]=\"Операции со складом\",Главная_tb[[#This Row],[Остаток на складе]]=0),\"НЕТ НА СКЛАДЕ!\",\"\"))","v":""},null,null,{"$f":"IF(AND(Главная_tb[[#This Row],[Операция]]=\"Заказано у поставщика\",Главная_tb[[#This Row],[Выбор поставщика]]<>\"\"),SUMIFS(Договоры_tb[Остаток],Договоры_tb[Наименование],Главная_tb[[#This Row],[Наименование]],Договоры_tb[Поставщик],Главная_tb[[#This Row],[Выбор поставщика]]),\"\")","v":""},{"$f":"IF(L13=\"\",0,IF(ISERROR(VLOOKUP(Главная_tb[[#This Row],[Наименование]],$D$9:D14,1,)),0,LOOKUP(,-1/(Главная_tb[[#This Row],[Наименование]]=$D$9:D14),$O$9:O14)))","v":0},null,null,{"$f":"Главная_tb[Остаток на складе]+IF(Главная_tb[[#This Row],[Операция]]=\"Заказано у поставщика\",0,Главная_tb[Приход])-Главная_tb[Расход]","v":0},null,null,null,{"$f":"IF((Опер<>\"Заказано у поставщика\")*(Опер<>\"Получено от поставщика\"),,IFERROR(INDEX(Договоры_tb[Поставщик],SMALL(IF((Договоры_tb[Наименование]=Наим)*Договоры_tb[Остаток],ROW(Договоры_tb[Наименование])-ROW(Договоры_tb[[#Headers],[Наименование]])),ROW())),))","v":0},null,null,null,null,null,null,null,null,null,null,null,null,null,null,null,null,null,{"$f":"IF(IFERROR(IF(SEARCH(#REF!,AL15),\"!\",\"\"),\"\")=\"\",0,MAX($AK$9:AK14)+1)","v":0},"Дневной стационар","Глицин (таб., 100 мг., №50)"]
[null,null,"2018-07-16",null,null,"Нет",null,{"$f":"IF(Главная_tb[[#This Row],[Операция]]=\"Заказано у поставщика\",IF(Главная_tb[[#This Row],[Дата поставки]]=\"\",IF(Главная_tb[[#This Row],[Выбор поставщика]]=\"\",\"\",\"\"),IF(AND(Главная_tb[[#This Row],[Дата поставки]]<>0,Главная_tb[[#This Row],[Дата поставки]]<TODAY()),\"ДОСТАВКА ПРОСРОЧЕНА!\",\"В ПУТИ\")),IF(AND(Главная_tb[[#This Row],[Операция]]=\"Операции со складом\",Главная_tb[[#This Row],[Остаток на складе]]=0),\"НЕТ НА СКЛАДЕ!\",\"\"))","v":""},null,null,{"$f":"IF(AND(Главная_tb[[#This Row],[Операция]]=\"Заказано у поставщика\",Главная_tb[[#This Row],[Выбор поставщика]]<>\"\"),SUMIFS(Договоры_tb[Остаток],Договоры_tb[Наименование],Главная_tb[[#This Row],[Наименование]],Договоры_tb[Поставщик],Главная_tb[[#This Row],[Выбор поставщика]]),\"\")","v":""},{"$f":"IF(L14=\"\",0,IF(ISERROR(VLOOKUP(Главная_tb[[#This Row],[Наименование]],$D$9:D15,1,)),0,LOOKUP(,-1/(Главная_tb[[#This Row],[Наименование]]=$D$9:D15),$O$9:O15)))","v":0},null,null,{"$f":"Главная_tb[Остаток на складе]+IF(Главная_tb[[#This Row],[Операция]]=\"Заказано у поставщика\",0,Главная_tb[Приход])-Главная_tb[Расход]","v":0},null,null,null,{"$f":"IF((Опер<>\"Заказано у поставщика\")*(Опер<>\"Получено от поставщика\"),,IFERROR(INDEX(Договоры_tb[Поставщик],SMALL(IF((Договоры_tb[Наименование]=Наим)*Договоры_tb[Остаток],ROW(Договоры_tb[Наименование])-ROW(Договоры_tb[[#Headers],[Наименование]])),ROW())),))","v":0},null,null,null,null,null,null,null,null,null,null,null,null,null,null,null,null,null,{"$f":"IF(IFERROR(IF(SEARCH(#REF!,AL16),\"!\",\"\"),\"\")=\"\",0,MAX($AK$9:AK15)+1)","v":0},"Дневной стационар","Диклофенак (75 мг., №10)"]
[null,null,"2018-07-17",null,null,"Нет",null,{"$f":"IF(Главная_tb[[#This Row],[Операция]]=\"Заказано у поставщика\",IF(Главная_tb[[#This Row],[Дата поставки]]=\"\",IF(Главная_tb[[#This Row],[Выбор поставщика]]=\"\",\"\",\"\"),IF(AND(Главная_tb[[#This Row],[Дата поставки]]<>0,Главная_tb[[#This Row],[Дата поставки]]<TODAY()),\"ДОСТАВКА ПРОСРОЧЕНА!\",\"В ПУТИ\")),IF(AND(Главная_tb[[#This Row],[Операция]]=\"Операции со складом\",Главная_tb[[#This Row],[Остаток на складе]]=0),\"НЕТ НА СКЛАДЕ!\",\"\"))","v":""},null,null,{"$f":"IF(AND(Главная_tb[[#This Row],[Операция]]=\"Заказано у поставщика\",Главная_tb[[#This Row],[Выбор поставщика]]<>\"\"),SUMIFS(Договоры_tb[Остаток],Договоры_tb[Наименование],Главная_tb[[#This Row],[Наименование]],Договоры_tb[Поставщик],Главная_tb[[#This Row],[Выбор поставщика]]),\"\")","v":""},{"$f":"IF(L15=\"\",0,IF(ISERROR(VLOOKUP(Главная_tb[[#This Row],[Наименование]],$D$9:D16,1,)),0,LOOKUP(,-1/(Главная_tb[[#This Row],[Наименование]]=$D$9:D16),$O$9:O16)))","v":0},null,null,{"$f":"Главная_tb[Остаток на складе]+IF(Главная_tb[[#This Row],[Операция]]=\"Заказано у поставщика\",0,Главная_tb[Приход])-Главная_tb[Расход]","v":0},null,null,null,{"$f":"IF((Опер<>\"Заказано у поставщика\")*(Опер<>\"Получено от поставщика\"),,IFERROR(INDEX(Договоры_tb[Поставщик],SMALL(IF((Договоры_tb[Наименование]=Наим)*Договоры_tb[Остаток],ROW(Договоры_tb[Наименование])-ROW(Договоры_tb[[#Headers],[Наименование]])),ROW())),))","v":0},null,null,null,null,null,null,null,null,null,null,null,null,null,null,null,null,null,{"$f":"IF(IFERROR(IF(SEARCH(#REF!,AL17),\"!\",\"\"),\"\")=\"\",0,MAX($AK$9:AK16)+1)","v":0},"Дневной стационар","Дюфастон (таб., 10 мг., №20)"]
[null,null,"2018-07-17",null,null,"Да",null,{"$f":"IF(Главная_tb[[#This Row],[Операция]]=\"Заказано у поставщика\",IF(Главная_tb[[#This Row],[Дата поставки]]=\"\",IF(Главная_tb[[#This Row],[Выбор поставщика]]=\"\",\"\",\"\"),IF(AND(Главная_tb[[#This Row],[Дата поставки]]<>0,Главная_tb[[#This Row],[Дата поставки]]<TODAY()),\"ДОСТАВКА ПРОСРОЧЕНА!\",\"В ПУТИ\")),IF(AND(Главная_tb[[#This Row],[Операция]]=\"Операции со складом\",Главная_tb[[#This Row],[Остаток на складе]]=0),\"НЕТ НА СКЛАДЕ!\",\"\"))","v":""},null,null,{"$f":"IF(AND(Главная_tb[[#This Row],[Операция]]=\"Заказано у поставщика\",Главная_tb[[#This Row],[Выбор поставщика]]<>\"\"),SUMIFS(Договоры_tb[Остаток],Договоры_tb[Наименование],Главная_tb[[#This Row],[Наименование]],Договоры_tb[Поставщик],Главная_tb[[#This Row],[Выбор поставщика]]),\"\")","v":""},{"$f":"IF(L16=\"\",0,IF(ISERROR(VLOOKUP(Главная_tb[[#This Row],[Наименование]],$D$9:D17,1,)),0,LOOKUP(,-1/(Главная_tb[[#This Row],[Наименование]]=$D$9:D17),$O$9:O17)))","v":0},null,null,{"$f":"Главная_tb[Остаток на складе]+IF(Главная_tb[[#This Row],[Операция]]=\"Заказано у поставщика\",0,Главная_tb[Приход])-Главная_tb[Расход]","v":0},null,null,null,{"$f":"IF((Опер<>\"Заказано у поставщика\")*(Опер<>\"Получено от поставщика\"),,IFERROR(INDEX(Договоры_tb[Поставщик],SMALL(IF((Договоры_tb[Наименование]=Наим)*Договоры_tb[Остаток],ROW(Договоры_tb[Наименование])-ROW(Договоры_tb[[#Headers],[Наименование]])),ROW())),))","v":0},null,null,null,null,null,null,null,null,null,null,null,null,null,null,null,null,null,{"$f":"IF(IFERROR(IF(SEARCH(#REF!,AL18),\"!\",\"\"),\"\")=\"\",0,MAX($AK$9:AK17)+1)","v":0},"Дневной стационар","Кавинтон (амп., 10 мг., 2,0, №10)"]
[null,null,"2018-07-16","Адреналин гидрохлорид (р-р, 0,1%, 1 мл.)",null,"Да",null,{"$f":"IF(Главная_tb[[#This Row],[Операция]]=\"Заказано у поставщика\",IF(Главная_tb[[#This Row],[Дата поставки]]=\"\",IF(Главная_tb[[#This Row],[Выбор поставщика]]=\"\",\"\",\"\"),IF(AND(Главная_tb[[#This Row],[Дата поставки]]<>0,Главная_tb[[#This Row],[Дата поставки]]<TODAY()),\"ДОСТАВКА ПРОСРОЧЕНА!\",\"В ПУТИ\")),IF(AND(Главная_tb[[#This Row],[Операция]]=\"Операции со складом\",Главная_tb[[#This Row],[Остаток на складе]]=0),\"НЕТ НА СКЛАДЕ!\",\"\"))","v":""},null,null,{"$f":"IF(AND(Главная_tb[[#This Row],[Операция]]=\"Заказано у поставщика\",Главная_tb[[#This Row],[Выбор поставщика]]<>\"\"),SUMIFS(Договоры_tb[Остаток],Договоры_tb[Наименование],Главная_tb[[#This Row],[Наименование]],Договоры_tb[Поставщик],Главная_tb[[#This Row],[Выбор поставщика]]),\"\")","v":""},{"$f":"IF(L17=\"\",0,IF(ISERROR(VLOOKUP(Главная_tb[[#This Row],[Наименование]],$D$9:D18,1,)),0,LOOKUP(,-1/(Главная_tb[[#This Row],[Наименование]]=$D$9:D18),$O$9:O18)))","v":0},null,null,{"$f":"Главная_tb[Остаток на складе]+IF(Главная_tb[[#This Row],[Операция]]=\"Заказано у поставщика\",0,Главная_tb[Приход])-Главная_tb[Расход]","v":0},null,null,null,null,null,null,null,null,null,null,null,null,null,null,null,null,null,null,null,null,null,{"$f":"IF(IFERROR(IF(SEARCH(#REF!,AL19),\"!\",\"\"),\"\")=\"\",0,MAX($AK$9:AK18)+1)","v":0},"Дневной стационар","Кавинтон (таб. 5 мг., №50)"]
[null,null,"2018-07-15",null,null,"Нет",null,{"$f":"IF(Главная_tb[[#This Row],[Операция]]=\"Заказано у поставщика\",IF(Главная_tb[[#This Row],[Дата поставки]]=\"\",IF(Главная_tb[[#This Row],[Выбор поставщика]]=\"\",\"\",\"\"),IF(AND(Главная_tb[[#This Row],[Дата поставки]]<>0,Главная_tb[[#This Row],[Дата поставки]]<TODAY()),\"ДОСТАВКА ПРОСРОЧЕНА!\",\"В ПУТИ\")),IF(AND(Главная_tb[[#This Row],[Операция]]=\"Операции со складом\",Главная_tb[[#This Row],[Остаток на складе]]=0),\"НЕТ НА СКЛАДЕ!\",\"\"))","v":""},null,null,{"$f":"IF(AND(Главная_tb[[#This Row],[Операция]]=\"Заказано у поставщика\",Главная_tb[[#This Row],[Выбор поставщика]]<>\"\"),SUMIFS(Договоры_tb[Остаток],Договоры_tb[Наименование],Главная_tb[[#This Row],[Наименование]],Договоры_tb[Поставщик],Главная_tb[[#This Row],[Выбор поставщика]]),\"\")","v":""},{"$f":"IF(L18=\"\",0,IF(ISERROR(VLOOKUP(Главная_tb[[#This Row],[Наименование]],$D$9:D19,1,)),0,LOOKUP(,-1/(Главная_tb[[#This Row],[Наименование]]=$D$9:D19),$O$9:O19)))","v":0},null,null,{"$f":"Главная_tb[Остаток на складе]+IF(Главная_tb[[#This Row],[Операция]]=\"Заказано у поставщика\",0,Главная_tb[Приход])-Главная_tb[Расход]","v":0},null,null,null,null,null,null,null,null,null,null,null,null,null,null,null,null,null,null,null,null,null,{"$f":"IF(IFERROR(IF(SEARCH(#REF!,AL20),\"!\",\"\"),\"\")=\"\",0,MAX($AK$9:AK19)+1)","v":0},"Дневной стационар","Кальция хлорид (10%, 5,0 №10)"]
[null,null,"2018-07-15",null,null,"Да",null,{"$f":"IF(Главная_tb[[#This Row],[Операция]]=\"Заказано у поставщика\",IF(Главная_tb[[#This Row],[Дата поставки]]=\"\",IF(Главная_tb[[#This Row],[Выбор поставщика]]=\"\",\"\",\"\"),IF(AND(Главная_tb[[#This Row],[Дата поставки]]<>0,Главная_tb[[#This Row],[Дата поставки]]<TODAY()),\"ДОСТАВКА ПРОСРОЧЕНА!\",\"В ПУТИ\")),IF(AND(Главная_tb[[#This Row],[Операция]]=\"Операции со складом\",Главная_tb[[#This Row],[Остаток на складе]]=0),\"НЕТ НА СКЛАДЕ!\",\"\"))","v":""},null,null,{"$f":"IF(AND(Главная_tb[[#This Row],[Операция]]=\"Заказано у поставщика\",Главная_tb[[#This Row],[Выбор поставщика]]<>\"\"),SUMIFS(Договоры_tb[Остаток],Договоры_tb[Наименование],Главная_tb[[#This Row],[Наименование]],Договоры_tb[Поставщик],Главная_tb[[#This Row],[Выбор поставщика]]),\"\")","v":""},{"$f":"IF(L19=\"\",0,IF(ISERROR(VLOOKUP(Главная_tb[[#This Row],[Наименование]],$D$9:D20,1,)),0,LOOKUP(,-1/(Главная_tb[[#This Row],[Наименование]]=$D$9:D20),$O$9:O20)))","v":0},null,null,{"$f":"Главная_tb[Остаток на складе]+IF(Главная_tb[[#This Row],[Операция]]=\"Заказано у поставщика\",0,Главная_tb[Приход])-Главная_tb[Расход]","v":0},null,null,null,null,null,null,null,null,null,null,null,null,null,null,null,null,null,null,null,null,null,{"$f":"IF(IFERROR(IF(SEARCH(#REF!,AL21),\"!\",\"\"),\"\")=\"\",0,MAX($AK$9:AK20)+1)","v":0},"Дневной стационар","Корвалол (флак., 25 мл.)"]
[null,null,null,null,null,null,null,null,null,null,null,null,null,null,null,null,null,null,null,null,null,null,null,null,null,null,null,null,null,null,null,null,null,null,null,null,{"$f":"IF(IFERROR(IF(SEARCH(#REF!,AL22),\"!\",\"\"),\"\")=\"\",0,MAX($AK$9:AK21)+1)","v":0},"Дневной стационар","Мексидол (таб., 125 мг., №50)"]
[null,null,null,null,null,null,null,null,null,null,null,null,null,null,null,null,null,null,null,null,null,null,null,null,null,null,null,null,null,null,null,null,null,null,null,null,{"$f":"IF(IFERROR(IF(SEARCH(#REF!,AL23),\"!\",\"\"),\"\")=\"\",0,MAX($AK$9:AK22)+1)","v":0},"Дневной стационар","Мексидол (амп., 5%, 50 мг.- 2 мл., №10)"]
[null,null,null,null,null,null,null,null,null,null,null,null,null,null,null,null,null,null,null,null,null,null,null,null,null,null,null,null,null,null,null,null,null,null,null,null,{"$f":"IF(IFERROR(IF(SEARCH(#REF!,AL24),\"!\",\"\"),\"\")=\"\",0,MAX($AK$9:AK23)+1)","v":0},"Дневной стационар","Метронидазол (таб., 0,2 мг., №10)"]
[null,null,null,null,null,null,null,null,null,null,null,null,null,null,null,null,null,null,null,null,null,null,null,null,null,null,null,null,null,null,null,null,null,null,null,null,{"$f":"IF(IFERROR(IF(SEARCH(#REF!,AL25),\"!\",\"\"),\"\")=\"\",0,MAX($AK$9:AK24)+1)","v":0},"Дневной стационар","Натрия тиосульфат (30%, 10 мл., №10)"]
[null,null,null,null,null,null,null,null,null,null,null,null,null,null,null,null,null,null,null,null,null,null,null,null,null,null,null,null,null,null,null,null,null,null,null,null,{"$f":"IF(IFERROR(IF(SEARCH(#REF!,AL26),\"!\",\"\"),\"\")=\"\",0,MAX($AK$9:AK25)+1)","v":0},"Дневной стационар","Натрия хлорид (амп., 0,9%, 10 мл., №10)"]
[null,null,null,null,null,null,null,null,null,null,null,null,null,null,null,null,null,null,null,null,null,null,null,null,null,null,null,null,null,null,null,null,null,null,null,null,{"$f":"IF(IFERROR(IF(SEARCH(#REF!,AL27),\"!\",\"\"),\"\")=\"\",0,MAX($AK$9:AK26)+1)","v":0},"Дневной стационар","Натрия хлорид (амп., 0,9%, 10 мл., №10)"]
[null,null,null,null,null,null,null,null,null,null,null,null,null,null,null,null,null,null,null,null,null,null,null,null,null,null,null,null,null,null,null,null,null,null,null,null,{"$f":"IF(IFERROR(IF(SEARCH(#REF!,AL28),\"!\",\"\"),\"\")=\"\",0,MAX($AK$9:AK27)+1)","v":0},"Дневной стационар","Никотиновая кислота (амп., 1%, 1 мл., №10)"]
[null,null,null,null,null,null,null,null,null,null,null,null,null,null,null,null,null,null,null,null,null,null,null,null,null,null,null,null,null,null,null,null,null,null,null,null,{"$f":"IF(IFERROR(IF(SEARCH(#REF!,AL29),\"!\",\"\"),\"\")=\"\",0,MAX($AK$9:AK28)+1)","v":0},"Дневной стационар","Омепразол (капс., 20 мг., №30)"]
[null,null,null,null,null,null,null,null,null,null,null,null,null,null,null,null,null,null,null,null,null,null,null,null,null,null,null,null,null,null,null,null,null,null,null,null,{"$f":"IF(IFERROR(IF(SEARCH(#REF!,AL30),\"!\",\"\"),\"\")=\"\",0,MAX($AK$9:AK29)+1)","v":0},"Дневной стационар","Пантогам (таб., 250 мг., №50)"]
[null,null,null,null,null,null,null,null,null,null,null,null,null,null,null,null,null,null,null,null,null,null,null,null,null,null,null,null,null,null,null,null,null,null,null,null,{"$f":"IF(IFERROR(IF(SEARCH(#REF!,AL31),\"!\",\"\"),\"\")=\"\",0,MAX($AK$9:AK30)+1)","v":0},"Дневной стационар","Пирацетам (амп., 20%, 5 мл., №10)"]
[null,null,null,null,null,null,null,null,null,null,null,null,null,null,null,null,null,null,null,null,null,null,null,null,null,null,null,null,null,null,null,null,null,null,null,null,{"$f":"IF(IFERROR(IF(SEARCH(#REF!,AL32),\"!\",\"\"),\"\")=\"\",0,MAX($AK$9:AK31)+1)","v":0},"Дневной стационар","Пирацетам (таб., 400 мг., №60)"]
[null,null,null,null,null,null,null,null,null,null,null,null,null,null,null,null,null,null,null,null,null,null,null,null,null,null,null,null,null,null,null,null,null,null,null,null,{"$f":"IF(IFERROR(IF(SEARCH(#REF!,AL33),\"!\",\"\"),\"\")=\"\",0,MAX($AK$9:AK32)+1)","v":0},"Дневной стационар","Пиридоксина гидрохлорид (амп., 5%, 1 мл., №10)"]
[null,null,null,null,null,null,null,null,null,null,null,null,null,null,null,null,null,null,null,null,null,null,null,null,null,null,null,null,null,null,null,null,null,null,null,null,{"$f":"IF(IFERROR(IF(SEARCH(#REF!,AL34),\"!\",\"\"),\"\")=\"\",0,MAX($AK$9:AK33)+1)","v":0},"Дневной стационар","Рибоксин (таб., 200 мг., №50)"]
[null,null,null,null,null,null,null,null,null,null,null,null,null,null,null,null,null,null,null,null,null,null,null,null,null,null,null,null,null,null,null,null,null,null,null,null,{"$f":"IF(IFERROR(IF(SEARCH(#REF!,AL35),\"!\",\"\"),\"\")=\"\",0,MAX($AK$9:AK34)+1)","v":0},"Дневной стационар","Сбор успокоительный (50,0 г.)"]
[null,null,null,null,null,null,null,null,null,null,null,null,null,null,null,null,null,null,null,null,null,null,null,null,null,null,null,null,null,null,null,null,null,null,null,null,{"$f":"IF(IFERROR(IF(SEARCH(#REF!,AL36),\"!\",\"\"),\"\")=\"\",0,MAX($AK$9:AK35)+1)","v":0},"Дневной стационар","Сорбифер-Дурулес (таб., 320 мг., №30)"]
[null,null,null,null,null,null,null,null,null,null,null,null,null,null,null,null,null,null,null,null,null,null,null,null,null,null,null,null,null,null,null,null,null,null,null,null,{"$f":"IF(IFERROR(IF(SEARCH(#REF!,AL37),\"!\",\"\"),\"\")=\"\",0,MAX($AK$9:AK36)+1)","v":0},"Дневной стационар","Супрастин (амп., 2%, 1,0 мл.)"]
[null,null,null,null,null,null,null,null,null,null,null,null,null,null,null,null,null,null,null,null,null,null,null,null,null,null,null,null,null,null,null,null,null,null,null,null,{"$f":"IF(IFERROR(IF(SEARCH(#REF!,AL38),\"!\",\"\"),\"\")=\"\",0,MAX($AK$9:AK37)+1)","v":0},"Дневной стационар","Супрастин (таб., 25 мг., №20)"]
[null,null,null,null,null,null,null,null,null,null,null,null,null,null,null,null,null,null,null,null,null,null,null,null,null,null,null,null,null,null,null,null,null,null,null,null,{"$f":"IF(IFERROR(IF(SEARCH(#REF!,AL39),\"!\",\"\"),\"\")=\"\",0,MAX($AK$9:AK38)+1)","v":0},"Дневной стационар","Тиамин-хлорид (амп., 5%, 1,0 мл., №10)"]
[null,null,null,null,null,null,null,null,null,null,null,null,null,null,null,null,null,null,null,null,null,null,null,null,null,null,null,null,null,null,null,null,null,null,null,null,{"$f":"IF(IFERROR(IF(SEARCH(#REF!,AL40),\"!\",\"\"),\"\")=\"\",0,MAX($AK$9:AK39)+1)","v":0},"Дневной стационар","Токоферола ацетат (50% 100 мг., №10)"]
[null,null,null,null,null,null,null,null,null,null,null,null,null,null,null,null,null,null,null,null,null,null,null,null,null,null,null,null,null,null,null,null,null,null,null,null,{"$f":"IF(IFERROR(IF(SEARCH(#REF!,AL41),\"!\",\"\"),\"\")=\"\",0,MAX($AK$9:AK40)+1)","v":0},"Дневной стационар","Фенибут (таб., 250 мг., №20)"]
[null,null,null,null,null,null,null,null,null,null,null,null,null,null,null,null,null,null,null,null,null,null,null,null,null,null,null,null,null,null,null,null,null,null,null,null,{"$f":"IF(IFERROR(IF(SEARCH(#REF!,AL42),\"!\",\"\"),\"\")=\"\",0,MAX($AK$9:AK41)+1)","v":0},"Дневной стационар","Хлоргексидин (амп., 0,05%, 100 мл.)"]
[null,null,null,null,null,null,null,null,null,null,null,null,null,null,null,null,null,null,null,null,null,null,null,null,null,null,null,null,null,null,null,null,null,null,null,null,{"$f":"IF(IFERROR(IF(SEARCH(#REF!,AL43),\"!\",\"\"),\"\")=\"\",0,MAX($AK$9:AK42)+1)","v":0},"Дневной стационар","Церебролизин (амп., 5 мл., №5)"]
[null,null,null,null,null,null,null,null,null,null,null,null,null,null,null,null,null,null,null,null,null,null,null,null,null,null,null,null,null,null,null,null,null,null,null,null,{"$f":"IF(IFERROR(IF(SEARCH(#REF!,AL44),\"!\",\"\"),\"\")=\"\",0,MAX($AK$9:AK43)+1)","v":0},"Дневной стационар","Цианокобаламин (амп., 0,5 мг./1 мл., 1 мл., №10)"]
[null,null,null,null,null,null,null,null,null,null,null,null,null,null,null,null,null,null,null,null,null,null,null,null,null,null,null,null,null,null,null,null,null,null,null,null,{"$f":"IF(IFERROR(IF(SEARCH(#REF!,AL45),\"!\",\"\"),\"\")=\"\",0,MAX($AK$9:AK44)+1)","v":0},"Дневной стационар","Циннаризин (таб. 25 мг., №50)"]
[null,null,null,null,null,null,null,null,null,null,null,null,null,null,null,null,null,null,null,null,null,null,null,null,null,null,null,null,null,null,null,null,null,null,null,null,{"$f":"IF(IFERROR(IF(SEARCH(#REF!,AL46),\"!\",\"\"),\"\")=\"\",0,MAX($AK$9:AK45)+1)","v":0},"Дневной стационар","Энап (таб., 10 мг., №20)"]
[null,null,null,null,null,null,null,null,null,null,null,null,null,null,null,null,null,null,null,null,null,null,null,null,null,null,null,null,null,null,null,null,null,null,null,null,{"$f":"IF(IFERROR(IF(SEARCH(#REF!,AL47),\"!\",\"\"),\"\")=\"\",0,MAX($AK$9:AK46)+1)","v":0},"Дневной стационар","Фамотидин (таб., 20 мг., №20)"]
[null,null,null,null,null,null,null,null,null,null,null,null,null,null,null,null,null,null,null,null,null,null,null,null,null,null,null,null,null,null,null,null,null,null,null,null,{"$f":"IF(IFERROR(IF(SEARCH(#REF!,AL48),\"!\",\"\"),\"\")=\"\",0,MAX($AK$9:AK47)+1)","v":0},"Спирт и ИМН","Спирт этиловый (70%, 100 мл.)"]
[null,null,null,null,null,null,null,null,null,null,null,null,null,null,null,null,null,null,null,null,null,null,null,null,null,null,null,null,null,null,null,null,null,null,null,null,{"$f":"IF(IFERROR(IF(SEARCH(#REF!,AL49),\"!\",\"\"),\"\")=\"\",0,MAX($AK$9:AK48)+1)","v":0},"Спирт и ИМН","Спирт этиловый (95%, 100 мл.)"]
[null,null,null,null,null,null,null,null,null,null,null,null,null,null,null,null,null,null,null,null,null,null,null,null,null,null,null,null,null,null,null,null,null,null,null,null,{"$f":"IF(IFERROR(IF(SEARCH(#REF!,AL50),\"!\",\"\"),\"\")=\"\",0,MAX($AK$9:AK49)+1)","v":0},"Спирт и ИМН","Бинт (стер.)"]
[null,null,null,null,null,null,null,null,null,null,null,null,null,null,null,null,null,null,null,null,null,null,null,null,null,null,null,null,null,null,null,null,null,null,null,null,{"$f":"IF(IFERROR(IF(SEARCH(#REF!,AL51),\"!\",\"\"),\"\")=\"\",0,MAX($AK$9:AK50)+1)","v":0},"Спирт и ИМН","Бинт (нест.)"]
[null,null,null,null,null,null,null,null,null,null,null,null,null,null,null,null,null,null,null,null,null,null,null,null,null,null,null,null,null,null,null,null,null,null,null,null,{"$f":"IF(IFERROR(IF(SEARCH(#REF!,AL52),\"!\",\"\"),\"\")=\"\",0,MAX($AK$9:AK51)+1)","v":0},"Спирт и ИМН","Вата (нест. 100 гр.)"]
[null,null,null,null,null,null,null,null,null,null,null,null,null,null,null,null,null,null,null,null,null,null,null,null,null,null,null,null,null,null,null,null,null,null,null,null,{"$f":"IF(IFERROR(IF(SEARCH(#REF!,AL53),\"!\",\"\"),\"\")=\"\",0,MAX($AK$9:AK52)+1)","v":0},"Спирт и ИМН","Вата (нест. 250 гр.)"]
[null,null,null,null,null,null,null,null,null,null,null,null,null,null,null,null,null,null,null,null,null,null,null,null,null,null,null,null,null,null,null,null,null,null,null,null,{"$f":"IF(IFERROR(IF(SEARCH(#REF!,AL54),\"!\",\"\"),\"\")=\"\",0,MAX($AK$9:AK53)+1)","v":0},"Спирт и ИМН","Вата (стер. 100 гр.)"]
[null,null,null,null,null,null,null,null,null,null,null,null,null,null,null,null,null,null,null,null,null,null,null,null,null,null,null,null,null,null,null,null,null,null,null,null,{"$f":"IF(IFERROR(IF(SEARCH(#REF!,AL55),\"!\",\"\"),\"\")=\"\",0,MAX($AK$9:AK54)+1)","v":0},"Спирт и ИМН","Лейкопластырь (катушка, 2х500 см.)"]
[null,null,null,null,null,null,null,null,null,null,null,null,null,null,null,null,null,null,null,null,null,null,null,null,null,null,null,null,null,null,null,null,null,null,null,null,{"$f":"IF(IFERROR(IF(SEARCH(#REF!,AL56),\"!\",\"\"),\"\")=\"\",0,MAX($AK$9:AK55)+1)","v":0},"Спирт и ИМН","Марля (нестр.)"]
[null,null,null,null,null,null,null,null,null,null,null,null,null,null,null,null,null,null,null,null,null,null,null,null,null,null,null,null,null,null,null,null,null,null,null,null,{"$f":"IF(IFERROR(IF(SEARCH(#REF!,AL57),\"!\",\"\"),\"\")=\"\",0,MAX($AK$9:AK56)+1)","v":0},"Спирт и ИМН","Перчатки (нестер, латекс.)"]
[null,null,null,null,null,null,null,null,null,null,null,null,null,null,null,null,null,null,null,null,null,null,null,null,null,null,null,null,null,null,null,null,null,null,null,null,{"$f":"IF(IFERROR(IF(SEARCH(#REF!,AL58),\"!\",\"\"),\"\")=\"\",0,MAX($AK$9:AK57)+1)","v":0},"Спирт и ИМН","Перчатки (нестер, нитрил.)"]
[null,null,null,null,null,null,null,null,null,null,null,null,null,null,null,null,null,null,null,null,null,null,null,null,null,null,null,null,null,null,null,null,null,null,null,null,{"$f":"IF(IFERROR(IF(SEARCH(#REF!,AL59),\"!\",\"\"),\"\")=\"\",0,MAX($AK$9:AK58)+1)","v":0},"Спирт и ИМН","Перчатки (стер, латекс.)"]
[null,null,null,null,null,null,null,null,null,null,null,null,null,null,null,null,null,null,null,null,null,null,null,null,null,null,null,null,null,null,null,null,null,null,null,null,{"$f":"IF(IFERROR(IF(SEARCH(#REF!,AL60),\"!\",\"\"),\"\")=\"\",0,MAX($AK$9:AK59)+1)","v":0},"Спирт и ИМН","Салфетка (стер., 60х100 мм., 70%)"]
[null,null,null,null,null,null,null,null,null,null,null,null,null,null,null,null,null,null,null,null,null,null,null,null,null,null,null,null,null,null,null,null,null,null,null,null,{"$f":"IF(IFERROR(IF(SEARCH(#REF!,AL61),\"!\",\"\"),\"\")=\"\",0,MAX($AK$9:AK60)+1)","v":0},"Спирт и ИМН","Шпатель (стер., 100 шт.)"]
[null,null,null,null,null,null,null,null,null,null,null,null,null,null,null,null,null,null,null,null,null,null,null,null,null,null,null,null,null,null,null,null,null,null,null,null,{"$f":"IF(IFERROR(IF(SEARCH(#REF!,AL62),\"!\",\"\"),\"\")=\"\",0,MAX($AK$9:AK61)+1)","v":0},"Спирт и ИМН","Шприц (1 мл.)"]
[null,null,null,null,null,null,null,null,null,null,null,null,null,null,null,null,null,null,null,null,null,null,null,null,null,null,null,null,null,null,null,null,null,null,null,null,{"$f":"IF(IFERROR(IF(SEARCH(#REF!,AL63),\"!\",\"\"),\"\")=\"\",0,MAX($AK$9:AK62)+1)","v":0},"Спирт и ИМН","Шприц (10 мл.)"]
[null,null,null,null,null,null,null,null,null,null,null,null,null,null,null,null,null,null,null,null,null,null,null,null,null,null,null,null,null,null,null,null,null,null,null,null,{"$f":"IF(IFERROR(IF(SEARCH(#REF!,AL64),\"!\",\"\"),\"\")=\"\",0,MAX($AK$9:AK63)+1)","v":0},"Спирт и ИМН","Шприц (2 мл.)"]
[null,null,null,null,null,null,null,null,null,null,null,null,null,null,null,null,null,null,null,null,null,null,null,null,null,null,null,null,null,null,null,null,null,null,null,null,{"$f":"IF(IFERROR(IF(SEARCH(#REF!,AL65),\"!\",\"\"),\"\")=\"\",0,MAX($AK$9:AK64)+1)","v":0},"Спирт и ИМН","Шприц (20 мл.)"]
[null,null,null,null,null,null,null,null,null,null,null,null,null,null,null,null,null,null,null,null,null,null,null,null,null,null,null,null,null,null,null,null,null,null,null,null,{"$f":"IF(IFERROR(IF(SEARCH(#REF!,AL66),\"!\",\"\"),\"\")=\"\",0,MAX($AK$9:AK65)+1)","v":0},"Спирт и ИМН","Шприц (5 мл.)"]
[null,null,null,null,null,null,null,null,null,null,null,null,null,null,null,null,null,null,null,null,null,null,null,null,null,null,null,null,null,null,null,null,null,null,null,null,{"$f":"IF(IFERROR(IF(SEARCH(#REF!,AL67),\"!\",\"\"),\"\")=\"\",0,MAX($AK$9:AK66)+1)","v":0},"Спирт и ИМН","Маска медицинская трёхслойная, одноразовая"]
[null,null,null,null,null,null,null,null,null,null,null,null,null,null,null,null,null,null,null,null,null,null,null,null,null,null,null,null,null,null,null,null,null,null,null,null,{"$f":"IF(IFERROR(IF(SEARCH(#REF!,AL68),\"!\",\"\"),\"\")=\"\",0,MAX($AK$9:AK67)+1)","v":0},"Спирт и ИМН","Салфетка (спанлейс, 30х40 см., 100 шт.)"]
[null,null,null,null,null,null,null,null,null,null,null,null,null,null,null,null,null,null,null,null,null,null,null,null,null,null,null,null,null,null,null,null,null,null,null,null,{"$f":"IF(IFERROR(IF(SEARCH(#REF!,AL69),\"!\",\"\"),\"\")=\"\",0,MAX($AK$9:AK68)+1)","v":0},"Спирт и ИМН","Полотенце бумажное (200 шт.)"]

{"sheet":"Медикаменты","index":1,"n_rows":202,"n_cols":32,"rows_kept":202,"cut":false,"hidden":false,"merged":[]}
[null,null,null,null,null,"Поставщик","Контактные данные","Столбец1",null,null,"Наименование","Поставщик","Поставщик22","Договор","Столбец3","Единицы","Объем закупки","Получено от поставщика","Остаток",null,null,"Медикаменты",null,null,null,"Выдано",null,null,"Операции",null,null,"Единицы измерения"]
[null,null,null,null,null,"АО \"Формула развития\"","Внести данные",null,null,null,"Рентгеновская пленка Carestream Health Dry View 5700 Laser Imager (20х25 см., 125 л.)",{"$f":"Договоры_tb[[#This Row],[Поставщик22]]&\" (дог. №\"&Договоры_tb[[#This Row],[Договор]]&\") \"&VLOOKUP(Договоры_tb[[#This Row],[Поставщик22]],Поставщики_tb[[Поставщик]:[Контактные данные]],2,)","v":"ООО \"МедЛайн\" (дог. №ЗК-2017-02-10-4) Внести данные"},"ООО \"МедЛайн\"","ЗК-2017-02-10-4",null,"уп.",10,{"$f":"SUMIFS(Главная_tb[Приход],Главная_tb[Наименование],Договоры_tb[[#This Row],[Наименование]],Главная_tb[Выбор поставщика],Договоры_tb[[#This Row],[Поставщик]],Главная_tb[Операция],\"Получено от поставщика\")","v":0},{"$f":"Договоры_tb[[#This Row],[Объем закупки]]-Договоры_tb[[#This Row],[Получено от поставщика]]","v":10},null,null,"Адреналин гидрохлорид (р-р, 0,1%, 1 мл.)",null,null,null,"Лор",null,null,"Начальный остаток",null,null,"кан."]
[null,null,null,null,null,"ИП Малков Федор Сергеевич","Внести данные",null,null,null,"Рентгеновская пленка Carestream Health Dry View 5700 Laser Imager (35х43 см., 125 л.)",{"$f":"Договоры_tb[[#This Row],[Поставщик22]]&\" (дог. №\"&Договоры_tb[[#This Row],[Договор]]&\") \"&VLOOKUP(Договоры_tb[[#This Row],[Поставщик22]],Поставщики_tb[[Поставщик]:[Контактные данные]],2,)","v":"ООО \"МедЛайн\" (дог. №ЗК-2017-02-10-4) Внести данные"},"ООО \"МедЛайн\"","ЗК-2017-02-10-4",null,"уп.",6,{"$f":"SUMIFS(Главная_tb[Приход],Главная_tb[Наименование],Договоры_tb[[#This Row],[Наименование]],Главная_tb[Выбор поставщика],Договоры_tb[[#This Row],[Поставщик]],Главная_tb[Операция],\"Получено от поставщика\")","v":0},{"$f":"Договоры_tb[[#This Row],[Объем закупки]]-Договоры_tb[[#This Row],[Получено от поставщика]]","v":6},null,null,"Бинт (нест., 10 м.х15 см.)",null,null,null,"Лаборатория",null,null,"Операции со складом",null,null,"комп."]
[null,null,null,null,null,"ООО \"Восток-Интертрейд\"","Внести данные",null,null,null,"Азопирам",{"$f":"Договоры_tb[[#This Row],[Поставщик22]]&\" (дог. №\"&Договоры_tb[[#This Row],[Договор]]&\") \"&VLOOKUP(Договоры_tb[[#This Row],[Поставщик22]],Поставщики_tb[[Поставщик]:[Контактные данные]],2,)","v":"ООО \"Лабора\" (дог. №ЗК-2017-03-20-13) Внести данные"},"ООО \"Лабора\"","ЗК-2017-03-20-13",null,"комп.",10,{"$f":"SUMIFS(Главная_tb[Приход],Главная_tb[Наименование],Договоры_tb[[#This Row],[Наименование]],Главная_tb[Выбор поставщика],Договоры_tb[[#This Row],[Поставщик]],Главная_tb[Операция],\"Получено от поставщика\")","v":0},{"$f":"Договоры_tb[[#This Row],[Объем закупки]]-Договоры_tb[[#This Row],[Получено от поставщика]]","v":10},null,null,"Бинт (нест., 5 м.х10 см.)",null,null,null,"Окулист",null,null,"Заказано у поставщика",null,null,"мл."]
[null,null,null,null,null,"ООО \"ИркутскМедсервис\"","Внести данные",null,null,null,"Берет медицинский (однораз.)",{"$f":"Договоры_tb[[#This Row],[Поставщик22]]&\" (дог. №\"&Договоры_tb[[#This Row],[Договор]]&\") \"&VLOOKUP(Договоры_tb[[#This Row],[Поставщик22]],Поставщики_tb[[Поставщик]:[Контактные данные]],2,)","v":"ООО \"Лабора\" (дог. №ЗК-2017-03-20-13) Внести данные"},"ООО \"Лабора\"","ЗК-2017-03-20-13",null,"шт.",1000,{"$f":"SUMIFS(Главная_tb[Приход],Главная_tb[Наименование],Договоры_tb[[#This Row],[Наименование]],Главная_tb[Выбор поставщика],Договоры_tb[[#This Row],[Поставщик]],Главная_tb[Операция],\"Получено от поставщика\")","v":0},{"$f":"Договоры_tb[[#This Row],[Объем закупки]]-Договоры_tb[[#This Row],[Получено от поставщика]]","v":1000},null,null,"Бинт (стер. 10 м.х15 см.)",null,null,null,"Хирург",null,null,"Получено от поставщика",null,null,"набор"]
[null,null,null,null,null,"ООО \"Лабора\"","Внести данные",null,null,null,"Бумага УЗИ сканер (20 м.)",{"$f":"Договоры_tb[[#This Row],[Поставщик22]]&\" (дог. №\"&Договоры_tb[[#This Row],[Договор]]&\") \"&VLOOKUP(Договоры_tb[[#This Row],[Поставщик22]],Поставщики_tb[[Поставщик]:[Контактные данные]],2,)","v":"ООО \"Лабора\" (дог. №ЗК-2017-03-20-13) Внести данные"},"ООО \"Лабора\"","ЗК-2017-03-20-13",null,"рул.",2,{"$f":"SUMIFS(Главная_tb[Приход],Главная_tb[Наименование],Договоры_tb[[#This Row],[Наименование]],Главная_tb[Выбор поставщика],Договоры_tb[[#This Row],[Поставщик]],Главная_tb[Операция],\"Получено от поставщика\")","v":0},{"$f":"Договоры_tb[[#This Row],[Объем закупки]]-Договоры_tb[[#This Row],[Получено от поставщика]]","v":2},null,null,"Бинт (стер. 5 м.х10 см.)",null,null,null,null,null,null,null,null,null,"пач."]
[null,null,null,null,null,"ООО \"МедЛайн\"","Внести данные",null,null,null,"Бумага ЭКГ (80 мм. х 70 мм., 300 л.)",{"$f":"Договоры_tb[[#This Row],[Поставщик22]]&\" (дог. №\"&Договоры_tb[[#This Row],[Договор]]&\") \"&VLOOKUP(Договоры_tb[[#This Row],[Поставщик22]],Поставщики_tb[[Поставщик]:[Контактные данные]],2,)","v":"ООО \"Лабора\" (дог. №ЗК-2017-03-20-13) Внести данные"},"ООО \"Лабора\"","ЗК-2017-03-20-13",null,"пач.",50,{"$f":"SUMIFS(Главная_tb[Приход],Главная_tb[Наименование],Договоры_tb[[#This Row],[Наименование]],Главная_tb[Выбор поставщика],Договоры_tb[[#This Row],[Поставщик]],Главная_tb[Операция],\"Получено от поставщика\")","v":0},{"$f":"Договоры_tb[[#This Row],[Объем закупки]]-Договоры_tb[[#This Row],[Получено от поставщика]]","v":50},null,null,"Контейнер для сбора мочи (стер., 100 мл.)",null,null,null,null,null,null,null,null,null,"рул."]
[null,null,null,null,null,"ООО \"Сибмедком\"","Внести данные",null,null,null,"Гель для УЗИ (1 л.)",{"$f":"Договоры_tb[[#This Row],[Поставщик22]]&\" (дог. №\"&Договоры_tb[[#This Row],[Договор]]&\") \"&VLOOKUP(Договоры_tb[[#This Row],[Поставщик22]],Поставщики_tb[[Поставщик]:[Контактные данные]],2,)","v":"ООО \"Лабора\" (дог. №ЗК-2017-03-20-13) Внести данные"},"ООО \"Лабора\"","ЗК-2017-03-20-13",null,"фл.",10,{"$f":"SUMIFS(Главная_tb[Приход],Главная_tb[Наименование],Договоры_tb[[#This Row],[Наименование]],Главная_tb[Выбор поставщика],Договоры_tb[[#This Row],[Поставщик]],Главная_tb[Операция],\"Получено от поставщика\")","v":0},{"$f":"Договоры_tb[[#This Row],[Объем закупки]]-Договоры_tb[[#This Row],[Получено от поставщика]]","v":10},null,null,"Контейнер для утилизации отходов МК-01 (однораз., желтый, 3 л.)",null,null,null,null,null,null,null,null,null,"снимок"]
[null,null,null,null,null,null,null,null,null,null,"Гель для УЗИ (5 л.)",{"$f":"Договоры_tb[[#This Row],[Поставщик22]]&\" (дог. №\"&Договоры_tb[[#This Row],[Договор]]&\") \"&VLOOKUP(Договоры_tb[[#This Row],[Поставщик22]],Поставщики_tb[[Поставщик]:[Контактные данные]],2,)","v":"ООО \"Лабора\" (дог. №ЗК-2017-03-20-13) Внести данные"},"ООО \"Лабора\"","ЗК-2017-03-20-13",null,"кан.",1,{"$f":"SUMIFS(Главная_tb[Приход],Главная_tb[Наименование],Договоры_tb[[#This Row],[Наименование]],Главная_tb[Выбор поставщика],Договоры_tb[[#This Row],[Поставщик]],Главная_tb[Операция],\"Получено от поставщика\")","v":0},{"$f":"Договоры_tb[[#This Row],[Объем закупки]]-Договоры_tb[[#This Row],[Получено от поставщика]]","v":1},null,null,"Контейнер для утилизации отходов МК-04 (многораз., бирюзовый, 7,5 л.).",null,null,null,null,null,null,null,null,null,"уп."]
[null,null,null,null,null,null,null,null,null,null,"Ёмкость для сбора использованного медицинского материала класса Б",{"$f":"Договоры_tb[[#This Row],[Поставщик22]]&\" (дог. №\"&Договоры_tb[[#This Row],[Договор]]&\") \"&VLOOKUP(Договоры_tb[[#This Row],[Поставщик22]],Поставщики_tb[[Поставщик]:[Контактные данные]],2,)","v":"ООО \"Лабора\" (дог. №ЗК-2017-03-20-13) Внести данные"},"ООО \"Лабора\"","ЗК-2017-03-20-13",null,"шт.",1000,{"$f":"SUMIFS(Главная_tb[Приход],Главная_tb[Наименование],Договоры_tb[[#This Row],[Наименование]],Главная_tb[Выбор поставщика],Договоры_tb[[#This Row],[Поставщик]],Главная_tb[Операция],\"Получено от поставщика\")","v":0},{"$f":"Договоры_tb[[#This Row],[Объем закупки]]-Договоры_tb[[#This Row],[Получено от поставщика]]","v":1000},null,null,"Контейнер для утилизации отходов МК-05 (многораз., желтый 50 л.)",null,null,null,null,null,null,null,null,null,"фл."]
[null,null,null,null,null,null,null,null,null,null,"Зонд урогенитальный (стер., однораз.)",{"$f":"Договоры_tb[[#This Row],[Поставщик22]]&\" (дог. №\"&Договоры_tb[[#This Row],[Договор]]&\") \"&VLOOKUP(Договоры_tb[[#This Row],[Поставщик22]],Поставщики_tb[[Поставщик]:[Контактные данные]],2,)","v":"ООО \"Лабора\" (дог. №ЗК-2017-03-20-13) Внести данные"},"ООО \"Лабора\"","ЗК-2017-03-20-13",null,"шт.",100,{"$f":"SUMIFS(Главная_tb[Приход],Главная_tb[Наименование],Договоры_tb[[#This Row],[Наименование]],Главная_tb[Выбор поставщика],Договоры_tb[[#This Row],[Поставщик]],Главная_tb[Операция],\"Получено от поставщика\")","v":0},{"$f":"Договоры_tb[[#This Row],[Объем закупки]]-Договоры_tb[[#This Row],[Получено от поставщика]]","v":100},null,null,"Контрольная сыворотка на РМП (отрицательный) (1 мл., 10 шт.)",null,null,null,null,null,null,null,null,null,"шт."]
[null,null,null,null,null,null,null,null,null,null,"Комплект противоэпидемический",{"$f":"Договоры_tb[[#This Row],[Поставщик22]]&\" (дог. №\"&Договоры_tb[[#This Row],[Договор]]&\") \"&VLOOKUP(Договоры_tb[[#This Row],[Поставщик22]],Поставщики_tb[[Поставщик]:[Контактные данные]],2,)","v":"ООО \"Лабора\" (дог. №ЗК-2017-03-20-13) Внести данные"},"ООО \"Лабора\"","ЗК-2017-03-20-13",null,"комп.",3,{"$f":"SUMIFS(Главная_tb[Приход],Главная_tb[Наименование],Договоры_tb[[#This Row],[Наименование]],Главная_tb[Выбор поставщика],Договоры_tb[[#This Row],[Поставщик]],Главная_tb[Операция],\"Получено от поставщика\")","v":0},{"$f":"Договоры_tb[[#This Row],[Объем закупки]]-Договоры_tb[[#This Row],[Получено от поставщика]]","v":3},null,null,"Контрольная сыворотка на РМП (положительная) (1 мл., 10 шт.)"]
[null,null,null,null,null,null,null,null,null,null,"Крафт-пакет (100 шт.)",{"$f":"Договоры_tb[[#This Row],[Поставщик22]]&\" (дог. №\"&Договоры_tb[[#This Row],[Договор]]&\") \"&VLOOKUP(Договоры_tb[[#This Row],[Поставщик22]],Поставщики_tb[[Поставщик]:[Контактные данные]],2,)","v":"ООО \"Лабора\" (дог. №ЗК-2017-03-20-13) Внести данные"},"ООО \"Лабора\"","ЗК-2017-03-20-13",null,"уп.",2,{"$f":"SUMIFS(Главная_tb[Приход],Главная_tb[Наименование],Договоры_tb[[#This Row],[Наименование]],Главная_tb[Выбор поставщика],Договоры_tb[[#This Row],[Поставщик]],Главная_tb[Операция],\"Получено от поставщика\")","v":0},{"$f":"Договоры_tb[[#This Row],[Объем закупки]]-Договоры_tb[[#This Row],[Получено от поставщика]]","v":2},null,null,"Контрольная сыворотка на РМП (слабоположительный) (1 мл., 10 шт.)"]
[null,null,null,null,null,null,null,null,null,null,"Лейкопластырь (фикс. 6 рул.)",{"$f":"Договоры_tb[[#This Row],[Поставщик22]]&\" (дог. №\"&Договоры_tb[[#This Row],[Договор]]&\") \"&VLOOKUP(Договоры_tb[[#This Row],[Поставщик22]],Поставщики_tb[[Поставщик]:[Контактные данные]],2,)","v":"ООО \"Лабора\" (дог. №ЗК-2017-03-20-13) Внести данные"},"ООО \"Лабора\"","ЗК-2017-03-20-13",null,"уп.",1,{"$f":"SUMIFS(Главная_tb[Приход],Главная_tb[Наименование],Договоры_tb[[#This Row],[Наименование]],Главная_tb[Выбор поставщика],Договоры_tb[[#This Row],[Поставщик]],Главная_tb[Операция],\"Получено от поставщика\")","v":0},{"$f":"Договоры_tb[[#This Row],[Объем закупки]]-Договоры_tb[[#This Row],[Получено от поставщика]]","v":1},null,null,"Контрольный материал гематологических анализаторов (2х2,5 норм. ур., 1х2,5 ср. ур., 1х2,5 выс. ур.)"]
[null,null,null,null,null,null,null,null,null,null,"Маска медицинская трёхслойная, одноразовая (нестер., 50 шт.)",{"$f":"Договоры_tb[[#This Row],[Поставщик22]]&\" (дог. №\"&Договоры_tb[[#This Row],[Договор]]&\") \"&VLOOKUP(Договоры_tb[[#This Row],[Поставщик22]],Поставщики_tb[[Поставщик]:[Контактные данные]],2,)","v":"ООО \"Лабора\" (дог. №ЗК-2017-03-20-13) Внести данные"},"ООО \"Лабора\"","ЗК-2017-03-20-13",null,"шт.",5000,{"$f":"SUMIFS(Главная_tb[Приход],Главная_tb[Наименование],Договоры_tb[[#This Row],[Наименование]],Главная_tb[Выбор поставщика],Договоры_tb[[#This Row],[Поставщик]],Главная_tb[Операция],\"Получено от поставщика\")","v":0},{"$f":"Договоры_tb[[#This Row],[Объем закупки]]-Договоры_tb[[#This Row],[Получено от поставщика]]","v":5000},null,null,"Пакеты упаковочные для стерилизации СтериТ (150*250, 100 шт.)"]
[null,null,null,null,null,null,null,null,null,null,"Пакет для сбора медицинских отходов класса Б (30 л., 100 шт.)",{"$f":"Договоры_tb[[#This Row],[Поставщик22]]&\" (дог. №\"&Договоры_tb[[#This Row],[Договор]]&\") \"&VLOOKUP(Договоры_tb[[#This Row],[Поставщик22]],Поставщики_tb[[Поставщик]:[Контактные данные]],2,)","v":"ООО \"Лабора\" (дог. №ЗК-2017-03-20-13) Внести данные"},"ООО \"Лабора\"","ЗК-2017-03-20-13",null,"шт.",3000,{"$f":"SUMIFS(Главная_tb[Приход],Главная_tb[Наименование],Договоры_tb[[#This Row],[Наименование]],Главная_tb[Выбор поставщика],Договоры_tb[[#This Row],[Поставщик]],Главная_tb[Операция],\"Получено от поставщика\")","v":0},{"$f":"Договоры_tb[[#This Row],[Объем закупки]]-Договоры_tb[[#This Row],[Получено от поставщика]]","v":3000},null,null,"Пакеты упаковочные для стерилизации СтериТ (200*300, 100 шт.)"]
[null,null,null,null,null,null,null,null,null,null,"Повязка медицинская (стер., 10х20 см., 25 шт.)",{"$f":"Договоры_tb[[#This Row],[Поставщик22]]&\" (дог. №\"&Договоры_tb[[#This Row],[Договор]]&\") \"&VLOOKUP(Договоры_tb[[#This Row],[Поставщик22]],Поставщики_tb[[Поставщик]:[Контактные данные]],2,)","v":"ООО \"Лабора\" (дог. №ЗК-2017-03-20-13) Внести данные"},"ООО \"Лабора\"","ЗК-2017-03-20-13",null,"уп.",1,{"$f":"SUMIFS(Главная_tb[Приход],Главная_tb[Наименование],Договоры_tb[[#This Row],[Наименование]],Главная_tb[Выбор поставщика],Договоры_tb[[#This Row],[Поставщик]],Главная_tb[Операция],\"Получено от поставщика\")","v":0},{"$f":"Договоры_tb[[#This Row],[Объем закупки]]-Договоры_tb[[#This Row],[Получено от поставщика]]","v":1},null,null,"Пакеты упаковочные для стерилизации СтериТ (200*330, 100 шт.)"]
[null,null,null,null,null,null,null,null,null,null,"Повязка медицинская (стер., 10х20 см., 50 шт.)",{"$f":"Договоры_tb[[#This Row],[Поставщик22]]&\" (дог. №\"&Договоры_tb[[#This Row],[Договор]]&\") \"&VLOOKUP(Договоры_tb[[#This Row],[Поставщик22]],Поставщики_tb[[Поставщик]:[Контактные данные]],2,)","v":"ООО \"Лабора\" (дог. №ЗК-2017-03-20-13) Внести данные"},"ООО \"Лабора\"","ЗК-2017-03-20-13",null,"уп.",1,{"$f":"SUMIFS(Главная_tb[Приход],Главная_tb[Наименование],Договоры_tb[[#This Row],[Наименование]],Главная_tb[Выбор поставщика],Договоры_tb[[#This Row],[Поставщик]],Главная_tb[Операция],\"Получено от поставщика\")","v":0},{"$f":"Договоры_tb[[#This Row],[Объем закупки]]-Договоры_tb[[#This Row],[Получено от поставщика]]","v":1},null,null,"Пробирка Vacuette (8 мл., 50 шт.)"]
[null,null,null,null,null,null,null,null,null,null,"Повязка медицинская (стер., 9х10 см., 30 шт.)",{"$f":"Договоры_tb[[#This Row],[Поставщик22]]&\" (дог. №\"&Договоры_tb[[#This Row],[Договор]]&\") \"&VLOOKUP(Договоры_tb[[#This Row],[Поставщик22]],Поставщики_tb[[Поставщик]:[Контактные данные]],2,)","v":"ООО \"Лабора\" (дог. №ЗК-2017-03-20-13) Внести данные"},"ООО \"Лабора\"","ЗК-2017-03-20-13",null,"уп.",1,{"$f":"SUMIFS(Главная_tb[Приход],Главная_tb[Наименование],Договоры_tb[[#This Row],[Наименование]],Главная_tb[Выбор поставщика],Договоры_tb[[#This Row],[Поставщик]],Главная_tb[Операция],\"Получено от поставщика\")","v":0},{"$f":"Договоры_tb[[#This Row],[Объем закупки]]-Договоры_tb[[#This Row],[Получено от поставщика]]","v":1},null,null,"Пробирка Vacuette (9 мл., 50 шт.)"]
[null,null,null,null,null,null,null,null,null,null,"Повязка медицинская (стер., 9х10 см., 50 шт.)",{"$f":"Договоры_tb[[#This Row],[Поставщик22]]&\" (дог. №\"&Договоры_tb[[#This Row],[Договор]]&\") \"&VLOOKUP(Договоры_tb[[#This Row],[Поставщик22]],Поставщики_tb[[Поставщик]:[Контактные данные]],2,)","v":"ООО \"Лабора\" (дог. №ЗК-2017-03-20-13) Внести данные"},"ООО \"Лабора\"","ЗК-2017-03-20-13",null,"уп.",1,{"$f":"SUMIFS(Главная_tb[Приход],Главная_tb[Наименование],Договоры_tb[[#This Row],[Наименование]],Главная_tb[Выбор поставщика],Договоры_tb[[#This Row],[Поставщик]],Главная_tb[Операция],\"Получено от поставщика\")","v":0},{"$f":"Договоры_tb[[#This Row],[Объем закупки]]-Договоры_tb[[#This Row],[Получено от поставщика]]","v":1},null,null,"Пробирка вакуумная Cerebrum (4 мл., 50 шт.)"]
[null,null,null,null,null,null,null,null,null,null,"Полотенце бумажное (200 шт.)",{"$f":"Договоры_tb[[#This Row],[Поставщик22]]&\" (дог. №\"&Договоры_tb[[#This Row],[Договор]]&\") \"&VLOOKUP(Договоры_tb[[#This Row],[Поставщик22]],Поставщики_tb[[Поставщик]:[Контактные данные]],2,)","v":"ООО \"Лабора\" (дог. №ЗК-2017-03-20-13) Внести данные"},"ООО \"Лабора\"","ЗК-2017-03-20-13",null,"пач.",200,{"$f":"SUMIFS(Главная_tb[Приход],Главная_tb[Наименование],Договоры_tb[[#This Row],[Наименование]],Главная_tb[Выбор поставщика],Договоры_tb[[#This Row],[Поставщик]],Главная_tb[Операция],\"Получено от поставщика\")","v":0},{"$f":"Договоры_tb[[#This Row],[Объем закупки]]-Договоры_tb[[#This Row],[Получено от поставщика]]","v":200},null,null,"Пробирка вакуумная Cerebrum (5 мл., 50 шт.)"]
[null,null,null,null,null,null,null,null,null,null,"Пробирка Vacuette (4 мл., 50 шт.)",{"$f":"Договоры_tb[[#This Row],[Поставщик22]]&\" (дог. №\"&Договоры_tb[[#This Row],[Договор]]&\") \"&VLOOKUP(Договоры_tb[[#This Row],[Поставщик22]],Поставщики_tb[[Поставщик]:[Контактные данные]],2,)","v":"ООО \"Лабора\" (дог. №ЗК-2017-03-20-13) Внести данные"},"ООО \"Лабора\"","ЗК-2017-03-20-13",null,"шт.",5500,{"$f":"SUMIFS(Главная_tb[Приход],Главная_tb[Наименование],Договоры_tb[[#This Row],[Наименование]],Главная_tb[Выбор поставщика],Договоры_tb[[#This Row],[Поставщик]],Главная_tb[Операция],\"Получено от поставщика\")","v":0},{"$f":"Договоры_tb[[#This Row],[Объем закупки]]-Договоры_tb[[#This Row],[Получено от поставщика]]","v":5500},null,null,"Пробирка вакуумная Cerebrum (8 мл., 50 шт.)"]
[null,null,null,null,null,null,null,null,null,null,"Пробирка Vacuette (8 мл., 50 шт.)",{"$f":"Договоры_tb[[#This Row],[Поставщик22]]&\" (дог. №\"&Договоры_tb[[#This Row],[Договор]]&\") \"&VLOOKUP(Договоры_tb[[#This Row],[Поставщик22]],Поставщики_tb[[Поставщик]:[Контактные данные]],2,)","v":"ООО \"Лабора\" (дог. №ЗК-2017-03-20-13) Внести данные"},"ООО \"Лабора\"","ЗК-2017-03-20-13",null,"шт.",1000,{"$f":"SUMIFS(Главная_tb[Приход],Главная_tb[Наименование],Договоры_tb[[#This Row],[Наименование]],Главная_tb[Выбор поставщика],Договоры_tb[[#This Row],[Поставщик]],Главная_tb[Операция],\"Получено от поставщика\")","v":0},{"$f":"Договоры_tb[[#This Row],[Объем закупки]]-Договоры_tb[[#This Row],[Получено от поставщика]]","v":1000},null,null,"Пробирка микровета с ЭДТА (0,2 мл., 100 шт.)"]
[null,null,null,null,null,null,null,null,null,null,"Пробирка Vacuette (9 мл., 50 шт.)",{"$f":"Договоры_tb[[#This Row],[Поставщик22]]&\" (дог. №\"&Договоры_tb[[#This Row],[Договор]]&\") \"&VLOOKUP(Договоры_tb[[#This Row],[Поставщик22]],Поставщики_tb[[Поставщик]:[Контактные данные]],2,)","v":"ООО \"Лабора\" (дог. №ЗК-2017-03-20-13) Внести данные"},"ООО \"Лабора\"","ЗК-2017-03-20-13",null,"шт.",1200,{"$f":"SUMIFS(Главная_tb[Приход],Главная_tb[Наименование],Договоры_tb[[#This Row],[Наименование]],Главная_tb[Выбор поставщика],Договоры_tb[[#This Row],[Поставщик]],Главная_tb[Операция],\"Получено от поставщика\")","v":0},{"$f":"Договоры_tb[[#This Row],[Объем закупки]]-Договоры_tb[[#This Row],[Получено от поставщика]]","v":1200},null,null,"Шприц (1 мл.)"]
[null,null,null,null,null,null,null,null,null,null,"Простыня (нест, 70х80 см., 200 шт.)",{"$f":"Договоры_tb[[#This Row],[Поставщик22]]&\" (дог. №\"&Договоры_tb[[#This Row],[Договор]]&\") \"&VLOOKUP(Договоры_tb[[#This Row],[Поставщик22]],Поставщики_tb[[Поставщик]:[Контактные данные]],2,)","v":"ООО \"Лабора\" (дог. №ЗК-2017-03-20-13) Внести данные"},"ООО \"Лабора\"","ЗК-2017-03-20-13",null,"рул.",45,{"$f":"SUMIFS(Главная_tb[Приход],Главная_tb[Наименование],Договоры_tb[[#This Row],[Наименование]],Главная_tb[Выбор поставщика],Договоры_tb[[#This Row],[Поставщик]],Главная_tb[Операция],\"Получено от поставщика\")","v":0},{"$f":"Договоры_tb[[#This Row],[Объем закупки]]-Договоры_tb[[#This Row],[Получено от поставщика]]","v":45},null,null,"Шприц (10 мл.)"]
[null,null,null,null,null,null,null,null,null,null,"Салфетка (спанлейс, 30х40, 100 шт.)",{"$f":"Договоры_tb[[#This Row],[Поставщик22]]&\" (дог. №\"&Договоры_tb[[#This Row],[Договор]]&\") \"&VLOOKUP(Договоры_tb[[#This Row],[Поставщик22]],Поставщики_tb[[Поставщик]:[Контактные данные]],2,)","v":"ООО \"Лабора\" (дог. №ЗК-2017-03-20-13) Внести данные"},"ООО \"Лабора\"","ЗК-2017-03-20-13",null,"уп.",140,{"$f":"SUMIFS(Главная_tb[Приход],Главная_tb[Наименование],Договоры_tb[[#This Row],[Наименование]],Главная_tb[Выбор поставщика],Договоры_tb[[#This Row],[Поставщик]],Главная_tb[Операция],\"Получено от поставщика\")","v":0},{"$f":"Договоры_tb[[#This Row],[Объем закупки]]-Договоры_tb[[#This Row],[Получено от поставщика]]","v":140},null,null,"Шприц (2 мл. 2 иглы)"]
[null,null,null,null,null,null,null,null,null,null,"Салфетка (стер., 60х100 мм., 70%)",{"$f":"Договоры_tb[[#This Row],[Поставщик22]]&\" (дог. №\"&Договоры_tb[[#This Row],[Договор]]&\") \"&VLOOKUP(Договоры_tb[[#This Row],[Поставщик22]],Поставщики_tb[[Поставщик]:[Контактные данные]],2,)","v":"ООО \"Лабора\" (дог. №ЗК-2017-03-20-13) Внести данные"},"ООО \"Лабора\"","ЗК-2017-03-20-13",null,"шт.",30000,{"$f":"SUMIFS(Главная_tb[Приход],Главная_tb[Наименование],Договоры_tb[[#This Row],[Наименование]],Главная_tb[Выбор поставщика],Договоры_tb[[#This Row],[Поставщик]],Главная_tb[Операция],\"Получено от поставщика\")","v":0},{"$f":"Договоры_tb[[#This Row],[Объем закупки]]-Договоры_tb[[#This Row],[Получено от поставщика]]","v":30000},null,null,"Шприц (2 мл.)"]
[null,null,null,null,null,null,null,null,null,null,"Тампон-зонд (100 шт.)",{"$f":"Договоры_tb[[#This Row],[Поставщик22]]&\" (дог. №\"&Договоры_tb[[#This Row],[Договор]]&\") \"&VLOOKUP(Договоры_tb[[#This Row],[Поставщик22]],Поставщики_tb[[Поставщик]:[Контактные данные]],2,)","v":"ООО \"Лабора\" (дог. №ЗК-2017-03-20-13) Внести данные"},"ООО \"Лабора\"","ЗК-2017-03-20-13",null,"шт.",500,{"$f":"SUMIFS(Главная_tb[Приход],Главная_tb[Наименование],Договоры_tb[[#This Row],[Наименование]],Главная_tb[Выбор поставщика],Договоры_tb[[#This Row],[Поставщик]],Главная_tb[Операция],\"Получено от поставщика\")","v":0},{"$f":"Договоры_tb[[#This Row],[Объем закупки]]-Договоры_tb[[#This Row],[Получено от поставщика]]","v":500},null,null,"Шприц (20 мл.)"]
[null,null,null,null,null,null,null,null,null,null,"Халат (хир., нест.)",{"$f":"Договоры_tb[[#This Row],[Поставщик22]]&\" (дог. №\"&Договоры_tb[[#This Row],[Договор]]&\") \"&VLOOKUP(Договоры_tb[[#This Row],[Поставщик22]],Поставщики_tb[[Поставщик]:[Контактные данные]],2,)","v":"ООО \"Лабора\" (дог. №ЗК-2017-03-20-13) Внести данные"},"ООО \"Лабора\"","ЗК-2017-03-20-13",null,"шт.",20,{"$f":"SUMIFS(Главная_tb[Приход],Главная_tb[Наименование],Договоры_tb[[#This Row],[Наименование]],Главная_tb[Выбор поставщика],Договоры_tb[[#This Row],[Поставщик]],Главная_tb[Операция],\"Получено от поставщика\")","v":0},{"$f":"Договоры_tb[[#This Row],[Объем закупки]]-Договоры_tb[[#This Row],[Получено от поставщика]]","v":20},null,null,"Шприц (5 мл. 2 иглы)"]
[null,null,null,null,null,null,null,null,null,null,"Шпатель (стер., 100 шт.)",{"$f":"Договоры_tb[[#This Row],[Поставщик22]]&\" (дог. №\"&Договоры_tb[[#This Row],[Договор]]&\") \"&VLOOKUP(Договоры_tb[[#This Row],[Поставщик22]],Поставщики_tb[[Поставщик]:[Контактные данные]],2,)","v":"ООО \"Лабора\" (дог. №ЗК-2017-03-20-13) Внести данные"},"ООО \"Лабора\"","ЗК-2017-03-20-13",null,"шт.",9000,{"$f":"SUMIFS(Главная_tb[Приход],Главная_tb[Наименование],Договоры_tb[[#This Row],[Наименование]],Главная_tb[Выбор поставщика],Договоры_tb[[#This Row],[Поставщик]],Главная_tb[Операция],\"Получено от поставщика\")","v":0},{"$f":"Договоры_tb[[#This Row],[Объем закупки]]-Договоры_tb[[#This Row],[Получено от поставщика]]","v":9000},null,null,"Шприц (5 мл.)"]
[null,null,null,null,null,null,null,null,null,null,"Шприц (1 мл.)",{"$f":"Договоры_tb[[#This Row],[Поставщик22]]&\" (дог. №\"&Договоры_tb[[#This Row],[Договор]]&\") \"&VLOOKUP(Договоры_tb[[#This Row],[Поставщик22]],Поставщики_tb[[Поставщик]:[Контактные данные]],2,)","v":"ООО \"Лабора\" (дог. №ЗК-2017-03-20-13) Внести данные"},"ООО \"Лабора\"","ЗК-2017-03-20-13",null,"шт.",13000,{"$f":"SUMIFS(Главная_tb[Приход],Главная_tb[Наименование],Договоры_tb[[#This Row],[Наименование]],Главная_tb[Выбор поставщика],Договоры_tb[[#This Row],[Поставщик]],Главная_tb[Операция],\"Получено от поставщика\")","v":0},{"$f":"Договоры_tb[[#This Row],[Объем закупки]]-Договоры_tb[[#This Row],[Получено от поставщика]]","v":13000}]
[null,null,null,null,null,null,null,null,null,null,"Шприц (10 мл.)",{"$f":"Договоры_tb[[#This Row],[Поставщик22]]&\" (дог. №\"&Договоры_tb[[#This Row],[Договор]]&\") \"&VLOOKUP(Договоры_tb[[#This Row],[Поставщик22]],Поставщики_tb[[Поставщик]:[Контактные данные]],2,)","v":"ООО \"Лабора\" (дог. №ЗК-2017-03-20-13) Внести данные"},"ООО \"Лабора\"","ЗК-2017-03-20-13",null,"шт.",1000,{"$f":"SUMIFS(Главная_tb[Приход],Главная_tb[Наименование],Договоры_tb[[#This Row],[Наименование]],Главная_tb[Выбор поставщика],Договоры_tb[[#This Row],[Поставщик]],Главная_tb[Операция],\"Получено от поставщика\")","v":0},{"$f":"Договоры_tb[[#This Row],[Объем закупки]]-Договоры_tb[[#This Row],[Получено от поставщика]]","v":1000}]
[null,null,null,null,null,null,null,null,null,null,"Шприц (2 мл. 2 иглы)",{"$f":"Договоры_tb[[#This Row],[Поставщик22]]&\" (дог. №\"&Договоры_tb[[#This Row],[Договор]]&\") \"&VLOOKUP(Договоры_tb[[#This Row],[Поставщик22]],Поставщики_tb[[Поставщик]:[Контактные данные]],2,)","v":"ООО \"Лабора\" (дог. №ЗК-2017-03-20-13) Внести данные"},"ООО \"Лабора\"","ЗК-2017-03-20-13",null,"шт.",1000,{"$f":"SUMIFS(Главная_tb[Приход],Главная_tb[Наименование],Договоры_tb[[#This Row],[Наименование]],Главная_tb[Выбор поставщика],Договоры_tb[[#This Row],[Поставщик]],Главная_tb[Операция],\"Получено от поставщика\")","v":0},{"$f":"Договоры_tb[[#This Row],[Объем закупки]]-Договоры_tb[[#This Row],[Получено от поставщика]]","v":1000}]
[null,null,null,null,null,null,null,null,null,null,"Шприц (2 мл.)",{"$f":"Договоры_tb[[#This Row],[Поставщик22]]&\" (дог. №\"&Договоры_tb[[#This Row],[Договор]]&\") \"&VLOOKUP(Договоры_tb[[#This Row],[Поставщик22]],Поставщики_tb[[Поставщик]:[Контактные данные]],2,)","v":"ООО \"Лабора\" (дог. №ЗК-2017-03-20-13) Внести данные"},"ООО \"Лабора\"","ЗК-2017-03-20-13",null,"шт.",10000,{"$f":"SUMIFS(Главная_tb[Приход],Главная_tb[Наименование],Договоры_tb[[#This Row],[Наименование]],Главная_tb[Выбор поставщика],Договоры_tb[[#This Row],[Поставщик]],Главная_tb[Операция],\"Получено от поставщика\")","v":0},{"$f":"Договоры_tb[[#This Row],[Объем закупки]]-Договоры_tb[[#This Row],[Получено от поставщика]]","v":10000}]
[null,null,null,null,null,null,null,null,null,null,"Шприц (20 мл.)",{"$f":"Договоры_tb[[#This Row],[Поставщик22]]&\" (дог. №\"&Договоры_tb[[#This Row],[Договор]]&\") \"&VLOOKUP(Договоры_tb[[#This Row],[Поставщик22]],Поставщики_tb[[Поставщик]:[Контактные данные]],2,)","v":"ООО \"Лабора\" (дог. №ЗК-2017-03-20-13) Внести данные"},"ООО \"Лабора\"","ЗК-2017-03-20-13",null,"шт.",1500,{"$f":"SUMIFS(Главная_tb[Приход],Главная_tb[Наименование],Договоры_tb[[#This Row],[Наименование]],Главная_tb[Выбор поставщика],Договоры_tb[[#This Row],[Поставщик]],Главная_tb[Операция],\"Получено от поставщика\")","v":0},{"$f":"Договоры_tb[[#This Row],[Объем закупки]]-Договоры_tb[[#This Row],[Получено от поставщика]]","v":1500}]
[null,null,null,null,null,null,null,null,null,null,"Шприц (5 мл. 2 иглы)",{"$f":"Договоры_tb[[#This Row],[Поставщик22]]&\" (дог. №\"&Договоры_tb[[#This Row],[Договор]]&\") \"&VLOOKUP(Договоры_tb[[#This Row],[Поставщик22]],Поставщики_tb[[Поставщик]:[Контактные данные]],2,)","v":"ООО \"Лабора\" (дог. №ЗК-2017-03-20-13) Внести данные"},"ООО \"Лабора\"","ЗК-2017-03-20-13",null,"шт.",500,{"$f":"SUMIFS(Главная_tb[Приход],Главная_tb[Наименование],Договоры_tb[[#This Row],[Наименование]],Главная_tb[Выбор поставщика],Договоры_tb[[#This Row],[Поставщик]],Главная_tb[Операция],\"Получено от поставщика\")","v":0},{"$f":"Договоры_tb[[#This Row],[Объем закупки]]-Договоры_tb[[#This Row],[Получено от поставщика]]","v":500}]
[null,null,null,null,null,null,null,null,null,null,"Шприц (5 мл.)",{"$f":"Договоры_tb[[#This Row],[Поставщик22]]&\" (дог. №\"&Договоры_tb[[#This Row],[Договор]]&\") \"&VLOOKUP(Договоры_tb[[#This Row],[Поставщик22]],Поставщики_tb[[Поставщик]:[Контактные данные]],2,)","v":"ООО \"Лабора\" (дог. №ЗК-2017-03-20-13) Внести данные"},"ООО \"Лабора\"","ЗК-2017-03-20-13",null,"шт.",1500,{"$f":"SUMIFS(Главная_tb[Приход],Главная_tb[Наименование],Договоры_tb[[#This Row],[Наименование]],Главная_tb[Выбор поставщика],Договоры_tb[[#This Row],[Поставщик]],Главная_tb[Операция],\"Получено от поставщика\")","v":0},{"$f":"Договоры_tb[[#This Row],[Объем закупки]]-Договоры_tb[[#This Row],[Получено от поставщика]]","v":1500}]
[null,null,null,null,null,null,null,null,null,null,"Адреналин гидрохлорид (р-р, 0,1%, 1 мл.)",{"$f":"Договоры_tb[[#This Row],[Поставщик22]]&\" (дог. №\"&Договоры_tb[[#This Row],[Договор]]&\") \"&VLOOKUP(Договоры_tb[[#This Row],[Поставщик22]],Поставщики_tb[[Поставщик]:[Контактные данные]],2,)","v":"ООО \"Восток-Интертрейд\" (дог. №ЗК-2017-04-03-15) Внести данные"},"ООО \"Восток-Интертрейд\"","ЗК-2017-04-03-15",null,"уп.",20,{"$f":"SUMIFS(Главная_tb[Приход],Главная_tb[Наименование],Договоры_tb[[#This Row],[Наименование]],Главная_tb[Выбор поставщика],Договоры_tb[[#This Row],[Поставщик]],Главная_tb[Операция],\"Получено от поставщика\")","v":0},{"$f":"Договоры_tb[[#This Row],[Объем закупки]]-Договоры_tb[[#This Row],[Получено от поставщика]]","v":20}]
[null,null,null,null,null,null,null,null,null,null,"Актовегин (р-р, 5 мл., №5)",{"$f":"Договоры_tb[[#This Row],[Поставщик22]]&\" (дог. №\"&Договоры_tb[[#This Row],[Договор]]&\") \"&VLOOKUP(Договоры_tb[[#This Row],[Поставщик22]],Поставщики_tb[[Поставщик]:[Контактные данные]],2,)","v":"ООО \"Восток-Интертрейд\" (дог. №ЗК-2017-04-03-15) Внести данные"},"ООО \"Восток-Интертрейд\"","ЗК-2017-04-03-15",null,"уп.",2,{"$f":"SUMIFS(Главная_tb[Приход],Главная_tb[Наименование],Договоры_tb[[#This Row],[Наименование]],Главная_tb[Выбор поставщика],Договоры_tb[[#This Row],[Поставщик]],Главная_tb[Операция],\"Получено от поставщика\")","v":0},{"$f":"Договоры_tb[[#This Row],[Объем закупки]]-Договоры_tb[[#This Row],[Получено от поставщика]]","v":2}]
[null,null,null,null,null,null,null,null,null,null,"Амброксол (р-р для приема внутрь и ингаляций, 7,5 мг./1 мл., 100 мл.)",{"$f":"Договоры_tb[[#This Row],[Поставщик22]]&\" (дог. №\"&Договоры_tb[[#This Row],[Договор]]&\") \"&VLOOKUP(Договоры_tb[[#This Row],[Поставщик22]],Поставщики_tb[[Поставщик]:[Контактные данные]],2,)","v":"ООО \"Восток-Интертрейд\" (дог. №ЗК-2017-04-03-15) Внести данные"},"ООО \"Восток-Интертрейд\"","ЗК-2017-04-03-15",null,"уп.",10,{"$f":"SUMIFS(Главная_tb[Приход],Главная_tb[Наименование],Договоры_tb[[#This Row],[Наименование]],Главная_tb[Выбор поставщика],Договоры_tb[[#This Row],[Поставщик]],Главная_tb[Операция],\"Получено от поставщика\")","v":0},{"$f":"Договоры_tb[[#This Row],[Объем закупки]]-Договоры_tb[[#This Row],[Получено от поставщика]]","v":10}]
[null,null,null,null,null,null,null,null,null,null,"Аммиака раствор (амп., 10%, 40 мл.)",{"$f":"Договоры_tb[[#This Row],[Поставщик22]]&\" (дог. №\"&Договоры_tb[[#This Row],[Договор]]&\") \"&VLOOKUP(Договоры_tb[[#This Row],[Поставщик22]],Поставщики_tb[[Поставщик]:[Контактные данные]],2,)","v":"ООО \"Восток-Интертрейд\" (дог. №ЗК-2017-04-03-15) Внести данные"},"ООО \"Восток-Интертрейд\"","ЗК-2017-04-03-15",null,"фл.",50,{"$f":"SUMIFS(Главная_tb[Приход],Главная_tb[Наименование],Договоры_tb[[#This Row],[Наименование]],Главная_tb[Выбор поставщика],Договоры_tb[[#This Row],[Поставщик]],Главная_tb[Операция],\"Получено от поставщика\")","v":0},{"$f":"Договоры_tb[[#This Row],[Объем закупки]]-Договоры_tb[[#This Row],[Получено от поставщика]]","v":50}]
[null,null,null,null,null,null,null,null,null,null,"Беродуал (р-р для ингаляций флакон/кап. по 20 мл.)",{"$f":"Договоры_tb[[#This Row],[Поставщик22]]&\" (дог. №\"&Договоры_tb[[#This Row],[Договор]]&\") \"&VLOOKUP(Договоры_tb[[#This Row],[Поставщик22]],Поставщики_tb[[Поставщик]:[Контактные данные]],2,)","v":"ООО \"Восток-Интертрейд\" (дог. №ЗК-2017-04-03-15) Внести данные"},"ООО \"Восток-Интертрейд\"","ЗК-2017-04-03-15",null,"уп.",10,{"$f":"SUMIFS(Главная_tb[Приход],Главная_tb[Наименование],Договоры_tb[[#This Row],[Наименование]],Главная_tb[Выбор поставщика],Договоры_tb[[#This Row],[Поставщик]],Главная_tb[Операция],\"Получено от поставщика\")","v":0},{"$f":"Договоры_tb[[#This Row],[Объем закупки]]-Договоры_tb[[#This Row],[Получено от поставщика]]","v":10}]
[null,null,null,null,null,null,null,null,null,null,"Бинт (нест., 10 м.х15 см.)",{"$f":"Договоры_tb[[#This Row],[Поставщик22]]&\" (дог. №\"&Договоры_tb[[#This Row],[Договор]]&\") \"&VLOOKUP(Договоры_tb[[#This Row],[Поставщик22]],Поставщики_tb[[Поставщик]:[Контактные данные]],2,)","v":"ООО \"Восток-Интертрейд\" (дог. №ЗК-2017-04-03-15) Внести данные"},"ООО \"Восток-Интертрейд\"","ЗК-2017-04-03-15",null,"шт.",200,{"$f":"SUMIFS(Главная_tb[Приход],Главная_tb[Наименование],Договоры_tb[[#This Row],[Наименование]],Главная_tb[Выбор поставщика],Договоры_tb[[#This Row],[Поставщик]],Главная_tb[Операция],\"Получено от поставщика\")","v":0},{"$f":"Договоры_tb[[#This Row],[Объем закупки]]-Договоры_tb[[#This Row],[Получено от поставщика]]","v":200}]
[null,null,null,null,null,null,null,null,null,null,"Бинт (нест., 5 м.х10 см.)",{"$f":"Договоры_tb[[#This Row],[Поставщик22]]&\" (дог. №\"&Договоры_tb[[#This Row],[Договор]]&\") \"&VLOOKUP(Договоры_tb[[#This Row],[Поставщик22]],Поставщики_tb[[Поставщик]:[Контактные данные]],2,)","v":"ООО \"Восток-Интертрейд\" (дог. №ЗК-2017-04-03-15) Внести данные"},"ООО \"Восток-Интертрейд\"","ЗК-2017-04-03-15",null,"шт.",700,{"$f":"SUMIFS(Главная_tb[Приход],Главная_tb[Наименование],Договоры_tb[[#This Row],[Наименование]],Главная_tb[Выбор поставщика],Договоры_tb[[#This Row],[Поставщик]],Главная_tb[Операция],\"Получено от поставщика\")","v":0},{"$f":"Договоры_tb[[#This Row],[Объем закупки]]-Договоры_tb[[#This Row],[Получено от поставщика]]","v":700}]
[null,null,null,null,null,null,null,null,null,null,"Бинт (стер. 10 м.х15 см.)",{"$f":"Договоры_tb[[#This Row],[Поставщик22]]&\" (дог. №\"&Договоры_tb[[#This Row],[Договор]]&\") \"&VLOOKUP(Договоры_tb[[#This Row],[Поставщик22]],Поставщики_tb[[Поставщик]:[Контактные данные]],2,)","v":"ООО \"Восток-Интертрейд\" (дог. №ЗК-2017-04-03-15) Внести данные"},"ООО \"Восток-Интертрейд\"","ЗК-2017-04-03-15",null,"шт.",80,{"$f":"SUMIFS(Главная_tb[Приход],Главная_tb[Наименование],Договоры_tb[[#This Row],[Наименование]],Главная_tb[Выбор поставщика],Договоры_tb[[#This Row],[Поставщик]],Главная_tb[Операция],\"Получено от поставщика\")","v":0},{"$f":"Договоры_tb[[#This Row],[Объем закупки]]-Договоры_tb[[#This Row],[Получено от поставщика]]","v":80}]
[null,null,null,null,null,null,null,null,null,null,"Бинт (стер. 5 м.х10 см.)",{"$f":"Договоры_tb[[#This Row],[Поставщик22]]&\" (дог. №\"&Договоры_tb[[#This Row],[Договор]]&\") \"&VLOOKUP(Договоры_tb[[#This Row],[Поставщик22]],Поставщики_tb[[Поставщик]:[Контактные данные]],2,)","v":"ООО \"Восток-Интертрейд\" (дог. №ЗК-2017-04-03-15) Внести данные"},"ООО \"Восток-Интертрейд\"","ЗК-2017-04-03-15",null,"шт.",600,{"$f":"SUMIFS(Главная_tb[Приход],Главная_tb[Наименование],Договоры_tb[[#This Row],[Наименование]],Главная_tb[Выбор поставщика],Договоры_tb[[#This Row],[Поставщик]],Главная_tb[Операция],\"Получено от поставщика\")","v":0},{"$f":"Договоры_tb[[#This Row],[Объем закупки]]-Договоры_tb[[#This Row],[Получено от поставщика]]","v":600}]
[null,null,null,null,null,null,null,null,null,null,"Бриллиантовый зеленый (амп., 1%, 10 мл.)",{"$f":"Договоры_tb[[#This Row],[Поставщик22]]&\" (дог. №\"&Договоры_tb[[#This Row],[Договор]]&\") \"&VLOOKUP(Договоры_tb[[#This Row],[Поставщик22]],Поставщики_tb[[Поставщик]:[Контактные данные]],2,)","v":"ООО \"Восток-Интертрейд\" (дог. №ЗК-2017-04-03-15) Внести данные"},"ООО \"Восток-Интертрейд\"","ЗК-2017-04-03-15",null,"шт.",140,{"$f":"SUMIFS(Главная_tb[Приход],Главная_tb[Наименование],Договоры_tb[[#This Row],[Наименование]],Главная_tb[Выбор поставщика],Договоры_tb[[#This Row],[Поставщик]],Главная_tb[Операция],\"Получено от поставщика\")","v":0},{"$f":"Договоры_tb[[#This Row],[Объем закупки]]-Договоры_tb[[#This Row],[Получено от поставщика]]","v":140}]
[null,null,null,null,null,null,null,null,null,null,"Вазелиновое масло (100 мл.)",{"$f":"Договоры_tb[[#This Row],[Поставщик22]]&\" (дог. №\"&Договоры_tb[[#This Row],[Договор]]&\") \"&VLOOKUP(Договоры_tb[[#This Row],[Поставщик22]],Поставщики_tb[[Поставщик]:[Контактные данные]],2,)","v":"ООО \"Восток-Интертрейд\" (дог. №ЗК-2017-04-03-15) Внести данные"},"ООО \"Восток-Интертрейд\"","ЗК-2017-04-03-15",null,"шт.",150,{"$f":"SUMIFS(Главная_tb[Приход],Главная_tb[Наименование],Договоры_tb[[#This Row],[Наименование]],Главная_tb[Выбор поставщика],Договоры_tb[[#This Row],[Поставщик]],Главная_tb[Операция],\"Получено от поставщика\")","v":0},{"$f":"Договоры_tb[[#This Row],[Объем закупки]]-Договоры_tb[[#This Row],[Получено от поставщика]]","v":150}]
[null,null,null,null,null,null,null,null,null,null,"Вата (нест. 100 гр.)",{"$f":"Договоры_tb[[#This Row],[Поставщик22]]&\" (дог. №\"&Договоры_tb[[#This Row],[Договор]]&\") \"&VLOOKUP(Договоры_tb[[#This Row],[Поставщик22]],Поставщики_tb[[Поставщик]:[Контактные данные]],2,)","v":"ООО \"Восток-Интертрейд\" (дог. №ЗК-2017-04-03-15) Внести данные"},"ООО \"Восток-Интертрейд\"","ЗК-2017-04-03-15",null,"уп.",70,{"$f":"SUMIFS(Главная_tb[Приход],Главная_tb[Наименование],Договоры_tb[[#This Row],[Наименование]],Главная_tb[Выбор поставщика],Договоры_tb[[#This Row],[Поставщик]],Главная_tb[Операция],\"Получено от поставщика\")","v":0},{"$f":"Договоры_tb[[#This Row],[Объем закупки]]-Договоры_tb[[#This Row],[Получено от поставщика]]","v":70}]
[null,null,null,null,null,null,null,null,null,null,"Вата (нест. 250 гр.)",{"$f":"Договоры_tb[[#This Row],[Поставщик22]]&\" (дог. №\"&Договоры_tb[[#This Row],[Договор]]&\") \"&VLOOKUP(Договоры_tb[[#This Row],[Поставщик22]],Поставщики_tb[[Поставщик]:[Контактные данные]],2,)","v":"ООО \"Восток-Интертрейд\" (дог. №ЗК-2017-04-03-15) Внести данные"},"ООО \"Восток-Интертрейд\"","ЗК-2017-04-03-15",null,"уп.",60,{"$f":"SUMIFS(Главная_tb[Приход],Главная_tb[Наименование],Договоры_tb[[#This Row],[Наименование]],Главная_tb[Выбор поставщика],Договоры_tb[[#This Row],[Поставщик]],Главная_tb[Операция],\"Получено от поставщика\")","v":0},{"$f":"Договоры_tb[[#This Row],[Объем закупки]]-Договоры_tb[[#This Row],[Получено от поставщика]]","v":60}]
[null,null,null,null,null,null,null,null,null,null,"Вата (стер. 100 гр.)",{"$f":"Договоры_tb[[#This Row],[Поставщик22]]&\" (дог. №\"&Договоры_tb[[#This Row],[Договор]]&\") \"&VLOOKUP(Договоры_tb[[#This Row],[Поставщик22]],Поставщики_tb[[Поставщик]:[Контактные данные]],2,)","v":"ООО \"Восток-Интертрейд\" (дог. №ЗК-2017-04-03-15) Внести данные"},"ООО \"Восток-Интертрейд\"","ЗК-2017-04-03-15",null,"уп.",5,{"$f":"SUMIFS(Главная_tb[Приход],Главная_tb[Наименование],Договоры_tb[[#This Row],[Наименование]],Главная_tb[Выбор поставщика],Договоры_tb[[#This Row],[Поставщик]],Главная_tb[Операция],\"Получено от поставщика\")","v":0},{"$f":"Договоры_tb[[#This Row],[Объем закупки]]-Договоры_tb[[#This Row],[Получено от поставщика]]","v":5}]
[null,null,null,null,null,null,null,null,null,null,"Винпоцетин (таб., 5 мг., №10)",{"$f":"Договоры_tb[[#This Row],[Поставщик22]]&\" (дог. №\"&Договоры_tb[[#This Row],[Договор]]&\") \"&VLOOKUP(Договоры_tb[[#This Row],[Поставщик22]],Поставщики_tb[[Поставщик]:[Контактные данные]],2,)","v":"ООО \"Восток-Интертрейд\" (дог. №ЗК-2017-04-03-15) Внести данные"},"ООО \"Восток-Интертрейд\"","ЗК-2017-04-03-15",null,"уп.",70,{"$f":"SUMIFS(Главная_tb[Приход],Главная_tb[Наименование],Договоры_tb[[#This Row],[Наименование]],Главная_tb[Выбор поставщика],Договоры_tb[[#This Row],[Поставщик]],Главная_tb[Операция],\"Получено от поставщика\")","v":0},{"$f":"Договоры_tb[[#This Row],[Объем закупки]]-Договоры_tb[[#This Row],[Получено от поставщика]]","v":70}]
[null,null,null,null,null,null,null,null,null,null,"Винпоцетин-АКОС (амп., 2 мл., №10)",{"$f":"Договоры_tb[[#This Row],[Поставщик22]]&\" (дог. №\"&Договоры_tb[[#This Row],[Договор]]&\") \"&VLOOKUP(Договоры_tb[[#This Row],[Поставщик22]],Поставщики_tb[[Поставщик]:[Контактные данные]],2,)","v":"ООО \"Восток-Интертрейд\" (дог. №ЗК-2017-04-03-15) Внести данные"},"ООО \"Восток-Интертрейд\"","ЗК-2017-04-03-15",null,"уп.",20,{"$f":"SUMIFS(Главная_tb[Приход],Главная_tb[Наименование],Договоры_tb[[#This Row],[Наименование]],Главная_tb[Выбор поставщика],Договоры_tb[[#This Row],[Поставщик]],Главная_tb[Операция],\"Получено от поставщика\")","v":0},{"$f":"Договоры_tb[[#This Row],[Объем закупки]]-Договоры_tb[[#This Row],[Получено от поставщика]]","v":20}]
[null,null,null,null,null,null,null,null,null,null,"Вода дистиллированная (амп., 50 мл., №10)",{"$f":"Договоры_tb[[#This Row],[Поставщик22]]&\" (дог. №\"&Договоры_tb[[#This Row],[Договор]]&\") \"&VLOOKUP(Договоры_tb[[#This Row],[Поставщик22]],Поставщики_tb[[Поставщик]:[Контактные данные]],2,)","v":"ООО \"Восток-Интертрейд\" (дог. №ЗК-2017-04-03-15) Внести данные"},"ООО \"Восток-Интертрейд\"","ЗК-2017-04-03-15",null,"уп.",60,{"$f":"SUMIFS(Главная_tb[Приход],Главная_tb[Наименование],Договоры_tb[[#This Row],[Наименование]],Главная_tb[Выбор поставщика],Договоры_tb[[#This Row],[Поставщик]],Главная_tb[Операция],\"Получено от поставщика\")","v":0},{"$f":"Договоры_tb[[#This Row],[Объем закупки]]-Договоры_tb[[#This Row],[Получено от поставщика]]","v":60}]
[null,null,null,null,null,null,null,null,null,null,"Глицин (таб., 100 мг., №50)",{"$f":"Договоры_tb[[#This Row],[Поставщик22]]&\" (дог. №\"&Договоры_tb[[#This Row],[Договор]]&\") \"&VLOOKUP(Договоры_tb[[#This Row],[Поставщик22]],Поставщики_tb[[Поставщик]:[Контактные данные]],2,)","v":"ООО \"Восток-Интертрейд\" (дог. №ЗК-2017-04-03-15) Внести данные"},"ООО \"Восток-Интертрейд\"","ЗК-2017-04-03-15",null,"уп.",75,{"$f":"SUMIFS(Главная_tb[Приход],Главная_tb[Наименование],Договоры_tb[[#This Row],[Наименование]],Главная_tb[Выбор поставщика],Договоры_tb[[#This Row],[Поставщик]],Главная_tb[Операция],\"Получено от поставщика\")","v":0},{"$f":"Договоры_tb[[#This Row],[Объем закупки]]-Договоры_tb[[#This Row],[Получено от поставщика]]","v":75}]
[null,null,null,null,null,null,null,null,null,null,"Губка гемостатическая коллагеновая (90х90 мм., №1)",{"$f":"Договоры_tb[[#This Row],[Поставщик22]]&\" (дог. №\"&Договоры_tb[[#This Row],[Договор]]&\") \"&VLOOKUP(Договоры_tb[[#This Row],[Поставщик22]],Поставщики_tb[[Поставщик]:[Контактные данные]],2,)","v":"ООО \"Восток-Интертрейд\" (дог. №ЗК-2017-04-03-15) Внести данные"},"ООО \"Восток-Интертрейд\"","ЗК-2017-04-03-15",null,"уп.",150,{"$f":"SUMIFS(Главная_tb[Приход],Главная_tb[Наименование],Договоры_tb[[#This Row],[Наименование]],Главная_tb[Выбор поставщика],Договоры_tb[[#This Row],[Поставщик]],Главная_tb[Операция],\"Получено от поставщика\")","v":0},{"$f":"Договоры_tb[[#This Row],[Объем закупки]]-Договоры_tb[[#This Row],[Получено от поставщика]]","v":150}]
[null,null,null,null,null,null,null,null,null,null,"Дексаметазон (сусп., 5 мл., №1)",{"$f":"Договоры_tb[[#This Row],[Поставщик22]]&\" (дог. №\"&Договоры_tb[[#This Row],[Договор]]&\") \"&VLOOKUP(Договоры_tb[[#This Row],[Поставщик22]],Поставщики_tb[[Поставщик]:[Контактные данные]],2,)","v":"ООО \"Восток-Интертрейд\" (дог. №ЗК-2017-04-03-15) Внести данные"},"ООО \"Восток-Интертрейд\"","ЗК-2017-04-03-15",null,"уп.",3,{"$f":"SUMIFS(Главная_tb[Приход],Главная_tb[Наименование],Договоры_tb[[#This Row],[Наименование]],Главная_tb[Выбор поставщика],Договоры_tb[[#This Row],[Поставщик]],Главная_tb[Операция],\"Получено от поставщика\")","v":0},{"$f":"Договоры_tb[[#This Row],[Объем закупки]]-Договоры_tb[[#This Row],[Получено от поставщика]]","v":3}]
[null,null,null,null,null,null,null,null,null,null,"Димексид (100 мл.)",{"$f":"Договоры_tb[[#This Row],[Поставщик22]]&\" (дог. №\"&Договоры_tb[[#This Row],[Договор]]&\") \"&VLOOKUP(Договоры_tb[[#This Row],[Поставщик22]],Поставщики_tb[[Поставщик]:[Контактные данные]],2,)","v":"ООО \"Восток-Интертрейд\" (дог. №ЗК-2017-04-03-15) Внести данные"},"ООО \"Восток-Интертрейд\"","ЗК-2017-04-03-15",null,"уп.",4,{"$f":"SUMIFS(Главная_tb[Приход],Главная_tb[Наименование],Договоры_tb[[#This Row],[Наименование]],Главная_tb[Выбор поставщика],Договоры_tb[[#This Row],[Поставщик]],Главная_tb[Операция],\"Получено от поставщика\")","v":0},{"$f":"Договоры_tb[[#This Row],[Объем закупки]]-Договоры_tb[[#This Row],[Получено от поставщика]]","v":4}]
[null,null,null,null,null,null,null,null,null,null,"Лейкопластырь (бактер. 2х6 см.)",{"$f":"Договоры_tb[[#This Row],[Поставщик22]]&\" (дог. №\"&Договоры_tb[[#This Row],[Договор]]&\") \"&VLOOKUP(Договоры_tb[[#This Row],[Поставщик22]],Поставщики_tb[[Поставщик]:[Контактные данные]],2,)","v":"ООО \"Восток-Интертрейд\" (дог. №ЗК-2017-04-03-15) Внести данные"},"ООО \"Восток-Интертрейд\"","ЗК-2017-04-03-15",null,"шт.",800,{"$f":"SUMIFS(Главная_tb[Приход],Главная_tb[Наименование],Договоры_tb[[#This Row],[Наименование]],Главная_tb[Выбор поставщика],Договоры_tb[[#This Row],[Поставщик]],Главная_tb[Операция],\"Получено от поставщика\")","v":0},{"$f":"Договоры_tb[[#This Row],[Объем закупки]]-Договоры_tb[[#This Row],[Получено от поставщика]]","v":800}]
[null,null,null,null,null,null,null,null,null,null,"Лейкопластырь (катушка, 2х500 см.)",{"$f":"Договоры_tb[[#This Row],[Поставщик22]]&\" (дог. №\"&Договоры_tb[[#This Row],[Договор]]&\") \"&VLOOKUP(Договоры_tb[[#This Row],[Поставщик22]],Поставщики_tb[[Поставщик]:[Контактные данные]],2,)","v":"ООО \"Восток-Интертрейд\" (дог. №ЗК-2017-04-03-15) Внести данные"},"ООО \"Восток-Интертрейд\"","ЗК-2017-04-03-15",null,"шт.",60,{"$f":"SUMIFS(Главная_tb[Приход],Главная_tb[Наименование],Договоры_tb[[#This Row],[Наименование]],Главная_tb[Выбор поставщика],Договоры_tb[[#This Row],[Поставщик]],Главная_tb[Операция],\"Получено от поставщика\")","v":0},{"$f":"Договоры_tb[[#This Row],[Объем закупки]]-Договоры_tb[[#This Row],[Получено от поставщика]]","v":60}]
[null,null,null,null,null,null,null,null,null,null,"Лидокаин (амп., 2%, №10)",{"$f":"Договоры_tb[[#This Row],[Поставщик22]]&\" (дог. №\"&Договоры_tb[[#This Row],[Договор]]&\") \"&VLOOKUP(Договоры_tb[[#This Row],[Поставщик22]],Поставщики_tb[[Поставщик]:[Контактные данные]],2,)","v":"ООО \"Восток-Интертрейд\" (дог. №ЗК-2017-04-03-15) Внести данные"},"ООО \"Восток-Интертрейд\"","ЗК-2017-04-03-15",null,"уп.",5,{"$f":"SUMIFS(Главная_tb[Приход],Главная_tb[Наименование],Договоры_tb[[#This Row],[Наименование]],Главная_tb[Выбор поставщика],Договоры_tb[[#This Row],[Поставщик]],Главная_tb[Операция],\"Получено от поставщика\")","v":0},{"$f":"Договоры_tb[[#This Row],[Объем закупки]]-Договоры_tb[[#This Row],[Получено от поставщика]]","v":5}]
[null,null,null,null,null,null,null,null,null,null,"Лидокаин (спрей, 10%, 38 гр.)",{"$f":"Договоры_tb[[#This Row],[Поставщик22]]&\" (дог. №\"&Договоры_tb[[#This Row],[Договор]]&\") \"&VLOOKUP(Договоры_tb[[#This Row],[Поставщик22]],Поставщики_tb[[Поставщик]:[Контактные данные]],2,)","v":"ООО \"Восток-Интертрейд\" (дог. №ЗК-2017-04-03-15) Внести данные"},"ООО \"Восток-Интертрейд\"","ЗК-2017-04-03-15",null,"уп.",3,{"$f":"SUMIFS(Главная_tb[Приход],Главная_tb[Наименование],Договоры_tb[[#This Row],[Наименование]],Главная_tb[Выбор поставщика],Договоры_tb[[#This Row],[Поставщик]],Главная_tb[Операция],\"Получено от поставщика\")","v":0},{"$f":"Договоры_tb[[#This Row],[Объем закупки]]-Договоры_tb[[#This Row],[Получено от поставщика]]","v":3}]
[null,null,null,null,null,null,null,null,null,null,"Линкомицин (амп., 1 мл., №10)",{"$f":"Договоры_tb[[#This Row],[Поставщик22]]&\" (дог. №\"&Договоры_tb[[#This Row],[Договор]]&\") \"&VLOOKUP(Договоры_tb[[#This Row],[Поставщик22]],Поставщики_tb[[Поставщик]:[Контактные данные]],2,)","v":"ООО \"Восток-Интертрейд\" (дог. №ЗК-2017-04-03-15) Внести данные"},"ООО \"Восток-Интертрейд\"","ЗК-2017-04-03-15",null,"уп.",4,{"$f":"SUMIFS(Главная_tb[Приход],Главная_tb[Наименование],Договоры_tb[[#This Row],[Наименование]],Главная_tb[Выбор поставщика],Договоры_tb[[#This Row],[Поставщик]],Главная_tb[Операция],\"Получено от поставщика\")","v":0},{"$f":"Договоры_tb[[#This Row],[Объем закупки]]-Договоры_tb[[#This Row],[Получено от поставщика]]","v":4}]
[null,null,null,null,null,null,null,null,null,null,"Мазь гидрокортизоновая (0,5%, 5 мл.)",{"$f":"Договоры_tb[[#This Row],[Поставщик22]]&\" (дог. №\"&Договоры_tb[[#This Row],[Договор]]&\") \"&VLOOKUP(Договоры_tb[[#This Row],[Поставщик22]],Поставщики_tb[[Поставщик]:[Контактные данные]],2,)","v":"ООО \"Восток-Интертрейд\" (дог. №ЗК-2017-04-03-15) Внести данные"},"ООО \"Восток-Интертрейд\"","ЗК-2017-04-03-15",null,"уп.",4,{"$f":"SUMIFS(Главная_tb[Приход],Главная_tb[Наименование],Договоры_tb[[#This Row],[Наименование]],Главная_tb[Выбор поставщика],Договоры_tb[[#This Row],[Поставщик]],Главная_tb[Операция],\"Получено от поставщика\")","v":0},{"$f":"Договоры_tb[[#This Row],[Объем закупки]]-Договоры_tb[[#This Row],[Получено от поставщика]]","v":4}]
[null,null,null,null,null,null,null,null,null,null,"Мазь левомеколь (40 гр.)",{"$f":"Договоры_tb[[#This Row],[Поставщик22]]&\" (дог. №\"&Договоры_tb[[#This Row],[Договор]]&\") \"&VLOOKUP(Договоры_tb[[#This Row],[Поставщик22]],Поставщики_tb[[Поставщик]:[Контактные данные]],2,)","v":"ООО \"Восток-Интертрейд\" (дог. №ЗК-2017-04-03-15) Внести данные"},"ООО \"Восток-Интертрейд\"","ЗК-2017-04-03-15",null,"уп.",7,{"$f":"SUMIFS(Главная_tb[Приход],Главная_tb[Наименование],Договоры_tb[[#This Row],[Наименование]],Главная_tb[Выбор поставщика],Договоры_tb[[#This Row],[Поставщик]],Главная_tb[Операция],\"Получено от поставщика\")","v":0},{"$f":"Договоры_tb[[#This Row],[Объем закупки]]-Договоры_tb[[#This Row],[Получено от поставщика]]","v":7}]
[null,null,null,null,null,null,null,null,null,null,"Мазь тетрациклиновая (1%, 5 гр.)",{"$f":"Договоры_tb[[#This Row],[Поставщик22]]&\" (дог. №\"&Договоры_tb[[#This Row],[Договор]]&\") \"&VLOOKUP(Договоры_tb[[#This Row],[Поставщик22]],Поставщики_tb[[Поставщик]:[Контактные данные]],2,)","v":"ООО \"Восток-Интертрейд\" (дог. №ЗК-2017-04-03-15) Внести данные"},"ООО \"Восток-Интертрейд\"","ЗК-2017-04-03-15",null,"уп.",2,{"$f":"SUMIFS(Главная_tb[Приход],Главная_tb[Наименование],Договоры_tb[[#This Row],[Наименование]],Главная_tb[Выбор поставщика],Договоры_tb[[#This Row],[Поставщик]],Главная_tb[Операция],\"Получено от поставщика\")","v":0},{"$f":"Договоры_tb[[#This Row],[Объем закупки]]-Договоры_tb[[#This Row],[Получено от поставщика]]","v":2}]
[null,null,null,null,null,null,null,null,null,null,"Марля (нестр.)",{"$f":"Договоры_tb[[#This Row],[Поставщик22]]&\" (дог. №\"&Договоры_tb[[#This Row],[Договор]]&\") \"&VLOOKUP(Договоры_tb[[#This Row],[Поставщик22]],Поставщики_tb[[Поставщик]:[Контактные данные]],2,)","v":"ООО \"Восток-Интертрейд\" (дог. №ЗК-2017-04-03-15) Внести данные"},"ООО \"Восток-Интертрейд\"","ЗК-2017-04-03-15",null,"м",150,{"$f":"SUMIFS(Главная_tb[Приход],Главная_tb[Наименование],Договоры_tb[[#This Row],[Наименование]],Главная_tb[Выбор поставщика],Договоры_tb[[#This Row],[Поставщик]],Главная_tb[Операция],\"Получено от поставщика\")","v":0},{"$f":"Договоры_tb[[#This Row],[Объем закупки]]-Договоры_tb[[#This Row],[Получено от поставщика]]","v":150}]
[null,null,null,null,null,null,null,null,null,null,"Мексидол (амп., 5%, 50 мг.- 2 мл., №10)",{"$f":"Договоры_tb[[#This Row],[Поставщик22]]&\" (дог. №\"&Договоры_tb[[#This Row],[Договор]]&\") \"&VLOOKUP(Договоры_tb[[#This Row],[Поставщик22]],Поставщики_tb[[Поставщик]:[Контактные данные]],2,)","v":"ООО \"Восток-Интертрейд\" (дог. №ЗК-2017-04-03-15) Внести данные"},"ООО \"Восток-Интертрейд\"","ЗК-2017-04-03-15",null,"уп.",50,{"$f":"SUMIFS(Главная_tb[Приход],Главная_tb[Наименование],Договоры_tb[[#This Row],[Наименование]],Главная_tb[Выбор поставщика],Договоры_tb[[#This Row],[Поставщик]],Главная_tb[Операция],\"Получено от поставщика\")","v":0},{"$f":"Договоры_tb[[#This Row],[Объем закупки]]-Договоры_tb[[#This Row],[Получено от поставщика]]","v":50}]
[null,null,null,null,null,null,null,null,null,null,"Мексидол (таб., 125 мг., №50)",{"$f":"Договоры_tb[[#This Row],[Поставщик22]]&\" (дог. №\"&Договоры_tb[[#This Row],[Договор]]&\") \"&VLOOKUP(Договоры_tb[[#This Row],[Поставщик22]],Поставщики_tb[[Поставщик]:[Контактные данные]],2,)","v":"ООО \"Восток-Интертрейд\" (дог. №ЗК-2017-04-03-15) Внести данные"},"ООО \"Восток-Интертрейд\"","ЗК-2017-04-03-15",null,"уп.",20,{"$f":"SUMIFS(Главная_tb[Приход],Главная_tb[Наименование],Договоры_tb[[#This Row],[Наименование]],Главная_tb[Выбор поставщика],Договоры_tb[[#This Row],[Поставщик]],Главная_tb[Операция],\"Получено от поставщика\")","v":0},{"$f":"Договоры_tb[[#This Row],[Объем закупки]]-Договоры_tb[[#This Row],[Получено от поставщика]]","v":20}]
[null,null,null,null,null,null,null,null,null,null,"Напальчник",{"$f":"Договоры_tb[[#This Row],[Поставщик22]]&\" (дог. №\"&Договоры_tb[[#This Row],[Договор]]&\") \"&VLOOKUP(Договоры_tb[[#This Row],[Поставщик22]],Поставщики_tb[[Поставщик]:[Контактные данные]],2,)","v":"ООО \"Восток-Интертрейд\" (дог. №ЗК-2017-04-03-15) Внести данные"},"ООО \"Восток-Интертрейд\"","ЗК-2017-04-03-15",null,"шт.",135,{"$f":"SUMIFS(Главная_tb[Приход],Главная_tb[Наименование],Договоры_tb[[#This Row],[Наименование]],Главная_tb[Выбор поставщика],Договоры_tb[[#This Row],[Поставщик]],Главная_tb[Операция],\"Получено от поставщика\")","v":0},{"$f":"Договоры_tb[[#This Row],[Объем закупки]]-Договоры_tb[[#This Row],[Получено от поставщика]]","v":135}]
[null,null,null,null,null,null,null,null,null,null,"Настойка йода (амп., 5%, 10 мл.)",{"$f":"Договоры_tb[[#This Row],[Поставщик22]]&\" (дог. №\"&Договоры_tb[[#This Row],[Договор]]&\") \"&VLOOKUP(Договоры_tb[[#This Row],[Поставщик22]],Поставщики_tb[[Поставщик]:[Контактные данные]],2,)","v":"ООО \"Восток-Интертрейд\" (дог. №ЗК-2017-04-03-15) Внести данные"},"ООО \"Восток-Интертрейд\"","ЗК-2017-04-03-15",null,"уп.",140,{"$f":"SUMIFS(Главная_tb[Приход],Главная_tb[Наименование],Договоры_tb[[#This Row],[Наименование]],Главная_tb[Выбор поставщика],Договоры_tb[[#This Row],[Поставщик]],Главная_tb[Операция],\"Получено от поставщика\")","v":0},{"$f":"Договоры_tb[[#This Row],[Объем закупки]]-Договоры_tb[[#This Row],[Получено от поставщика]]","v":140}]
[null,null,null,null,null,null,null,null,null,null,"Натрия хлорид (амп., 0,9%, 10 мл., №10)",{"$f":"Договоры_tb[[#This Row],[Поставщик22]]&\" (дог. №\"&Договоры_tb[[#This Row],[Договор]]&\") \"&VLOOKUP(Договоры_tb[[#This Row],[Поставщик22]],Поставщики_tb[[Поставщик]:[Контактные данные]],2,)","v":"ООО \"Восток-Интертрейд\" (дог. №ЗК-2017-04-03-15) Внести данные"},"ООО \"Восток-Интертрейд\"","ЗК-2017-04-03-15",null,"уп.",40,{"$f":"SUMIFS(Главная_tb[Приход],Главная_tb[Наименование],Договоры_tb[[#This Row],[Наименование]],Главная_tb[Выбор поставщика],Договоры_tb[[#This Row],[Поставщик]],Главная_tb[Операция],\"Получено от поставщика\")","v":0},{"$f":"Договоры_tb[[#This Row],[Объем закупки]]-Договоры_tb[[#This Row],[Получено от поставщика]]","v":40}]
[null,null,null,null,null,null,null,null,null,null,"Натрия хлорид (амп., 0,9%, 5 мл., №10)",{"$f":"Договоры_tb[[#This Row],[Поставщик22]]&\" (дог. №\"&Договоры_tb[[#This Row],[Договор]]&\") \"&VLOOKUP(Договоры_tb[[#This Row],[Поставщик22]],Поставщики_tb[[Поставщик]:[Контактные данные]],2,)","v":"ООО \"Восток-Интертрейд\" (дог. №ЗК-2017-04-03-15) Внести данные"},"ООО \"Восток-Интертрейд\"","ЗК-2017-04-03-15",null,"уп.",30,{"$f":"SUMIFS(Главная_tb[Приход],Главная_tb[Наименование],Договоры_tb[[#This Row],[Наименование]],Главная_tb[Выбор поставщика],Договоры_tb[[#This Row],[Поставщик]],Главная_tb[Операция],\"Получено от поставщика\")","v":0},{"$f":"Договоры_tb[[#This Row],[Объем закупки]]-Договоры_tb[[#This Row],[Получено от поставщика]]","v":30}]
[null,null,null,null,null,null,null,null,null,null,"Натрия хлорид (стер., 0,9%, 250 мл.)",{"$f":"Договоры_tb[[#This Row],[Поставщик22]]&\" (дог. №\"&Договоры_tb[[#This Row],[Договор]]&\") \"&VLOOKUP(Договоры_tb[[#This Row],[Поставщик22]],Поставщики_tb[[Поставщик]:[Контактные данные]],2,)","v":"ООО \"Восток-Интертрейд\" (дог. №ЗК-2017-04-03-15) Внести данные"},"ООО \"Восток-Интертрейд\"","ЗК-2017-04-03-15",null,"фл.",125,{"$f":"SUMIFS(Главная_tb[Приход],Главная_tb[Наименование],Договоры_tb[[#This Row],[Наименование]],Главная_tb[Выбор поставщика],Договоры_tb[[#This Row],[Поставщик]],Главная_tb[Операция],\"Получено от поставщика\")","v":0},{"$f":"Договоры_tb[[#This Row],[Объем закупки]]-Договоры_tb[[#This Row],[Получено от поставщика]]","v":125}]
[null,null,null,null,null,null,null,null,null,null,"Новокаин (амп., 0,5%, 5 мл., №10)",{"$f":"Договоры_tb[[#This Row],[Поставщик22]]&\" (дог. №\"&Договоры_tb[[#This Row],[Договор]]&\") \"&VLOOKUP(Договоры_tb[[#This Row],[Поставщик22]],Поставщики_tb[[Поставщик]:[Контактные данные]],2,)","v":"ООО \"Восток-Интертрейд\" (дог. №ЗК-2017-04-03-15) Внести данные"},"ООО \"Восток-Интертрейд\"","ЗК-2017-04-03-15",null,"уп.",3,{"$f":"SUMIFS(Главная_tb[Приход],Главная_tb[Наименование],Договоры_tb[[#This Row],[Наименование]],Главная_tb[Выбор поставщика],Договоры_tb[[#This Row],[Поставщик]],Главная_tb[Операция],\"Получено от поставщика\")","v":0},{"$f":"Договоры_tb[[#This Row],[Объем закупки]]-Договоры_tb[[#This Row],[Получено от поставщика]]","v":3}]
[null,null,null,null,null,null,null,null,null,null,"Новокаин (амп., 2%, 2 мл., №10)",{"$f":"Договоры_tb[[#This Row],[Поставщик22]]&\" (дог. №\"&Договоры_tb[[#This Row],[Договор]]&\") \"&VLOOKUP(Договоры_tb[[#This Row],[Поставщик22]],Поставщики_tb[[Поставщик]:[Контактные данные]],2,)","v":"ООО \"Восток-Интертрейд\" (дог. №ЗК-2017-04-03-15) Внести данные"},"ООО \"Восток-Интертрейд\"","ЗК-2017-04-03-15",null,"уп.",4,{"$f":"SUMIFS(Главная_tb[Приход],Главная_tb[Наименование],Договоры_tb[[#This Row],[Наименование]],Главная_tb[Выбор поставщика],Договоры_tb[[#This Row],[Поставщик]],Главная_tb[Операция],\"Получено от поставщика\")","v":0},{"$f":"Договоры_tb[[#This Row],[Объем закупки]]-Договоры_tb[[#This Row],[Получено от поставщика]]","v":4}]
[null,null,null,null,null,null,null,null,null,null,"Омепразол (капс., 20 мг., №30)",{"$f":"Договоры_tb[[#This Row],[Поставщик22]]&\" (дог. №\"&Договоры_tb[[#This Row],[Договор]]&\") \"&VLOOKUP(Договоры_tb[[#This Row],[Поставщик22]],Поставщики_tb[[Поставщик]:[Контактные данные]],2,)","v":"ООО \"Восток-Интертрейд\" (дог. №ЗК-2017-04-03-15) Внести данные"},"ООО \"Восток-Интертрейд\"","ЗК-2017-04-03-15",null,"уп.",1,{"$f":"SUMIFS(Главная_tb[Приход],Главная_tb[Наименование],Договоры_tb[[#This Row],[Наименование]],Главная_tb[Выбор поставщика],Договоры_tb[[#This Row],[Поставщик]],Главная_tb[Операция],\"Получено от поставщика\")","v":0},{"$f":"Договоры_tb[[#This Row],[Объем закупки]]-Договоры_tb[[#This Row],[Получено от поставщика]]","v":1}]
[null,null,null,null,null,null,null,null,null,null,"Пантогам (таб., 250 мг., №50)",{"$f":"Договоры_tb[[#This Row],[Поставщик22]]&\" (дог. №\"&Договоры_tb[[#This Row],[Договор]]&\") \"&VLOOKUP(Договоры_tb[[#This Row],[Поставщик22]],Поставщики_tb[[Поставщик]:[Контактные данные]],2,)","v":"ООО \"Восток-Интертрейд\" (дог. №ЗК-2017-04-03-15) Внести данные"},"ООО \"Восток-Интертрейд\"","ЗК-2017-04-03-15",null,"уп.",40,{"$f":"SUMIFS(Главная_tb[Приход],Главная_tb[Наименование],Договоры_tb[[#This Row],[Наименование]],Главная_tb[Выбор поставщика],Договоры_tb[[#This Row],[Поставщик]],Главная_tb[Операция],\"Получено от поставщика\")","v":0},{"$f":"Договоры_tb[[#This Row],[Объем закупки]]-Договоры_tb[[#This Row],[Получено от поставщика]]","v":40}]
[null,null,null,null,null,null,null,null,null,null,"Папаверин (амп., 2%, 2мл №10)",{"$f":"Договоры_tb[[#This Row],[Поставщик22]]&\" (дог. №\"&Договоры_tb[[#This Row],[Договор]]&\") \"&VLOOKUP(Договоры_tb[[#This Row],[Поставщик22]],Поставщики_tb[[Поставщик]:[Контактные данные]],2,)","v":"ООО \"Восток-Интертрейд\" (дог. №ЗК-2017-04-03-15) Внести данные"},"ООО \"Восток-Интертрейд\"","ЗК-2017-04-03-15",null,"уп.",110,{"$f":"SUMIFS(Главная_tb[Приход],Главная_tb[Наименование],Договоры_tb[[#This Row],[Наименование]],Главная_tb[Выбор поставщика],Договоры_tb[[#This Row],[Поставщик]],Главная_tb[Операция],\"Получено от поставщика\")","v":0},{"$f":"Договоры_tb[[#This Row],[Объем закупки]]-Договоры_tb[[#This Row],[Получено от поставщика]]","v":110}]
[null,null,null,null,null,null,null,null,null,null,"Парацетамол (таб., 500 мг., №10)",{"$f":"Договоры_tb[[#This Row],[Поставщик22]]&\" (дог. №\"&Договоры_tb[[#This Row],[Договор]]&\") \"&VLOOKUP(Договоры_tb[[#This Row],[Поставщик22]],Поставщики_tb[[Поставщик]:[Контактные данные]],2,)","v":"ООО \"Восток-Интертрейд\" (дог. №ЗК-2017-04-03-15) Внести данные"},"ООО \"Восток-Интертрейд\"","ЗК-2017-04-03-15",null,"уп.",400,{"$f":"SUMIFS(Главная_tb[Приход],Главная_tb[Наименование],Договоры_tb[[#This Row],[Наименование]],Главная_tb[Выбор поставщика],Договоры_tb[[#This Row],[Поставщик]],Главная_tb[Операция],\"Получено от поставщика\")","v":0},{"$f":"Договоры_tb[[#This Row],[Объем закупки]]-Договоры_tb[[#This Row],[Получено от поставщика]]","v":400}]
[null,null,null,null,null,null,null,null,null,null,"Парацетамол детский (сусп., 100 гр.)",{"$f":"Договоры_tb[[#This Row],[Поставщик22]]&\" (дог. №\"&Договоры_tb[[#This Row],[Договор]]&\") \"&VLOOKUP(Договоры_tb[[#This Row],[Поставщик22]],Поставщики_tb[[Поставщик]:[Контактные данные]],2,)","v":"ООО \"Восток-Интертрейд\" (дог. №ЗК-2017-04-03-15) Внести данные"},"ООО \"Восток-Интертрейд\"","ЗК-2017-04-03-15",null,"уп.",25,{"$f":"SUMIFS(Главная_tb[Приход],Главная_tb[Наименование],Договоры_tb[[#This Row],[Наименование]],Главная_tb[Выбор поставщика],Договоры_tb[[#This Row],[Поставщик]],Главная_tb[Операция],\"Получено от поставщика\")","v":0},{"$f":"Договоры_tb[[#This Row],[Объем закупки]]-Договоры_tb[[#This Row],[Получено от поставщика]]","v":25}]
[null,null,null,null,null,null,null,null,null,null,"Пирацетам (амп., 20%, 5 мл., №10)",{"$f":"Договоры_tb[[#This Row],[Поставщик22]]&\" (дог. №\"&Договоры_tb[[#This Row],[Договор]]&\") \"&VLOOKUP(Договоры_tb[[#This Row],[Поставщик22]],Поставщики_tb[[Поставщик]:[Контактные данные]],2,)","v":"ООО \"Восток-Интертрейд\" (дог. №ЗК-2017-04-03-15) Внести данные"},"ООО \"Восток-Интертрейд\"","ЗК-2017-04-03-15",null,"уп.",65,{"$f":"SUMIFS(Главная_tb[Приход],Главная_tb[Наименование],Договоры_tb[[#This Row],[Наименование]],Главная_tb[Выбор поставщика],Договоры_tb[[#This Row],[Поставщик]],Главная_tb[Операция],\"Получено от поставщика\")","v":0},{"$f":"Договоры_tb[[#This Row],[Объем закупки]]-Договоры_tb[[#This Row],[Получено от поставщика]]","v":65}]
[null,null,null,null,null,null,null,null,null,null,"Пирацетам (таб., 400 мг., №60)",{"$f":"Договоры_tb[[#This Row],[Поставщик22]]&\" (дог. №\"&Договоры_tb[[#This Row],[Договор]]&\") \"&VLOOKUP(Договоры_tb[[#This Row],[Поставщик22]],Поставщики_tb[[Поставщик]:[Контактные данные]],2,)","v":"ООО \"Восток-Интертрейд\" (дог. №ЗК-2017-04-03-15) Внести данные"},"ООО \"Восток-Интертрейд\"","ЗК-2017-04-03-15",null,"уп.",34,{"$f":"SUMIFS(Главная_tb[Приход],Главная_tb[Наименование],Договоры_tb[[#This Row],[Наименование]],Главная_tb[Выбор поставщика],Договоры_tb[[#This Row],[Поставщик]],Главная_tb[Операция],\"Получено от поставщика\")","v":0},{"$f":"Договоры_tb[[#This Row],[Объем закупки]]-Договоры_tb[[#This Row],[Получено от поставщика]]","v":34}]
[null,null,null,null,null,null,null,null,null,null,"Пиридоксина гидрохлорид (амп., 5%, 1 мл., №10)",{"$f":"Договоры_tb[[#This Row],[Поставщик22]]&\" (дог. №\"&Договоры_tb[[#This Row],[Договор]]&\") \"&VLOOKUP(Договоры_tb[[#This Row],[Поставщик22]],Поставщики_tb[[Поставщик]:[Контактные данные]],2,)","v":"ООО \"Восток-Интертрейд\" (дог. №ЗК-2017-04-03-15) Внести данные"},"ООО \"Восток-Интертрейд\"","ЗК-2017-04-03-15",null,"уп.",70,{"$f":"SUMIFS(Главная_tb[Приход],Главная_tb[Наименование],Договоры_tb[[#This Row],[Наименование]],Главная_tb[Выбор поставщика],Договоры_tb[[#This Row],[Поставщик]],Главная_tb[Операция],\"Получено от поставщика\")","v":0},{"$f":"Договоры_tb[[#This Row],[Объем закупки]]-Договоры_tb[[#This Row],[Получено от поставщика]]","v":70}]
[null,null,null,null,null,null,null,null,null,null,"Преднизолон (амп., 30мг/мл, 1 мл., №3)",{"$f":"Договоры_tb[[#This Row],[Поставщик22]]&\" (дог. №\"&Договоры_tb[[#This Row],[Договор]]&\") \"&VLOOKUP(Договоры_tb[[#This Row],[Поставщик22]],Поставщики_tb[[Поставщик]:[Контактные данные]],2,)","v":"ООО \"Восток-Интертрейд\" (дог. №ЗК-2017-04-03-15) Внести данные"},"ООО \"Восток-Интертрейд\"","ЗК-2017-04-03-15",null,"уп.",58,{"$f":"SUMIFS(Главная_tb[Приход],Главная_tb[Наименование],Договоры_tb[[#This Row],[Наименование]],Главная_tb[Выбор поставщика],Договоры_tb[[#This Row],[Поставщик]],Главная_tb[Операция],\"Получено от поставщика\")","v":0},{"$f":"Договоры_tb[[#This Row],[Объем закупки]]-Договоры_tb[[#This Row],[Получено от поставщика]]","v":58}]
[null,null,null,null,null,null,null,null,null,null,"Раствор для наружного и местного применения водорода пероксида 3%, флакон 100 мл",{"$f":"Договоры_tb[[#This Row],[Поставщик22]]&\" (дог. №\"&Договоры_tb[[#This Row],[Договор]]&\") \"&VLOOKUP(Договоры_tb[[#This Row],[Поставщик22]],Поставщики_tb[[Поставщик]:[Контактные данные]],2,)","v":"ООО \"Восток-Интертрейд\" (дог. №ЗК-2017-04-03-15) Внести данные"},"ООО \"Восток-Интертрейд\"","ЗК-2017-04-03-15",null,"фл.",170,{"$f":"SUMIFS(Главная_tb[Приход],Главная_tb[Наименование],Договоры_tb[[#This Row],[Наименование]],Главная_tb[Выбор поставщика],Договоры_tb[[#This Row],[Поставщик]],Главная_tb[Операция],\"Получено от поставщика\")","v":0},{"$f":"Договоры_tb[[#This Row],[Объем закупки]]-Договоры_tb[[#This Row],[Получено от поставщика]]","v":170}]
[null,null,null,null,null,null,null,null,null,null,"Рибоксин (таб., 200 мг., №50)",{"$f":"Договоры_tb[[#This Row],[Поставщик22]]&\" (дог. №\"&Договоры_tb[[#This Row],[Договор]]&\") \"&VLOOKUP(Договоры_tb[[#This Row],[Поставщик22]],Поставщики_tb[[Поставщик]:[Контактные данные]],2,)","v":"ООО \"Восток-Интертрейд\" (дог. №ЗК-2017-04-03-15) Внести данные"},"ООО \"Восток-Интертрейд\"","ЗК-2017-04-03-15",null,"уп.",5,{"$f":"SUMIFS(Главная_tb[Приход],Главная_tb[Наименование],Договоры_tb[[#This Row],[Наименование]],Главная_tb[Выбор поставщика],Договоры_tb[[#This Row],[Поставщик]],Главная_tb[Операция],\"Получено от поставщика\")","v":0},{"$f":"Договоры_tb[[#This Row],[Объем закупки]]-Договоры_tb[[#This Row],[Получено от поставщика]]","v":5}]
[null,null,null,null,null,null,null,null,null,null,"Салфетка (стер., 14х16 см., №10)",{"$f":"Договоры_tb[[#This Row],[Поставщик22]]&\" (дог. №\"&Договоры_tb[[#This Row],[Договор]]&\") \"&VLOOKUP(Договоры_tb[[#This Row],[Поставщик22]],Поставщики_tb[[Поставщик]:[Контактные данные]],2,)","v":"ООО \"Восток-Интертрейд\" (дог. №ЗК-2017-04-03-15) Внести данные"},"ООО \"Восток-Интертрейд\"","ЗК-2017-04-03-15",null,"уп.",200,{"$f":"SUMIFS(Главная_tb[Приход],Главная_tb[Наименование],Договоры_tb[[#This Row],[Наименование]],Главная_tb[Выбор поставщика],Договоры_tb[[#This Row],[Поставщик]],Главная_tb[Операция],\"Получено от поставщика\")","v":0},{"$f":"Договоры_tb[[#This Row],[Объем закупки]]-Договоры_tb[[#This Row],[Получено от поставщика]]","v":200}]
[null,null,null,null,null,null,null,null,null,null,"Салфетка (стер., 5х5 см., №10)",{"$f":"Договоры_tb[[#This Row],[Поставщик22]]&\" (дог. №\"&Договоры_tb[[#This Row],[Договор]]&\") \"&VLOOKUP(Договоры_tb[[#This Row],[Поставщик22]],Поставщики_tb[[Поставщик]:[Контактные данные]],2,)","v":"ООО \"Восток-Интертрейд\" (дог. №ЗК-2017-04-03-15) Внести данные"},"ООО \"Восток-Интертрейд\"","ЗК-2017-04-03-15",null,"уп.",700,{"$f":"SUMIFS(Главная_tb[Приход],Главная_tb[Наименование],Договоры_tb[[#This Row],[Наименование]],Главная_tb[Выбор поставщика],Договоры_tb[[#This Row],[Поставщик]],Главная_tb[Операция],\"Получено от поставщика\")","v":0},{"$f":"Договоры_tb[[#This Row],[Объем закупки]]-Договоры_tb[[#This Row],[Получено от поставщика]]","v":700}]
[null,null,null,null,null,null,null,null,null,null,"Сальбутамол (100 мкг/доза, 90 доз, 12 мл. аэрозоль)",{"$f":"Договоры_tb[[#This Row],[Поставщик22]]&\" (дог. №\"&Договоры_tb[[#This Row],[Договор]]&\") \"&VLOOKUP(Договоры_tb[[#This Row],[Поставщик22]],Поставщики_tb[[Поставщик]:[Контактные данные]],2,)","v":"ООО \"Восток-Интертрейд\" (дог. №ЗК-2017-04-03-15) Внести данные"},"ООО \"Восток-Интертрейд\"","ЗК-2017-04-03-15",null,"уп.",123,{"$f":"SUMIFS(Главная_tb[Приход],Главная_tb[Наименование],Договоры_tb[[#This Row],[Наименование]],Главная_tb[Выбор поставщика],Договоры_tb[[#This Row],[Поставщик]],Главная_tb[Операция],\"Получено от поставщика\")","v":0},{"$f":"Договоры_tb[[#This Row],[Объем закупки]]-Договоры_tb[[#This Row],[Получено от поставщика]]","v":123}]
[null,null,null,null,null,null,null,null,null,null,"Софрадекс (капли, 5 мл.)",{"$f":"Договоры_tb[[#This Row],[Поставщик22]]&\" (дог. №\"&Договоры_tb[[#This Row],[Договор]]&\") \"&VLOOKUP(Договоры_tb[[#This Row],[Поставщик22]],Поставщики_tb[[Поставщик]:[Контактные данные]],2,)","v":"ООО \"Восток-Интертрейд\" (дог. №ЗК-2017-04-03-15) Внести данные"},"ООО \"Восток-Интертрейд\"","ЗК-2017-04-03-15",null,"уп.",1,{"$f":"SUMIFS(Главная_tb[Приход],Главная_tb[Наименование],Договоры_tb[[#This Row],[Наименование]],Главная_tb[Выбор поставщика],Договоры_tb[[#This Row],[Поставщик]],Главная_tb[Операция],\"Получено от поставщика\")","v":0},{"$f":"Договоры_tb[[#This Row],[Объем закупки]]-Договоры_tb[[#This Row],[Получено от поставщика]]","v":1}]
[null,null,null,null,null,null,null,null,null,null,"Спирт этиловый (70%, 100 мл.)",{"$f":"Договоры_tb[[#This Row],[Поставщик22]]&\" (дог. №\"&Договоры_tb[[#This Row],[Договор]]&\") \"&VLOOKUP(Договоры_tb[[#This Row],[Поставщик22]],Поставщики_tb[[Поставщик]:[Контактные данные]],2,)","v":"ООО \"Восток-Интертрейд\" (дог. №ЗК-2017-04-03-15) Внести данные"},"ООО \"Восток-Интертрейд\"","ЗК-2017-04-03-15",null,"фл.",240,{"$f":"SUMIFS(Главная_tb[Приход],Главная_tb[Наименование],Договоры_tb[[#This Row],[Наименование]],Главная_tb[Выбор поставщика],Договоры_tb[[#This Row],[Поставщик]],Главная_tb[Операция],\"Получено от поставщика\")","v":0},{"$f":"Договоры_tb[[#This Row],[Объем закупки]]-Договоры_tb[[#This Row],[Получено от поставщика]]","v":240}]
[null,null,null,null,null,null,null,null,null,null,"Спирт этиловый (95%, 100 мл.)",{"$f":"Договоры_tb[[#This Row],[Поставщик22]]&\" (дог. №\"&Договоры_tb[[#This Row],[Договор]]&\") \"&VLOOKUP(Договоры_tb[[#This Row],[Поставщик22]],Поставщики_tb[[Поставщик]:[Контактные данные]],2,)","v":"ООО \"Восток-Интертрейд\" (дог. №ЗК-2017-04-03-15) Внести данные"},"ООО \"Восток-Интертрейд\"","ЗК-2017-04-03-15",null,"фл",50,{"$f":"SUMIFS(Главная_tb[Приход],Главная_tb[Наименование],Договоры_tb[[#This Row],[Наименование]],Главная_tb[Выбор поставщика],Договоры_tb[[#This Row],[Поставщик]],Главная_tb[Операция],\"Получено от поставщика\")","v":0},{"$f":"Договоры_tb[[#This Row],[Объем закупки]]-Договоры_tb[[#This Row],[Получено от поставщика]]","v":50}]
[null,null,null,null,null,null,null,null,null,null,"Сульфацил натрий (20%, 1,5 мл., №2)",{"$f":"Договоры_tb[[#This Row],[Поставщик22]]&\" (дог. №\"&Договоры_tb[[#This Row],[Договор]]&\") \"&VLOOKUP(Договоры_tb[[#This Row],[Поставщик22]],Поставщики_tb[[Поставщик]:[Контактные данные]],2,)","v":"ООО \"Восток-Интертрейд\" (дог. №ЗК-2017-04-03-15) Внести данные"},"ООО \"Восток-Интертрейд\"","ЗК-2017-04-03-15",null,"уп.",110,{"$f":"SUMIFS(Главная_tb[Приход],Главная_tb[Наименование],Договоры_tb[[#This Row],[Наименование]],Главная_tb[Выбор поставщика],Договоры_tb[[#This Row],[Поставщик]],Главная_tb[Операция],\"Получено от поставщика\")","v":0},{"$f":"Договоры_tb[[#This Row],[Объем закупки]]-Договоры_tb[[#This Row],[Получено от поставщика]]","v":110}]
[null,null,null,null,null,null,null,null,null,null,"Фамотидин (таб., 20 мг., №20)",{"$f":"Договоры_tb[[#This Row],[Поставщик22]]&\" (дог. №\"&Договоры_tb[[#This Row],[Договор]]&\") \"&VLOOKUP(Договоры_tb[[#This Row],[Поставщик22]],Поставщики_tb[[Поставщик]:[Контактные данные]],2,)","v":"ООО \"Восток-Интертрейд\" (дог. №ЗК-2017-04-03-15) Внести данные"},"ООО \"Восток-Интертрейд\"","ЗК-2017-04-03-15",null,"уп.",2,{"$f":"SUMIFS(Главная_tb[Приход],Главная_tb[Наименование],Договоры_tb[[#This Row],[Наименование]],Главная_tb[Выбор поставщика],Договоры_tb[[#This Row],[Поставщик]],Главная_tb[Операция],\"Получено от поставщика\")","v":0},{"$f":"Договоры_tb[[#This Row],[Объем закупки]]-Договоры_tb[[#This Row],[Получено от поставщика]]","v":2}]
[null,null,null,null,null,null,null,null,null,null,"Фенибут (таб., 250 мг., №20)",{"$f":"Договоры_tb[[#This Row],[Поставщик22]]&\" (дог. №\"&Договоры_tb[[#This Row],[Договор]]&\") \"&VLOOKUP(Договоры_tb[[#This Row],[Поставщик22]],Поставщики_tb[[Поставщик]:[Контактные данные]],2,)","v":"ООО \"Восток-Интертрейд\" (дог. №ЗК-2017-04-03-15) Внести данные"},"ООО \"Восток-Интертрейд\"","ЗК-2017-04-03-15",null,"уп.",3,{"$f":"SUMIFS(Главная_tb[Приход],Главная_tb[Наименование],Договоры_tb[[#This Row],[Наименование]],Главная_tb[Выбор поставщика],Договоры_tb[[#This Row],[Поставщик]],Главная_tb[Операция],\"Получено от поставщика\")","v":0},{"$f":"Договоры_tb[[#This Row],[Объем закупки]]-Договоры_tb[[#This Row],[Получено от поставщика]]","v":3}]
[null,null,null,null,null,null,null,null,null,null,"Хлоргексидин (амп., 0,05%, 100 мл.)",{"$f":"Договоры_tb[[#This Row],[Поставщик22]]&\" (дог. №\"&Договоры_tb[[#This Row],[Договор]]&\") \"&VLOOKUP(Договоры_tb[[#This Row],[Поставщик22]],Поставщики_tb[[Поставщик]:[Контактные данные]],2,)","v":"ООО \"Восток-Интертрейд\" (дог. №ЗК-2017-04-03-15) Внести данные"},"ООО \"Восток-Интертрейд\"","ЗК-2017-04-03-15",null,"уп.",100,{"$f":"SUMIFS(Главная_tb[Приход],Главная_tb[Наименование],Договоры_tb[[#This Row],[Наименование]],Главная_tb[Выбор поставщика],Договоры_tb[[#This Row],[Поставщик]],Главная_tb[Операция],\"Получено от поставщика\")","v":0},{"$f":"Договоры_tb[[#This Row],[Объем закупки]]-Договоры_tb[[#This Row],[Получено от поставщика]]","v":100}]
[null,null,null,null,null,null,null,null,null,null,"Хлоропирамин (амп., 20 мг., 1 мл., №5)",{"$f":"Договоры_tb[[#This Row],[Поставщик22]]&\" (дог. №\"&Договоры_tb[[#This Row],[Договор]]&\") \"&VLOOKUP(Договоры_tb[[#This Row],[Поставщик22]],Поставщики_tb[[Поставщик]:[Контактные данные]],2,)","v":"ООО \"Восток-Интертрейд\" (дог. №ЗК-2017-04-03-15) Внести данные"},"ООО \"Восток-Интертрейд\"","ЗК-2017-04-03-15",null,"уп.",45,{"$f":"SUMIFS(Главная_tb[Приход],Главная_tb[Наименование],Договоры_tb[[#This Row],[Наименование]],Главная_tb[Выбор поставщика],Договоры_tb[[#This Row],[Поставщик]],Главная_tb[Операция],\"Получено от поставщика\")","v":0},{"$f":"Договоры_tb[[#This Row],[Объем закупки]]-Договоры_tb[[#This Row],[Получено от поставщика]]","v":45}]
[null,null,null,null,null,null,null,null,null,null,"Хлоропирамин (таб., 0,025 гр., №20)",{"$f":"Договоры_tb[[#This Row],[Поставщик22]]&\" (дог. №\"&Договоры_tb[[#This Row],[Договор]]&\") \"&VLOOKUP(Договоры_tb[[#This Row],[Поставщик22]],Поставщики_tb[[Поставщик]:[Контактные данные]],2,)","v":"ООО \"Восток-Интертрейд\" (дог. №ЗК-2017-04-03-15) Внести данные"},"ООО \"Восток-Интертрейд\"","ЗК-2017-04-03-15",null,"уп.",20,{"$f":"SUMIFS(Главная_tb[Приход],Главная_tb[Наименование],Договоры_tb[[#This Row],[Наименование]],Главная_tb[Выбор поставщика],Договоры_tb[[#This Row],[Поставщик]],Главная_tb[Операция],\"Получено от поставщика\")","v":0},{"$f":"Договоры_tb[[#This Row],[Объем закупки]]-Договоры_tb[[#This Row],[Получено от поставщика]]","v":20}]
[null,null,null,null,null,null,null,null,null,null,"Церебролизин (амп., 5 мл., №5)",{"$f":"Договоры_tb[[#This Row],[Поставщик22]]&\" (дог. №\"&Договоры_tb[[#This Row],[Договор]]&\") \"&VLOOKUP(Договоры_tb[[#This Row],[Поставщик22]],Поставщики_tb[[Поставщик]:[Контактные данные]],2,)","v":"ООО \"Восток-Интертрейд\" (дог. №ЗК-2017-04-03-15) Внести данные"},"ООО \"Восток-Интертрейд\"","ЗК-2017-04-03-15",null,"уп.",2,{"$f":"SUMIFS(Главная_tb[Приход],Главная_tb[Наименование],Договоры_tb[[#This Row],[Наименование]],Главная_tb[Выбор поставщика],Договоры_tb[[#This Row],[Поставщик]],Главная_tb[Операция],\"Получено от поставщика\")","v":0},{"$f":"Договоры_tb[[#This Row],[Объем закупки]]-Договоры_tb[[#This Row],[Получено от поставщика]]","v":2}]
[null,null,null,null,null,null,null,null,null,null,"Цианокобаламин (амп., 0,5 мг./1 мл., 1 мл., №10)",{"$f":"Договоры_tb[[#This Row],[Поставщик22]]&\" (дог. №\"&Договоры_tb[[#This Row],[Договор]]&\") \"&VLOOKUP(Договоры_tb[[#This Row],[Поставщик22]],Поставщики_tb[[Поставщик]:[Контактные данные]],2,)","v":"ООО \"Восток-Интертрейд\" (дог. №ЗК-2017-04-03-15) Внести данные"},"ООО \"Восток-Интертрейд\"","ЗК-2017-04-03-15",null,"уп.",70,{"$f":"SUMIFS(Главная_tb[Приход],Главная_tb[Наименование],Договоры_tb[[#This Row],[Наименование]],Главная_tb[Выбор поставщика],Договоры_tb[[#This Row],[Поставщик]],Главная_tb[Операция],\"Получено от поставщика\")","v":0},{"$f":"Договоры_tb[[#This Row],[Объем закупки]]-Договоры_tb[[#This Row],[Получено от поставщика]]","v":70}]
[null,null,null,null,null,null,null,null,null,null,"Цикломед (1%, 5 мл.)",{"$f":"Договоры_tb[[#This Row],[Поставщик22]]&\" (дог. №\"&Договоры_tb[[#This Row],[Договор]]&\") \"&VLOOKUP(Договоры_tb[[#This Row],[Поставщик22]],Поставщики_tb[[Поставщик]:[Контактные данные]],2,)","v":"ООО \"Восток-Интертрейд\" (дог. №ЗК-2017-04-03-15) Внести данные"},"ООО \"Восток-Интертрейд\"","ЗК-2017-04-03-15",null,"уп.",30,{"$f":"SUMIFS(Главная_tb[Приход],Главная_tb[Наименование],Договоры_tb[[#This Row],[Наименование]],Главная_tb[Выбор поставщика],Договоры_tb[[#This Row],[Поставщик]],Главная_tb[Операция],\"Получено от поставщика\")","v":0},{"$f":"Договоры_tb[[#This Row],[Объем закупки]]-Договоры_tb[[#This Row],[Получено от поставщика]]","v":30}]
[null,null,null,null,null,null,null,null,null,null,"Циннаризин (таб. 25 мг., №50)",{"$f":"Договоры_tb[[#This Row],[Поставщик22]]&\" (дог. №\"&Договоры_tb[[#This Row],[Договор]]&\") \"&VLOOKUP(Договоры_tb[[#This Row],[Поставщик22]],Поставщики_tb[[Поставщик]:[Контактные данные]],2,)","v":"ООО \"Восток-Интертрейд\" (дог. №ЗК-2017-04-03-15) Внести данные"},"ООО \"Восток-Интертрейд\"","ЗК-2017-04-03-15",null,"уп.",5,{"$f":"SUMIFS(Главная_tb[Приход],Главная_tb[Наименование],Договоры_tb[[#This Row],[Наименование]],Главная_tb[Выбор поставщика],Договоры_tb[[#This Row],[Поставщик]],Главная_tb[Операция],\"Получено от поставщика\")","v":0},{"$f":"Договоры_tb[[#This Row],[Объем закупки]]-Договоры_tb[[#This Row],[Получено от поставщика]]","v":5}]
[null,null,null,null,null,null,null,null,null,null,"Эуфиллин (амп., 2,4%, 10 мл., №10)",{"$f":"Договоры_tb[[#This Row],[Поставщик22]]&\" (дог. №\"&Договоры_tb[[#This Row],[Договор]]&\") \"&VLOOKUP(Договоры_tb[[#This Row],[Поставщик22]],Поставщики_tb[[Поставщик]:[Контактные данные]],2,)","v":"ООО \"Восток-Интертрейд\" (дог. №ЗК-2017-04-03-15) Внести данные"},"ООО \"Восток-Интертрейд\"","ЗК-2017-04-03-15",null,"уп.",30,{"$f":"SUMIFS(Главная_tb[Приход],Главная_tb[Наименование],Договоры_tb[[#This Row],[Наименование]],Главная_tb[Выбор поставщика],Договоры_tb[[#This Row],[Поставщик]],Главная_tb[Операция],\"Получено от поставщика\")","v":0},{"$f":"Договоры_tb[[#This Row],[Объем закупки]]-Договоры_tb[[#This Row],[Получено от поставщика]]","v":30}]
[null,null,null,null,null,null,null,null,null,null,"Игла зеленая для пробирок Vacuette (100 шт.)",{"$f":"Договоры_tb[[#This Row],[Поставщик22]]&\" (дог. №\"&Договоры_tb[[#This Row],[Договор]]&\") \"&VLOOKUP(Договоры_tb[[#This Row],[Поставщик22]],Поставщики_tb[[Поставщик]:[Контактные данные]],2,)","v":"АО \"Формула развития\" (дог. №ЗК-2017-07-21-26) Внести данные"},"АО \"Формула развития\"","ЗК-2017-07-21-26",null,"шт",2000,{"$f":"SUMIFS(Главная_tb[Приход],Главная_tb[Наименование],Договоры_tb[[#This Row],[Наименование]],Главная_tb[Выбор поставщика],Договоры_tb[[#This Row],[Поставщик]],Главная_tb[Операция],\"Получено от поставщика\")","v":0},{"$f":"Договоры_tb[[#This Row],[Объем закупки]]-Договоры_tb[[#This Row],[Получено от поставщика]]","v":2000}]
[null,null,null,null,null,null,null,null,null,null,"Маска Лепесток 200",{"$f":"Договоры_tb[[#This Row],[Поставщик22]]&\" (дог. №\"&Договоры_tb[[#This Row],[Договор]]&\") \"&VLOOKUP(Договоры_tb[[#This Row],[Поставщик22]],Поставщики_tb[[Поставщик]:[Контактные данные]],2,)","v":"АО \"Формула развития\" (дог. №ЗК-2017-07-21-26) Внести данные"},"АО \"Формула развития\"","ЗК-2017-07-21-26",null,"шт",50,{"$f":"SUMIFS(Главная_tb[Приход],Главная_tb[Наименование],Договоры_tb[[#This Row],[Наименование]],Главная_tb[Выбор поставщика],Договоры_tb[[#This Row],[Поставщик]],Главная_tb[Операция],\"Получено от поставщика\")","v":0},{"$f":"Договоры_tb[[#This Row],[Объем закупки]]-Договоры_tb[[#This Row],[Получено от поставщика]]","v":50}]
[null,null,null,null,null,null,null,null,null,null,"Пинцет (однораз., стер.)",{"$f":"Договоры_tb[[#This Row],[Поставщик22]]&\" (дог. №\"&Договоры_tb[[#This Row],[Договор]]&\") \"&VLOOKUP(Договоры_tb[[#This Row],[Поставщик22]],Поставщики_tb[[Поставщик]:[Контактные данные]],2,)","v":"АО \"Формула развития\" (дог. №ЗК-2017-07-21-26) Внести данные"},"АО \"Формула развития\"","ЗК-2017-07-21-26",null,"шт",100,{"$f":"SUMIFS(Главная_tb[Приход],Главная_tb[Наименование],Договоры_tb[[#This Row],[Наименование]],Главная_tb[Выбор поставщика],Договоры_tb[[#This Row],[Поставщик]],Главная_tb[Операция],\"Получено от поставщика\")","v":0},{"$f":"Договоры_tb[[#This Row],[Объем закупки]]-Договоры_tb[[#This Row],[Получено от поставщика]]","v":100}]
[null,null,null,null,null,null,null,null,null,null,"Пробирка с ватным тампоном стерильная (без наполнителя)",{"$f":"Договоры_tb[[#This Row],[Поставщик22]]&\" (дог. №\"&Договоры_tb[[#This Row],[Договор]]&\") \"&VLOOKUP(Договоры_tb[[#This Row],[Поставщик22]],Поставщики_tb[[Поставщик]:[Контактные данные]],2,)","v":"АО \"Формула развития\" (дог. №ЗК-2017-07-21-26) Внести данные"},"АО \"Формула развития\"","ЗК-2017-07-21-26",null,"шт",100,{"$f":"SUMIFS(Главная_tb[Приход],Главная_tb[Наименование],Договоры_tb[[#This Row],[Наименование]],Главная_tb[Выбор поставщика],Договоры_tb[[#This Row],[Поставщик]],Главная_tb[Операция],\"Получено от поставщика\")","v":0},{"$f":"Договоры_tb[[#This Row],[Объем закупки]]-Договоры_tb[[#This Row],[Получено от поставщика]]","v":100}]
[null,null,null,null,null,null,null,null,null,null,"Сумка холодильник с электронным термоиндикатором (25 л.)",{"$f":"Договоры_tb[[#This Row],[Поставщик22]]&\" (дог. №\"&Договоры_tb[[#This Row],[Договор]]&\") \"&VLOOKUP(Договоры_tb[[#This Row],[Поставщик22]],Поставщики_tb[[Поставщик]:[Контактные данные]],2,)","v":"АО \"Формула развития\" (дог. №ЗК-2017-07-21-26) Внести данные"},"АО \"Формула развития\"","ЗК-2017-07-21-26",null,"шт",9,{"$f":"SUMIFS(Главная_tb[Приход],Главная_tb[Наименование],Договоры_tb[[#This Row],[Наименование]],Главная_tb[Выбор поставщика],Договоры_tb[[#This Row],[Поставщик]],Главная_tb[Операция],\"Получено от поставщика\")","v":0},{"$f":"Договоры_tb[[#This Row],[Объем закупки]]-Договоры_tb[[#This Row],[Получено от поставщика]]","v":9}]
[null,null,null,null,null,null,null,null,null,null,"Фартук медицинский одноразовый",{"$f":"Договоры_tb[[#This Row],[Поставщик22]]&\" (дог. №\"&Договоры_tb[[#This Row],[Договор]]&\") \"&VLOOKUP(Договоры_tb[[#This Row],[Поставщик22]],Поставщики_tb[[Поставщик]:[Контактные данные]],2,)","v":"АО \"Формула развития\" (дог. №ЗК-2017-07-21-26) Внести данные"},"АО \"Формула развития\"","ЗК-2017-07-21-26",null,"шт",100,{"$f":"SUMIFS(Главная_tb[Приход],Главная_tb[Наименование],Договоры_tb[[#This Row],[Наименование]],Главная_tb[Выбор поставщика],Договоры_tb[[#This Row],[Поставщик]],Главная_tb[Операция],\"Получено от поставщика\")","v":0},{"$f":"Договоры_tb[[#This Row],[Объем закупки]]-Договоры_tb[[#This Row],[Получено от поставщика]]","v":100}]
[null,null,null,null,null,null,null,null,null,null,"Халат (хир., стер.)",{"$f":"Договоры_tb[[#This Row],[Поставщик22]]&\" (дог. №\"&Договоры_tb[[#This Row],[Договор]]&\") \"&VLOOKUP(Договоры_tb[[#This Row],[Поставщик22]],Поставщики_tb[[Поставщик]:[Контактные данные]],2,)","v":"АО \"Формула развития\" (дог. №ЗК-2017-07-21-26) Внести данные"},"АО \"Формула развития\"","ЗК-2017-07-21-26",null,"шт",50,{"$f":"SUMIFS(Главная_tb[Приход],Главная_tb[Наименование],Договоры_tb[[#This Row],[Наименование]],Главная_tb[Выбор поставщика],Договоры_tb[[#This Row],[Поставщик]],Главная_tb[Операция],\"Получено от поставщика\")","v":0},{"$f":"Договоры_tb[[#This Row],[Объем закупки]]-Договоры_tb[[#This Row],[Получено от поставщика]]","v":50}]
[null,null,null,null,null,null,null,null,null,null,"Шприц (1 мл.)",{"$f":"Договоры_tb[[#This Row],[Поставщик22]]&\" (дог. №\"&Договоры_tb[[#This Row],[Договор]]&\") \"&VLOOKUP(Договоры_tb[[#This Row],[Поставщик22]],Поставщики_tb[[Поставщик]:[Контактные данные]],2,)","v":"АО \"Формула развития\" (дог. №ЗК-2017-07-21-26) Внести данные"},"АО \"Формула развития\"","ЗК-2017-07-21-26",null,"шт.",10000,{"$f":"SUMIFS(Главная_tb[Приход],Главная_tb[Наименование],Договоры_tb[[#This Row],[Наименование]],Главная_tb[Выбор поставщика],Договоры_tb[[#This Row],[Поставщик]],Главная_tb[Операция],\"Получено от поставщика\")","v":0},{"$f":"Договоры_tb[[#This Row],[Объем закупки]]-Договоры_tb[[#This Row],[Получено от поставщика]]","v":10000}]
[null,null,null,null,null,null,null,null,null,null,"Ватные палочки, ушные (100 шт.)",{"$f":"Договоры_tb[[#This Row],[Поставщик22]]&\" (дог. №\"&Договоры_tb[[#This Row],[Договор]]&\") \"&VLOOKUP(Договоры_tb[[#This Row],[Поставщик22]],Поставщики_tb[[Поставщик]:[Контактные данные]],2,)","v":"ООО \"Восток-Интертрейд\" (дог. №ЗК-2017-09-11-38) Внести данные"},"ООО \"Восток-Интертрейд\"","ЗК-2017-09-11-38",null,"шт.",5000,{"$f":"SUMIFS(Главная_tb[Приход],Главная_tb[Наименование],Договоры_tb[[#This Row],[Наименование]],Главная_tb[Выбор поставщика],Договоры_tb[[#This Row],[Поставщик]],Главная_tb[Операция],\"Получено от поставщика\")","v":0},{"$f":"Договоры_tb[[#This Row],[Объем закупки]]-Договоры_tb[[#This Row],[Получено от поставщика]]","v":5000}]
[null,null,null,null,null,null,null,null,null,null,"Контейнер для сбора кала (стер., 40 мл.)",{"$f":"Договоры_tb[[#This Row],[Поставщик22]]&\" (дог. №\"&Договоры_tb[[#This Row],[Договор]]&\") \"&VLOOKUP(Договоры_tb[[#This Row],[Поставщик22]],Поставщики_tb[[Поставщик]:[Контактные данные]],2,)","v":"ООО \"Восток-Интертрейд\" (дог. №ЗК-2017-09-11-38) Внести данные"},"ООО \"Восток-Интертрейд\"","ЗК-2017-09-11-38",null,"шт",20,{"$f":"SUMIFS(Главная_tb[Приход],Главная_tb[Наименование],Договоры_tb[[#This Row],[Наименование]],Главная_tb[Выбор поставщика],Договоры_tb[[#This Row],[Поставщик]],Главная_tb[Операция],\"Получено от поставщика\")","v":0},{"$f":"Договоры_tb[[#This Row],[Объем закупки]]-Договоры_tb[[#This Row],[Получено от поставщика]]","v":20}]
[null,null,null,null,null,null,null,null,null,null,"Контейнер для сбора мочи (стер., 100 мл.)",{"$f":"Договоры_tb[[#This Row],[Поставщик22]]&\" (дог. №\"&Договоры_tb[[#This Row],[Договор]]&\") \"&VLOOKUP(Договоры_tb[[#This Row],[Поставщик22]],Поставщики_tb[[Поставщик]:[Контактные данные]],2,)","v":"ООО \"Восток-Интертрейд\" (дог. №ЗК-2017-09-11-38) Внести данные"},"ООО \"Восток-Интертрейд\"","ЗК-2017-09-11-38",null,"шт",120,{"$f":"SUMIFS(Главная_tb[Приход],Главная_tb[Наименование],Договоры_tb[[#This Row],[Наименование]],Главная_tb[Выбор поставщика],Договоры_tb[[#This Row],[Поставщик]],Главная_tb[Операция],\"Получено от поставщика\")","v":0},{"$f":"Договоры_tb[[#This Row],[Объем закупки]]-Договоры_tb[[#This Row],[Получено от поставщика]]","v":120}]
[null,null,null,null,null,null,null,null,null,null,"Ланцет (скарификатор) (однораз.,  автомат., 200 шт.)",{"$f":"Договоры_tb[[#This Row],[Поставщик22]]&\" (дог. №\"&Договоры_tb[[#This Row],[Договор]]&\") \"&VLOOKUP(Договоры_tb[[#This Row],[Поставщик22]],Поставщики_tb[[Поставщик]:[Контактные данные]],2,)","v":"ООО \"Восток-Интертрейд\" (дог. №ЗК-2017-09-11-38) Внести данные"},"ООО \"Восток-Интертрейд\"","ЗК-2017-09-11-38",null,"уп.",20,{"$f":"SUMIFS(Главная_tb[Приход],Главная_tb[Наименование],Договоры_tb[[#This Row],[Наименование]],Главная_tb[Выбор поставщика],Договоры_tb[[#This Row],[Поставщик]],Главная_tb[Операция],\"Получено от поставщика\")","v":0},{"$f":"Договоры_tb[[#This Row],[Объем закупки]]-Договоры_tb[[#This Row],[Получено от поставщика]]","v":20}]
[null,null,null,null,null,null,null,null,null,null,"Ланцет (скарификатор) (однораз., 100 шт.)",{"$f":"Договоры_tb[[#This Row],[Поставщик22]]&\" (дог. №\"&Договоры_tb[[#This Row],[Договор]]&\") \"&VLOOKUP(Договоры_tb[[#This Row],[Поставщик22]],Поставщики_tb[[Поставщик]:[Контактные данные]],2,)","v":"ООО \"Восток-Интертрейд\" (дог. №ЗК-2017-09-11-38) Внести данные"},"ООО \"Восток-Интертрейд\"","ЗК-2017-09-11-38",null,"шт.",1000,{"$f":"SUMIFS(Главная_tb[Приход],Главная_tb[Наименование],Договоры_tb[[#This Row],[Наименование]],Главная_tb[Выбор поставщика],Договоры_tb[[#This Row],[Поставщик]],Главная_tb[Операция],\"Получено от поставщика\")","v":0},{"$f":"Договоры_tb[[#This Row],[Объем закупки]]-Договоры_tb[[#This Row],[Получено от поставщика]]","v":1000}]
[null,null,null,null,null,null,null,null,null,null,"Ложка Фолькмана",{"$f":"Договоры_tb[[#This Row],[Поставщик22]]&\" (дог. №\"&Договоры_tb[[#This Row],[Договор]]&\") \"&VLOOKUP(Договоры_tb[[#This Row],[Поставщик22]],Поставщики_tb[[Поставщик]:[Контактные данные]],2,)","v":"ООО \"Восток-Интертрейд\" (дог. №ЗК-2017-09-11-38) Внести данные"},"ООО \"Восток-Интертрейд\"","ЗК-2017-09-11-38",null,"шт.",500,{"$f":"SUMIFS(Главная_tb[Приход],Главная_tb[Наименование],Договоры_tb[[#This Row],[Наименование]],Главная_tb[Выбор поставщика],Договоры_tb[[#This Row],[Поставщик]],Главная_tb[Операция],\"Получено от поставщика\")","v":0},{"$f":"Договоры_tb[[#This Row],[Объем закупки]]-Договоры_tb[[#This Row],[Получено от поставщика]]","v":500}]
[null,null,null,null,null,null,null,null,null,null,"Салфетка (стер., 110х85 мм., 70%)",{"$f":"Договоры_tb[[#This Row],[Поставщик22]]&\" (дог. №\"&Договоры_tb[[#This Row],[Договор]]&\") \"&VLOOKUP(Договоры_tb[[#This Row],[Поставщик22]],Поставщики_tb[[Поставщик]:[Контактные данные]],2,)","v":"ООО \"Восток-Интертрейд\" (дог. №ЗК-2017-09-11-38) Внести данные"},"ООО \"Восток-Интертрейд\"","ЗК-2017-09-11-38",null,"шт.",3000,{"$f":"SUMIFS(Главная_tb[Приход],Главная_tb[Наименование],Договоры_tb[[#This Row],[Наименование]],Главная_tb[Выбор поставщика],Договоры_tb[[#This Row],[Поставщик]],Главная_tb[Операция],\"Получено от поставщика\")","v":0},{"$f":"Договоры_tb[[#This Row],[Объем закупки]]-Договоры_tb[[#This Row],[Получено от поставщика]]","v":3000}]
[null,null,null,null,null,null,null,null,null,null,"Салфетка (стер., 60х100 мм., 70%)",{"$f":"Договоры_tb[[#This Row],[Поставщик22]]&\" (дог. №\"&Договоры_tb[[#This Row],[Договор]]&\") \"&VLOOKUP(Договоры_tb[[#This Row],[Поставщик22]],Поставщики_tb[[Поставщик]:[Контактные данные]],2,)","v":"ООО \"Восток-Интертрейд\" (дог. №ЗК-2017-09-11-38) Внести данные"},"ООО \"Восток-Интертрейд\"","ЗК-2017-09-11-38",null,"шт.",47000,{"$f":"SUMIFS(Главная_tb[Приход],Главная_tb[Наименование],Договоры_tb[[#This Row],[Наименование]],Главная_tb[Выбор поставщика],Договоры_tb[[#This Row],[Поставщик]],Главная_tb[Операция],\"Получено от поставщика\")","v":0},{"$f":"Договоры_tb[[#This Row],[Объем закупки]]-Договоры_tb[[#This Row],[Получено от поставщика]]","v":47000}]
[null,null,null,null,null,null,null,null,null,null,"Скальпель (однораз., хир., стер.)",{"$f":"Договоры_tb[[#This Row],[Поставщик22]]&\" (дог. №\"&Договоры_tb[[#This Row],[Договор]]&\") \"&VLOOKUP(Договоры_tb[[#This Row],[Поставщик22]],Поставщики_tb[[Поставщик]:[Контактные данные]],2,)","v":"ООО \"Восток-Интертрейд\" (дог. №ЗК-2017-09-11-38) Внести данные"},"ООО \"Восток-Интертрейд\"","ЗК-2017-09-11-38",null,"шт.",100,{"$f":"SUMIFS(Главная_tb[Приход],Главная_tb[Наименование],Договоры_tb[[#This Row],[Наименование]],Главная_tb[Выбор поставщика],Договоры_tb[[#This Row],[Поставщик]],Главная_tb[Операция],\"Получено от поставщика\")","v":0},{"$f":"Договоры_tb[[#This Row],[Объем закупки]]-Договоры_tb[[#This Row],[Получено от поставщика]]","v":100}]
[null,null,null,null,null,null,null,null,null,null,"Перчатки (нестер, латекс.)",{"$f":"Договоры_tb[[#This Row],[Поставщик22]]&\" (дог. №\"&Договоры_tb[[#This Row],[Договор]]&\") \"&VLOOKUP(Договоры_tb[[#This Row],[Поставщик22]],Поставщики_tb[[Поставщик]:[Контактные данные]],2,)","v":"ООО \"Восток-Интертрейд\" (дог. №ЭЗК-2018-02-16-8) Внести данные"},"ООО \"Восток-Интертрейд\"","ЭЗК-2018-02-16-8",null,"пара",40000,{"$f":"SUMIFS(Главная_tb[Приход],Главная_tb[Наименование],Договоры_tb[[#This Row],[Наименование]],Главная_tb[Выбор поставщика],Договоры_tb[[#This Row],[Поставщик]],Главная_tb[Операция],\"Получено от поставщика\")","v":0},{"$f":"Договоры_tb[[#This Row],[Объем закупки]]-Договоры_tb[[#This Row],[Получено от поставщика]]","v":40000}]
[null,null,null,null,null,null,null,null,null,null,"Перчатки (нестер, нитрил.)",{"$f":"Договоры_tb[[#This Row],[Поставщик22]]&\" (дог. №\"&Договоры_tb[[#This Row],[Договор]]&\") \"&VLOOKUP(Договоры_tb[[#This Row],[Поставщик22]],Поставщики_tb[[Поставщик]:[Контактные данные]],2,)","v":"ООО \"Восток-Интертрейд\" (дог. №ЭЗК-2018-02-16-8) Внести данные"},"ООО \"Восток-Интертрейд\"","ЭЗК-2018-02-16-8",null,"пара",500,{"$f":"SUMIFS(Главная_tb[Приход],Главная_tb[Наименование],Договоры_tb[[#This Row],[Наименование]],Главная_tb[Выбор поставщика],Договоры_tb[[#This Row],[Поставщик]],Главная_tb[Операция],\"Получено от поставщика\")","v":0},{"$f":"Договоры_tb[[#This Row],[Объем закупки]]-Договоры_tb[[#This Row],[Получено от поставщика]]","v":500}]
[null,null,null,null,null,null,null,null,null,null,"Перчатки (стер, латекс.)",{"$f":"Договоры_tb[[#This Row],[Поставщик22]]&\" (дог. №\"&Договоры_tb[[#This Row],[Договор]]&\") \"&VLOOKUP(Договоры_tb[[#This Row],[Поставщик22]],Поставщики_tb[[Поставщик]:[Контактные данные]],2,)","v":"ООО \"Восток-Интертрейд\" (дог. №ЭЗК-2018-02-16-8) Внести данные"},"ООО \"Восток-Интертрейд\"","ЭЗК-2018-02-16-8",null,"пара",350,{"$f":"SUMIFS(Главная_tb[Приход],Главная_tb[Наименование],Договоры_tb[[#This Row],[Наименование]],Главная_tb[Выбор поставщика],Договоры_tb[[#This Row],[Поставщик]],Главная_tb[Операция],\"Получено от поставщика\")","v":0},{"$f":"Договоры_tb[[#This Row],[Объем закупки]]-Договоры_tb[[#This Row],[Получено от поставщика]]","v":350}]
[null,null,null,null,null,null,null,null,null,null,"Тест-полоски Multistix 10SG (100 шт.)",{"$f":"Договоры_tb[[#This Row],[Поставщик22]]&\" (дог. №\"&Договоры_tb[[#This Row],[Договор]]&\") \"&VLOOKUP(Договоры_tb[[#This Row],[Поставщик22]],Поставщики_tb[[Поставщик]:[Контактные данные]],2,)","v":"ООО \"ИркутскМедсервис\" (дог. №ЭЗК-2018-03-05-11) Внести данные"},"ООО \"ИркутскМедсервис\"","ЭЗК-2018-03-05-11",null,"уп.",150,{"$f":"SUMIFS(Главная_tb[Приход],Главная_tb[Наименование],Договоры_tb[[#This Row],[Наименование]],Главная_tb[Выбор поставщика],Договоры_tb[[#This Row],[Поставщик]],Главная_tb[Операция],\"Получено от поставщика\")","v":0},{"$f":"Договоры_tb[[#This Row],[Объем закупки]]-Договоры_tb[[#This Row],[Получено от поставщика]]","v":150}]
[null,null,null,null,null,null,null,null,null,null,"Азур-эозин по Романовскому (р-р, 0,76%, окраска 6000, 1 л.)",{"$f":"Договоры_tb[[#This Row],[Поставщик22]]&\" (дог. №\"&Договоры_tb[[#This Row],[Договор]]&\") \"&VLOOKUP(Договоры_tb[[#This Row],[Поставщик22]],Поставщики_tb[[Поставщик]:[Контактные данные]],2,)","v":"ООО \"ИркутскМедсервис\" (дог. №ЭЗК-2018-03-06-12) Внести данные"},"ООО \"ИркутскМедсервис\"","ЭЗК-2018-03-06-12",null,"флакон",6,{"$f":"SUMIFS(Главная_tb[Приход],Главная_tb[Наименование],Договоры_tb[[#This Row],[Наименование]],Главная_tb[Выбор поставщика],Договоры_tb[[#This Row],[Поставщик]],Главная_tb[Операция],\"Получено от поставщика\")","v":0},{"$f":"Договоры_tb[[#This Row],[Объем закупки]]-Договоры_tb[[#This Row],[Получено от поставщика]]","v":6}]
[null,null,null,null,null,null,null,null,null,null,"Буфер для окраски мазков (рН от 6,8 до 7,2, 10 мл.)",{"$f":"Договоры_tb[[#This Row],[Поставщик22]]&\" (дог. №\"&Договоры_tb[[#This Row],[Договор]]&\") \"&VLOOKUP(Договоры_tb[[#This Row],[Поставщик22]],Поставщики_tb[[Поставщик]:[Контактные данные]],2,)","v":"ООО \"ИркутскМедсервис\" (дог. №ЭЗК-2018-03-06-12) Внести данные"},"ООО \"ИркутскМедсервис\"","ЭЗК-2018-03-06-12",null,"флакон",6,{"$f":"SUMIFS(Главная_tb[Приход],Главная_tb[Наименование],Договоры_tb[[#This Row],[Наименование]],Главная_tb[Выбор поставщика],Договоры_tb[[#This Row],[Поставщик]],Главная_tb[Операция],\"Получено от поставщика\")","v":0},{"$f":"Договоры_tb[[#This Row],[Объем закупки]]-Договоры_tb[[#This Row],[Получено от поставщика]]","v":6}]
[null,null,null,null,null,null,null,null,null,null,"Капилляр Панченкова ",{"$f":"Договоры_tb[[#This Row],[Поставщик22]]&\" (дог. №\"&Договоры_tb[[#This Row],[Договор]]&\") \"&VLOOKUP(Договоры_tb[[#This Row],[Поставщик22]],Поставщики_tb[[Поставщик]:[Контактные данные]],2,)","v":"ООО \"ИркутскМедсервис\" (дог. №ЭЗК-2018-03-06-12) Внести данные"},"ООО \"ИркутскМедсервис\"","ЭЗК-2018-03-06-12",null,"шт",200,{"$f":"SUMIFS(Главная_tb[Приход],Главная_tb[Наименование],Договоры_tb[[#This Row],[Наименование]],Главная_tb[Выбор поставщика],Договоры_tb[[#This Row],[Поставщик]],Главная_tb[Операция],\"Получено от поставщика\")","v":0},{"$f":"Договоры_tb[[#This Row],[Объем закупки]]-Договоры_tb[[#This Row],[Получено от поставщика]]","v":200}]
[null,null,null,null,null,null,null,null,null,null,"Краситель для окраски ретикулоцитов (1%, 50 мл., 2000 опред.)",{"$f":"Договоры_tb[[#This Row],[Поставщик22]]&\" (дог. №\"&Договоры_tb[[#This Row],[Договор]]&\") \"&VLOOKUP(Договоры_tb[[#This Row],[Поставщик22]],Поставщики_tb[[Поставщик]:[Контактные данные]],2,)","v":"ООО \"ИркутскМедсервис\" (дог. №ЭЗК-2018-03-06-12) Внести данные"},"ООО \"ИркутскМедсервис\"","ЭЗК-2018-03-06-12",null,"флакон",2,{"$f":"SUMIFS(Главная_tb[Приход],Главная_tb[Наименование],Договоры_tb[[#This Row],[Наименование]],Главная_tb[Выбор поставщика],Договоры_tb[[#This Row],[Поставщик]],Главная_tb[Операция],\"Получено от поставщика\")","v":0},{"$f":"Договоры_tb[[#This Row],[Объем закупки]]-Договоры_tb[[#This Row],[Получено от поставщика]]","v":2}]
[null,null,null,null,null,null,null,null,null,null,"Ланцет (скарификатор) (однораз., 100 шт.)",{"$f":"Договоры_tb[[#This Row],[Поставщик22]]&\" (дог. №\"&Договоры_tb[[#This Row],[Договор]]&\") \"&VLOOKUP(Договоры_tb[[#This Row],[Поставщик22]],Поставщики_tb[[Поставщик]:[Контактные данные]],2,)","v":"ООО \"ИркутскМедсервис\" (дог. №ЭЗК-2018-03-06-12) Внести данные"},"ООО \"ИркутскМедсервис\"","ЭЗК-2018-03-06-12",null,"уп",55,{"$f":"SUMIFS(Главная_tb[Приход],Главная_tb[Наименование],Договоры_tb[[#This Row],[Наименование]],Главная_tb[Выбор поставщика],Договоры_tb[[#This Row],[Поставщик]],Главная_tb[Операция],\"Получено от поставщика\")","v":0},{"$f":"Договоры_tb[[#This Row],[Объем закупки]]-Договоры_tb[[#This Row],[Получено от поставщика]]","v":55}]
[null,null,null,null,null,null,null,null,null,null,"Масло иммерсионное (100 мл.)",{"$f":"Договоры_tb[[#This Row],[Поставщик22]]&\" (дог. №\"&Договоры_tb[[#This Row],[Договор]]&\") \"&VLOOKUP(Договоры_tb[[#This Row],[Поставщик22]],Поставщики_tb[[Поставщик]:[Контактные данные]],2,)","v":"ООО \"ИркутскМедсервис\" (дог. №ЭЗК-2018-03-06-12) Внести данные"},"ООО \"ИркутскМедсервис\"","ЭЗК-2018-03-06-12",null,"уп.",6,{"$f":"SUMIFS(Главная_tb[Приход],Главная_tb[Наименование],Договоры_tb[[#This Row],[Наименование]],Главная_tb[Выбор поставщика],Договоры_tb[[#This Row],[Поставщик]],Главная_tb[Операция],\"Получено от поставщика\")","v":0},{"$f":"Договоры_tb[[#This Row],[Объем закупки]]-Договоры_tb[[#This Row],[Получено от поставщика]]","v":6}]
[null,null,null,null,null,null,null,null,null,null,"Микропробирка (200 мкл., антикоагул., 100 шт.)",{"$f":"Договоры_tb[[#This Row],[Поставщик22]]&\" (дог. №\"&Договоры_tb[[#This Row],[Договор]]&\") \"&VLOOKUP(Договоры_tb[[#This Row],[Поставщик22]],Поставщики_tb[[Поставщик]:[Контактные данные]],2,)","v":"ООО \"ИркутскМедсервис\" (дог. №ЭЗК-2018-03-06-12) Внести данные"},"ООО \"ИркутскМедсервис\"","ЭЗК-2018-03-06-12",null,"уп",150,{"$f":"SUMIFS(Главная_tb[Приход],Главная_tb[Наименование],Договоры_tb[[#This Row],[Наименование]],Главная_tb[Выбор поставщика],Договоры_tb[[#This Row],[Поставщик]],Главная_tb[Операция],\"Получено от поставщика\")","v":0},{"$f":"Договоры_tb[[#This Row],[Объем закупки]]-Договоры_tb[[#This Row],[Получено от поставщика]]","v":150}]
[null,null,null,null,null,null,null,null,null,null,"Мультипакет для паровой стерилизации (1000 шт.)",{"$f":"Договоры_tb[[#This Row],[Поставщик22]]&\" (дог. №\"&Договоры_tb[[#This Row],[Договор]]&\") \"&VLOOKUP(Договоры_tb[[#This Row],[Поставщик22]],Поставщики_tb[[Поставщик]:[Контактные данные]],2,)","v":"ООО \"ИркутскМедсервис\" (дог. №ЭЗК-2018-03-06-12) Внести данные"},"ООО \"ИркутскМедсервис\"","ЭЗК-2018-03-06-12",null,"уп.",2,{"$f":"SUMIFS(Главная_tb[Приход],Главная_tb[Наименование],Договоры_tb[[#This Row],[Наименование]],Главная_tb[Выбор поставщика],Договоры_tb[[#This Row],[Поставщик]],Главная_tb[Операция],\"Получено от поставщика\")","v":0},{"$f":"Договоры_tb[[#This Row],[Объем закупки]]-Договоры_tb[[#This Row],[Получено от поставщика]]","v":2}]
[null,null,null,null,null,null,null,null,null,null,"Набор реагентов для исследования кала на гельминты, метод Като (500 опред., 500 шт.)",{"$f":"Договоры_tb[[#This Row],[Поставщик22]]&\" (дог. №\"&Договоры_tb[[#This Row],[Договор]]&\") \"&VLOOKUP(Договоры_tb[[#This Row],[Поставщик22]],Поставщики_tb[[Поставщик]:[Контактные данные]],2,)","v":"ООО \"ИркутскМедсервис\" (дог. №ЭЗК-2018-03-06-12) Внести данные"},"ООО \"ИркутскМедсервис\"","ЭЗК-2018-03-06-12",null,"набор",2,{"$f":"SUMIFS(Главная_tb[Приход],Главная_tb[Наименование],Договоры_tb[[#This Row],[Наименование]],Главная_tb[Выбор поставщика],Договоры_tb[[#This Row],[Поставщик]],Главная_tb[Операция],\"Получено от поставщика\")","v":0},{"$f":"Договоры_tb[[#This Row],[Объем закупки]]-Договоры_tb[[#This Row],[Получено от поставщика]]","v":2}]
[null,null,null,null,null,null,null,null,null,null,"Набор реагентов для клинического анализа кала",{"$f":"Договоры_tb[[#This Row],[Поставщик22]]&\" (дог. №\"&Договоры_tb[[#This Row],[Договор]]&\") \"&VLOOKUP(Договоры_tb[[#This Row],[Поставщик22]],Поставщики_tb[[Поставщик]:[Контактные данные]],2,)","v":"ООО \"ИркутскМедсервис\" (дог. №ЭЗК-2018-03-06-12) Внести данные"},"ООО \"ИркутскМедсервис\"","ЭЗК-2018-03-06-12",null,"набор",2,{"$f":"SUMIFS(Главная_tb[Приход],Главная_tb[Наименование],Договоры_tb[[#This Row],[Наименование]],Главная_tb[Выбор поставщика],Договоры_tb[[#This Row],[Поставщик]],Главная_tb[Операция],\"Получено от поставщика\")","v":0},{"$f":"Договоры_tb[[#This Row],[Объем закупки]]-Договоры_tb[[#This Row],[Получено от поставщика]]","v":2}]
[null,null,null,null,null,null,null,null,null,null,"Палочка стеклянная",{"$f":"Договоры_tb[[#This Row],[Поставщик22]]&\" (дог. №\"&Договоры_tb[[#This Row],[Договор]]&\") \"&VLOOKUP(Договоры_tb[[#This Row],[Поставщик22]],Поставщики_tb[[Поставщик]:[Контактные данные]],2,)","v":"ООО \"ИркутскМедсервис\" (дог. №ЭЗК-2018-03-06-12) Внести данные"},"ООО \"ИркутскМедсервис\"","ЭЗК-2018-03-06-12",null,"шт",100,{"$f":"SUMIFS(Главная_tb[Приход],Главная_tb[Наименование],Договоры_tb[[#This Row],[Наименование]],Главная_tb[Выбор поставщика],Договоры_tb[[#This Row],[Поставщик]],Главная_tb[Операция],\"Получено от поставщика\")","v":0},{"$f":"Договоры_tb[[#This Row],[Объем закупки]]-Договоры_tb[[#This Row],[Получено от поставщика]]","v":100}]
[null,null,null,null,null,null,null,null,null,null,"Предметное стекло (50 шт.)",{"$f":"Договоры_tb[[#This Row],[Поставщик22]]&\" (дог. №\"&Договоры_tb[[#This Row],[Договор]]&\") \"&VLOOKUP(Договоры_tb[[#This Row],[Поставщик22]],Поставщики_tb[[Поставщик]:[Контактные данные]],2,)","v":"ООО \"ИркутскМедсервис\" (дог. №ЭЗК-2018-03-06-12) Внести данные"},"ООО \"ИркутскМедсервис\"","ЭЗК-2018-03-06-12",null,"уп",10,{"$f":"SUMIFS(Главная_tb[Приход],Главная_tb[Наименование],Договоры_tb[[#This Row],[Наименование]],Главная_tb[Выбор поставщика],Договоры_tb[[#This Row],[Поставщик]],Главная_tb[Операция],\"Получено от поставщика\")","v":0},{"$f":"Договоры_tb[[#This Row],[Объем закупки]]-Договоры_tb[[#This Row],[Получено от поставщика]]","v":10}]
[null,null,null,null,null,null,null,null,null,null,"Пробирка стеклянная (10 мл.)",{"$f":"Договоры_tb[[#This Row],[Поставщик22]]&\" (дог. №\"&Договоры_tb[[#This Row],[Договор]]&\") \"&VLOOKUP(Договоры_tb[[#This Row],[Поставщик22]],Поставщики_tb[[Поставщик]:[Контактные данные]],2,)","v":"ООО \"ИркутскМедсервис\" (дог. №ЭЗК-2018-03-06-12) Внести данные"},"ООО \"ИркутскМедсервис\"","ЭЗК-2018-03-06-12",null,"шт",2000,{"$f":"SUMIFS(Главная_tb[Приход],Главная_tb[Наименование],Договоры_tb[[#This Row],[Наименование]],Главная_tb[Выбор поставщика],Договоры_tb[[#This Row],[Поставщик]],Главная_tb[Операция],\"Получено от поставщика\")","v":0},{"$f":"Договоры_tb[[#This Row],[Объем закупки]]-Договоры_tb[[#This Row],[Получено от поставщика]]","v":2000}]
[null,null,null,null,null,null,null,null,null,null,"Промывающий раствор (1 л.)",{"$f":"Договоры_tb[[#This Row],[Поставщик22]]&\" (дог. №\"&Договоры_tb[[#This Row],[Договор]]&\") \"&VLOOKUP(Договоры_tb[[#This Row],[Поставщик22]],Поставщики_tb[[Поставщик]:[Контактные данные]],2,)","v":"ООО \"ИркутскМедсервис\" (дог. №ЭЗК-2018-03-06-12) Внести данные"},"ООО \"ИркутскМедсервис\"","ЭЗК-2018-03-06-12",null,"флакон",5,{"$f":"SUMIFS(Главная_tb[Приход],Главная_tb[Наименование],Договоры_tb[[#This Row],[Наименование]],Главная_tb[Выбор поставщика],Договоры_tb[[#This Row],[Поставщик]],Главная_tb[Операция],\"Получено от поставщика\")","v":0},{"$f":"Договоры_tb[[#This Row],[Объем закупки]]-Договоры_tb[[#This Row],[Получено от поставщика]]","v":5}]
[null,null,null,null,null,null,null,null,null,null,"Реактив Самсона (100 опред.)",{"$f":"Договоры_tb[[#This Row],[Поставщик22]]&\" (дог. №\"&Договоры_tb[[#This Row],[Договор]]&\") \"&VLOOKUP(Договоры_tb[[#This Row],[Поставщик22]],Поставщики_tb[[Поставщик]:[Контактные данные]],2,)","v":"ООО \"ИркутскМедсервис\" (дог. №ЭЗК-2018-03-06-12) Внести данные"},"ООО \"ИркутскМедсервис\"","ЭЗК-2018-03-06-12",null,"набор",2,{"$f":"SUMIFS(Главная_tb[Приход],Главная_tb[Наименование],Договоры_tb[[#This Row],[Наименование]],Главная_tb[Выбор поставщика],Договоры_tb[[#This Row],[Поставщик]],Главная_tb[Операция],\"Получено от поставщика\")","v":0},{"$f":"Договоры_tb[[#This Row],[Объем закупки]]-Договоры_tb[[#This Row],[Получено от поставщика]]","v":2}]
[null,null,null,null,null,null,null,null,null,null,"Смесь для очистки и обезжиривания стекол (1 л.)",{"$f":"Договоры_tb[[#This Row],[Поставщик22]]&\" (дог. №\"&Договоры_tb[[#This Row],[Договор]]&\") \"&VLOOKUP(Договоры_tb[[#This Row],[Поставщик22]],Поставщики_tb[[Поставщик]:[Контактные данные]],2,)","v":"ООО \"ИркутскМедсервис\" (дог. №ЭЗК-2018-03-06-12) Внести данные"},"ООО \"ИркутскМедсервис\"","ЭЗК-2018-03-06-12",null,"флакон",10,{"$f":"SUMIFS(Главная_tb[Приход],Главная_tb[Наименование],Договоры_tb[[#This Row],[Наименование]],Главная_tb[Выбор поставщика],Договоры_tb[[#This Row],[Поставщик]],Главная_tb[Операция],\"Получено от поставщика\")","v":0},{"$f":"Договоры_tb[[#This Row],[Объем закупки]]-Договоры_tb[[#This Row],[Получено от поставщика]]","v":10}]
[null,null,null,null,null,null,null,null,null,null,"Стекло покровное (1000 шт.)",{"$f":"Договоры_tb[[#This Row],[Поставщик22]]&\" (дог. №\"&Договоры_tb[[#This Row],[Договор]]&\") \"&VLOOKUP(Договоры_tb[[#This Row],[Поставщик22]],Поставщики_tb[[Поставщик]:[Контактные данные]],2,)","v":"ООО \"ИркутскМедсервис\" (дог. №ЭЗК-2018-03-06-12) Внести данные"},"ООО \"ИркутскМедсервис\"","ЭЗК-2018-03-06-12",null,"шт",10000,{"$f":"SUMIFS(Главная_tb[Приход],Главная_tb[Наименование],Договоры_tb[[#This Row],[Наименование]],Главная_tb[Выбор поставщика],Договоры_tb[[#This Row],[Поставщик]],Главная_tb[Операция],\"Получено от поставщика\")","v":0},{"$f":"Договоры_tb[[#This Row],[Объем закупки]]-Договоры_tb[[#This Row],[Получено от поставщика]]","v":10000}]
[null,null,null,null,null,null,null,null,null,null,"Термобумага (57х30х12 мм.)",{"$f":"Договоры_tb[[#This Row],[Поставщик22]]&\" (дог. №\"&Договоры_tb[[#This Row],[Договор]]&\") \"&VLOOKUP(Договоры_tb[[#This Row],[Поставщик22]],Поставщики_tb[[Поставщик]:[Контактные данные]],2,)","v":"ООО \"ИркутскМедсервис\" (дог. №ЭЗК-2018-03-06-12) Внести данные"},"ООО \"ИркутскМедсервис\"","ЭЗК-2018-03-06-12",null,"шт",40,{"$f":"SUMIFS(Главная_tb[Приход],Главная_tb[Наименование],Договоры_tb[[#This Row],[Наименование]],Главная_tb[Выбор поставщика],Договоры_tb[[#This Row],[Поставщик]],Главная_tb[Операция],\"Получено от поставщика\")","v":0},{"$f":"Договоры_tb[[#This Row],[Объем закупки]]-Договоры_tb[[#This Row],[Получено от поставщика]]","v":40}]
[null,null,null,null,null,null,null,null,null,null,"Фиксатор-краситель по Май-Грюнвальду (0,2%, фикс. 3000, окраска 2000, 1 л.)",{"$f":"Договоры_tb[[#This Row],[Поставщик22]]&\" (дог. №\"&Договоры_tb[[#This Row],[Договор]]&\") \"&VLOOKUP(Договоры_tb[[#This Row],[Поставщик22]],Поставщики_tb[[Поставщик]:[Контактные данные]],2,)","v":"ООО \"ИркутскМедсервис\" (дог. №ЭЗК-2018-03-06-12) Внести данные"},"ООО \"ИркутскМедсервис\"","ЭЗК-2018-03-06-12",null,"флакон",6,{"$f":"SUMIFS(Главная_tb[Приход],Главная_tb[Наименование],Договоры_tb[[#This Row],[Наименование]],Главная_tb[Выбор поставщика],Договоры_tb[[#This Row],[Поставщик]],Главная_tb[Операция],\"Получено от поставщика\")","v":0},{"$f":"Договоры_tb[[#This Row],[Объем закупки]]-Договоры_tb[[#This Row],[Получено от поставщика]]","v":6}]
[null,null,null,null,null,null,null,null,null,null,"Контрольный материал гематологических анализаторов (2х2,5 норм. ур., 1х2,5 ср. ур., 1х2,5 выс. ур.)",{"$f":"Договоры_tb[[#This Row],[Поставщик22]]&\" (дог. №\"&Договоры_tb[[#This Row],[Договор]]&\") \"&VLOOKUP(Договоры_tb[[#This Row],[Поставщик22]],Поставщики_tb[[Поставщик]:[Контактные данные]],2,)","v":"ООО \"Лабора\" (дог. №ЭЗК-2018-03-06-13) Внести данные"},"ООО \"Лабора\"","ЭЗК-2018-03-06-13",null,"наб",3,{"$f":"SUMIFS(Главная_tb[Приход],Главная_tb[Наименование],Договоры_tb[[#This Row],[Наименование]],Главная_tb[Выбор поставщика],Договоры_tb[[#This Row],[Поставщик]],Главная_tb[Операция],\"Получено от поставщика\")","v":0},{"$f":"Договоры_tb[[#This Row],[Объем закупки]]-Договоры_tb[[#This Row],[Получено от поставщика]]","v":3}]
[null,null,null,null,null,null,null,null,null,null,"Микропробирка (200 мкл., антикоагул., 100 шт.)",{"$f":"Договоры_tb[[#This Row],[Поставщик22]]&\" (дог. №\"&Договоры_tb[[#This Row],[Договор]]&\") \"&VLOOKUP(Договоры_tb[[#This Row],[Поставщик22]],Поставщики_tb[[Поставщик]:[Контактные данные]],2,)","v":"ООО \"Лабора\" (дог. №ЭЗК-2018-03-06-13) Внести данные"},"ООО \"Лабора\"","ЭЗК-2018-03-06-13",null,"упак",135,{"$f":"SUMIFS(Главная_tb[Приход],Главная_tb[Наименование],Договоры_tb[[#This Row],[Наименование]],Главная_tb[Выбор поставщика],Договоры_tb[[#This Row],[Поставщик]],Главная_tb[Операция],\"Получено от поставщика\")","v":0},{"$f":"Договоры_tb[[#This Row],[Объем закупки]]-Договоры_tb[[#This Row],[Получено от поставщика]]","v":135}]
[null,null,null,null,null,null,null,null,null,null,"Очищающий раствор (1 л.)",{"$f":"Договоры_tb[[#This Row],[Поставщик22]]&\" (дог. №\"&Договоры_tb[[#This Row],[Договор]]&\") \"&VLOOKUP(Договоры_tb[[#This Row],[Поставщик22]],Поставщики_tb[[Поставщик]:[Контактные данные]],2,)","v":"ООО \"Лабора\" (дог. №ЭЗК-2018-03-06-13) Внести данные"},"ООО \"Лабора\"","ЭЗК-2018-03-06-13",null,"фл",5,{"$f":"SUMIFS(Главная_tb[Приход],Главная_tb[Наименование],Договоры_tb[[#This Row],[Наименование]],Главная_tb[Выбор поставщика],Договоры_tb[[#This Row],[Поставщик]],Главная_tb[Операция],\"Получено от поставщика\")","v":0},{"$f":"Договоры_tb[[#This Row],[Объем закупки]]-Договоры_tb[[#This Row],[Получено от поставщика]]","v":5}]
[null,null,null,null,null,null,null,null,null,null,"Промывающий раствор (5 л.)",{"$f":"Договоры_tb[[#This Row],[Поставщик22]]&\" (дог. №\"&Договоры_tb[[#This Row],[Договор]]&\") \"&VLOOKUP(Договоры_tb[[#This Row],[Поставщик22]],Поставщики_tb[[Поставщик]:[Контактные данные]],2,)","v":"ООО \"Лабора\" (дог. №ЭЗК-2018-03-06-13) Внести данные"},"ООО \"Лабора\"","ЭЗК-2018-03-06-13",null,"фл",6,{"$f":"SUMIFS(Главная_tb[Приход],Главная_tb[Наименование],Договоры_tb[[#This Row],[Наименование]],Главная_tb[Выбор поставщика],Договоры_tb[[#This Row],[Поставщик]],Главная_tb[Операция],\"Получено от поставщика\")","v":0},{"$f":"Договоры_tb[[#This Row],[Объем закупки]]-Договоры_tb[[#This Row],[Получено от поставщика]]","v":6}]
[null,null,null,null,null,null,null,null,null,null,"Реагент изотонический разбавитель (20 л.)",{"$f":"Договоры_tb[[#This Row],[Поставщик22]]&\" (дог. №\"&Договоры_tb[[#This Row],[Договор]]&\") \"&VLOOKUP(Договоры_tb[[#This Row],[Поставщик22]],Поставщики_tb[[Поставщик]:[Контактные данные]],2,)","v":"ООО \"Лабора\" (дог. №ЭЗК-2018-03-06-13) Внести данные"},"ООО \"Лабора\"","ЭЗК-2018-03-06-13",null,"уп.",33,{"$f":"SUMIFS(Главная_tb[Приход],Главная_tb[Наименование],Договоры_tb[[#This Row],[Наименование]],Главная_tb[Выбор поставщика],Договоры_tb[[#This Row],[Поставщик]],Главная_tb[Операция],\"Получено от поставщика\")","v":0},{"$f":"Договоры_tb[[#This Row],[Объем закупки]]-Договоры_tb[[#This Row],[Получено от поставщика]]","v":33}]
[null,null,null,null,null,null,null,null,null,null,"Реагент лизирующий раствор (1 л.)",{"$f":"Договоры_tb[[#This Row],[Поставщик22]]&\" (дог. №\"&Договоры_tb[[#This Row],[Договор]]&\") \"&VLOOKUP(Договоры_tb[[#This Row],[Поставщик22]],Поставщики_tb[[Поставщик]:[Контактные данные]],2,)","v":"ООО \"Лабора\" (дог. №ЭЗК-2018-03-06-13) Внести данные"},"ООО \"Лабора\"","ЭЗК-2018-03-06-13",null,"фл",15,{"$f":"SUMIFS(Главная_tb[Приход],Главная_tb[Наименование],Договоры_tb[[#This Row],[Наименование]],Главная_tb[Выбор поставщика],Договоры_tb[[#This Row],[Поставщик]],Главная_tb[Операция],\"Получено от поставщика\")","v":0},{"$f":"Договоры_tb[[#This Row],[Объем закупки]]-Договоры_tb[[#This Row],[Получено от поставщика]]","v":15}]
[null,null,null,null,null,null,null,null,null,null,"Антиген кардиолипиновый",{"$f":"Договоры_tb[[#This Row],[Поставщик22]]&\" (дог. №\"&Договоры_tb[[#This Row],[Договор]]&\") \"&VLOOKUP(Договоры_tb[[#This Row],[Поставщик22]],Поставщики_tb[[Поставщик]:[Контактные данные]],2,)","v":"ООО \"Сибмедком\" (дог. №ЭЗК-2018-03-06-14) Внести данные"},"ООО \"Сибмедком\"","ЭЗК-2018-03-06-14",null,"набор",6,{"$f":"SUMIFS(Главная_tb[Приход],Главная_tb[Наименование],Договоры_tb[[#This Row],[Наименование]],Главная_tb[Выбор поставщика],Договоры_tb[[#This Row],[Поставщик]],Главная_tb[Операция],\"Получено от поставщика\")","v":0},{"$f":"Договоры_tb[[#This Row],[Объем закупки]]-Договоры_tb[[#This Row],[Получено от поставщика]]","v":6}]
[null,null,null,null,null,null,null,null,null,null,"Калибратор (10 ммоль/л, 4 шт.)",{"$f":"Договоры_tb[[#This Row],[Поставщик22]]&\" (дог. №\"&Договоры_tb[[#This Row],[Договор]]&\") \"&VLOOKUP(Договоры_tb[[#This Row],[Поставщик22]],Поставщики_tb[[Поставщик]:[Контактные данные]],2,)","v":"ООО \"Сибмедком\" (дог. №ЭЗК-2018-03-06-14) Внести данные"},"ООО \"Сибмедком\"","ЭЗК-2018-03-06-14",null,"уп.",2,{"$f":"SUMIFS(Главная_tb[Приход],Главная_tb[Наименование],Договоры_tb[[#This Row],[Наименование]],Главная_tb[Выбор поставщика],Договоры_tb[[#This Row],[Поставщик]],Главная_tb[Операция],\"Получено от поставщика\")","v":0},{"$f":"Договоры_tb[[#This Row],[Объем закупки]]-Договоры_tb[[#This Row],[Получено от поставщика]]","v":2}]
[null,null,null,null,null,null,null,null,null,null,"Контрольная сыворотка на РМП (отрицательный) (1 мл., 10 шт.)",{"$f":"Договоры_tb[[#This Row],[Поставщик22]]&\" (дог. №\"&Договоры_tb[[#This Row],[Договор]]&\") \"&VLOOKUP(Договоры_tb[[#This Row],[Поставщик22]],Поставщики_tb[[Поставщик]:[Контактные данные]],2,)","v":"ООО \"Сибмедком\" (дог. №ЭЗК-2018-03-06-14) Внести данные"},"ООО \"Сибмедком\"","ЭЗК-2018-03-06-14",null,"шт",1,{"$f":"SUMIFS(Главная_tb[Приход],Главная_tb[Наименование],Договоры_tb[[#This Row],[Наименование]],Главная_tb[Выбор поставщика],Договоры_tb[[#This Row],[Поставщик]],Главная_tb[Операция],\"Получено от поставщика\")","v":0},{"$f":"Договоры_tb[[#This Row],[Объем закупки]]-Договоры_tb[[#This Row],[Получено от поставщика]]","v":1}]
[null,null,null,null,null,null,null,null,null,null,"Контрольная сыворотка на РМП (положительная) (1 мл., 10 шт.)",{"$f":"Договоры_tb[[#This Row],[Поставщик22]]&\" (дог. №\"&Договоры_tb[[#This Row],[Договор]]&\") \"&VLOOKUP(Договоры_tb[[#This Row],[Поставщик22]],Поставщики_tb[[Поставщик]:[Контактные данные]],2,)","v":"ООО \"Сибмедком\" (дог. №ЭЗК-2018-03-06-14) Внести данные"},"ООО \"Сибмедком\"","ЭЗК-2018-03-06-14",null,"шт",1,{"$f":"SUMIFS(Главная_tb[Приход],Главная_tb[Наименование],Договоры_tb[[#This Row],[Наименование]],Главная_tb[Выбор поставщика],Договоры_tb[[#This Row],[Поставщик]],Главная_tb[Операция],\"Получено от поставщика\")","v":0},{"$f":"Договоры_tb[[#This Row],[Объем закупки]]-Договоры_tb[[#This Row],[Получено от поставщика]]","v":1}]
[null,null,null,null,null,null,null,null,null,null,"Контрольная сыворотка на РМП (слабоположительный) (1 мл., 10 шт.)",{"$f":"Договоры_tb[[#This Row],[Поставщик22]]&\" (дог. №\"&Договоры_tb[[#This Row],[Договор]]&\") \"&VLOOKUP(Договоры_tb[[#This Row],[Поставщик22]],Поставщики_tb[[Поставщик]:[Контактные данные]],2,)","v":"ООО \"Сибмедком\" (дог. №ЭЗК-2018-03-06-14) Внести данные"},"ООО \"Сибмедком\"","ЭЗК-2018-03-06-14",null,"шт",1,{"$f":"SUMIFS(Главная_tb[Приход],Главная_tb[Наименование],Договоры_tb[[#This Row],[Наименование]],Главная_tb[Выбор поставщика],Договоры_tb[[#This Row],[Поставщик]],Главная_tb[Операция],\"Получено от поставщика\")","v":0},{"$f":"Договоры_tb[[#This Row],[Объем закупки]]-Договоры_tb[[#This Row],[Получено от поставщика]]","v":1}]
[null,null,null,null,null,null,null,null,null,null,"Мембрана глюкозооксидазная (5 шт.)",{"$f":"Договоры_tb[[#This Row],[Поставщик22]]&\" (дог. №\"&Договоры_tb[[#This Row],[Договор]]&\") \"&VLOOKUP(Договоры_tb[[#This Row],[Поставщик22]],Поставщики_tb[[Поставщик]:[Контактные данные]],2,)","v":"ООО \"Сибмедком\" (дог. №ЭЗК-2018-03-06-14) Внести данные"},"ООО \"Сибмедком\"","ЭЗК-2018-03-06-14",null,"уп.",1,{"$f":"SUMIFS(Главная_tb[Приход],Главная_tb[Наименование],Договоры_tb[[#This Row],[Наименование]],Главная_tb[Выбор поставщика],Договоры_tb[[#This Row],[Поставщик]],Главная_tb[Операция],\"Получено от поставщика\")","v":0},{"$f":"Договоры_tb[[#This Row],[Объем закупки]]-Договоры_tb[[#This Row],[Получено от поставщика]]","v":1}]
[null,null,null,null,null,null,null,null,null,null,"Микропробирки типа Эппендорф (1,5 мл., 500 шт.)",{"$f":"Договоры_tb[[#This Row],[Поставщик22]]&\" (дог. №\"&Договоры_tb[[#This Row],[Договор]]&\") \"&VLOOKUP(Договоры_tb[[#This Row],[Поставщик22]],Поставщики_tb[[Поставщик]:[Контактные данные]],2,)","v":"ООО \"Сибмедком\" (дог. №ЭЗК-2018-03-06-14) Внести данные"},"ООО \"Сибмедком\"","ЭЗК-2018-03-06-14",null,"уп.",6,{"$f":"SUMIFS(Главная_tb[Приход],Главная_tb[Наименование],Договоры_tb[[#This Row],[Наименование]],Главная_tb[Выбор поставщика],Договоры_tb[[#This Row],[Поставщик]],Главная_tb[Операция],\"Получено от поставщика\")","v":0},{"$f":"Договоры_tb[[#This Row],[Объем закупки]]-Договоры_tb[[#This Row],[Получено от поставщика]]","v":6}]
[null,null,null,null,null,null,null,null,null,null,"Набор реагентов - контрольный материал (30 мл.)",{"$f":"Договоры_tb[[#This Row],[Поставщик22]]&\" (дог. №\"&Договоры_tb[[#This Row],[Договор]]&\") \"&VLOOKUP(Договоры_tb[[#This Row],[Поставщик22]],Поставщики_tb[[Поставщик]:[Контактные данные]],2,)","v":"ООО \"Сибмедком\" (дог. №ЭЗК-2018-03-06-14) Внести данные"},"ООО \"Сибмедком\"","ЭЗК-2018-03-06-14",null,"набор",1,{"$f":"SUMIFS(Главная_tb[Приход],Главная_tb[Наименование],Договоры_tb[[#This Row],[Наименование]],Главная_tb[Выбор поставщика],Договоры_tb[[#This Row],[Поставщик]],Главная_tb[Операция],\"Получено от поставщика\")","v":0},{"$f":"Договоры_tb[[#This Row],[Объем закупки]]-Договоры_tb[[#This Row],[Получено от поставщика]]","v":1}]
[null,null,null,null,null,null,null,null,null,null,"Набор реагентов для определения C-реактивного белка (100 опред.)",{"$f":"Договоры_tb[[#This Row],[Поставщик22]]&\" (дог. №\"&Договоры_tb[[#This Row],[Договор]]&\") \"&VLOOKUP(Договоры_tb[[#This Row],[Поставщик22]],Поставщики_tb[[Поставщик]:[Контактные данные]],2,)","v":"ООО \"Сибмедком\" (дог. №ЭЗК-2018-03-06-14) Внести данные"},"ООО \"Сибмедком\"","ЭЗК-2018-03-06-14",null,"набор",6,{"$f":"SUMIFS(Главная_tb[Приход],Главная_tb[Наименование],Договоры_tb[[#This Row],[Наименование]],Главная_tb[Выбор поставщика],Договоры_tb[[#This Row],[Поставщик]],Главная_tb[Операция],\"Получено от поставщика\")","v":0},{"$f":"Договоры_tb[[#This Row],[Объем закупки]]-Договоры_tb[[#This Row],[Получено от поставщика]]","v":6}]
[null,null,null,null,null,null,null,null,null,null,"Набор реагентов для определения HDL холестерина (2х50 мл.)",{"$f":"Договоры_tb[[#This Row],[Поставщик22]]&\" (дог. №\"&Договоры_tb[[#This Row],[Договор]]&\") \"&VLOOKUP(Договоры_tb[[#This Row],[Поставщик22]],Поставщики_tb[[Поставщик]:[Контактные данные]],2,)","v":"ООО \"Сибмедком\" (дог. №ЭЗК-2018-03-06-14) Внести данные"},"ООО \"Сибмедком\"","ЭЗК-2018-03-06-14",null,"набор",3,{"$f":"SUMIFS(Главная_tb[Приход],Главная_tb[Наименование],Договоры_tb[[#This Row],[Наименование]],Главная_tb[Выбор поставщика],Договоры_tb[[#This Row],[Поставщик]],Главная_tb[Операция],\"Получено от поставщика\")","v":0},{"$f":"Договоры_tb[[#This Row],[Объем закупки]]-Договоры_tb[[#This Row],[Получено от поставщика]]","v":3}]
[null,null,null,null,null,null,null,null,null,null,"Набор реагентов для определения аланинаминотрансферазы (5х48 мл., 1х60 мл.)",{"$f":"Договоры_tb[[#This Row],[Поставщик22]]&\" (дог. №\"&Договоры_tb[[#This Row],[Договор]]&\") \"&VLOOKUP(Договоры_tb[[#This Row],[Поставщик22]],Поставщики_tb[[Поставщик]:[Контактные данные]],2,)","v":"ООО \"Сибмедком\" (дог. №ЭЗК-2018-03-06-14) Внести данные"},"ООО \"Сибмедком\"","ЭЗК-2018-03-06-14",null,"набор",6,{"$f":"SUMIFS(Главная_tb[Приход],Главная_tb[Наименование],Договоры_tb[[#This Row],[Наименование]],Главная_tb[Выбор поставщика],Договоры_tb[[#This Row],[Поставщик]],Главная_tb[Операция],\"Получено от поставщика\")","v":0},{"$f":"Договоры_tb[[#This Row],[Объем закупки]]-Договоры_tb[[#This Row],[Получено от поставщика]]","v":6}]
[null,null,null,null,null,null,null,null,null,null,"Набор реагентов для определения альбумина (1х250 мл., 1х5 мл.)",{"$f":"Договоры_tb[[#This Row],[Поставщик22]]&\" (дог. №\"&Договоры_tb[[#This Row],[Договор]]&\") \"&VLOOKUP(Договоры_tb[[#This Row],[Поставщик22]],Поставщики_tb[[Поставщик]:[Контактные данные]],2,)","v":"ООО \"Сибмедком\" (дог. №ЭЗК-2018-03-06-14) Внести данные"},"ООО \"Сибмедком\"","ЭЗК-2018-03-06-14",null,"набор",1,{"$f":"SUMIFS(Главная_tb[Приход],Главная_tb[Наименование],Договоры_tb[[#This Row],[Наименование]],Главная_tb[Выбор поставщика],Договоры_tb[[#This Row],[Поставщик]],Главная_tb[Операция],\"Получено от поставщика\")","v":0},{"$f":"Договоры_tb[[#This Row],[Объем закупки]]-Договоры_tb[[#This Row],[Получено от поставщика]]","v":1}]
[null,null,null,null,null,null,null,null,null,null,"Набор реагентов для определения альфа-амилазы (120 мл.)",{"$f":"Договоры_tb[[#This Row],[Поставщик22]]&\" (дог. №\"&Договоры_tb[[#This Row],[Договор]]&\") \"&VLOOKUP(Договоры_tb[[#This Row],[Поставщик22]],Поставщики_tb[[Поставщик]:[Контактные данные]],2,)","v":"ООО \"Сибмедком\" (дог. №ЭЗК-2018-03-06-14) Внести данные"},"ООО \"Сибмедком\"","ЭЗК-2018-03-06-14",null,"набор",1,{"$f":"SUMIFS(Главная_tb[Приход],Главная_tb[Наименование],Договоры_tb[[#This Row],[Наименование]],Главная_tb[Выбор поставщика],Договоры_tb[[#This Row],[Поставщик]],Главная_tb[Операция],\"Получено от поставщика\")","v":0},{"$f":"Договоры_tb[[#This Row],[Объем закупки]]-Договоры_tb[[#This Row],[Получено от поставщика]]","v":1}]
[null,null,null,null,null,null,null,null,null,null,"Набор реагентов для определения аспартатаминотрансферазы (5х48 мл., 1х60 мл.)",{"$f":"Договоры_tb[[#This Row],[Поставщик22]]&\" (дог. №\"&Договоры_tb[[#This Row],[Договор]]&\") \"&VLOOKUP(Договоры_tb[[#This Row],[Поставщик22]],Поставщики_tb[[Поставщик]:[Контактные данные]],2,)","v":"ООО \"Сибмедком\" (дог. №ЭЗК-2018-03-06-14) Внести данные"},"ООО \"Сибмедком\"","ЭЗК-2018-03-06-14",null,"набор",6,{"$f":"SUMIFS(Главная_tb[Приход],Главная_tb[Наименование],Договоры_tb[[#This Row],[Наименование]],Главная_tb[Выбор поставщика],Договоры_tb[[#This Row],[Поставщик]],Главная_tb[Операция],\"Получено от поставщика\")","v":0},{"$f":"Договоры_tb[[#This Row],[Объем закупки]]-Договоры_tb[[#This Row],[Получено от поставщика]]","v":6}]
[null,null,null,null,null,null,null,null,null,null,"Набор реагентов для определения железа (2х100 мл, 1х5 мл.)",{"$f":"Договоры_tb[[#This Row],[Поставщик22]]&\" (дог. №\"&Договоры_tb[[#This Row],[Договор]]&\") \"&VLOOKUP(Договоры_tb[[#This Row],[Поставщик22]],Поставщики_tb[[Поставщик]:[Контактные данные]],2,)","v":"ООО \"Сибмедком\" (дог. №ЭЗК-2018-03-06-14) Внести данные"},"ООО \"Сибмедком\"","ЭЗК-2018-03-06-14",null,"набор",2,{"$f":"SUMIFS(Главная_tb[Приход],Главная_tb[Наименование],Договоры_tb[[#This Row],[Наименование]],Главная_tb[Выбор поставщика],Договоры_tb[[#This Row],[Поставщик]],Главная_tb[Операция],\"Получено от поставщика\")","v":0},{"$f":"Договоры_tb[[#This Row],[Объем закупки]]-Договоры_tb[[#This Row],[Получено от поставщика]]","v":2}]
[null,null,null,null,null,null,null,null,null,null,"Набор реагентов для определения калия (2х50 мл.)",{"$f":"Договоры_tb[[#This Row],[Поставщик22]]&\" (дог. №\"&Договоры_tb[[#This Row],[Договор]]&\") \"&VLOOKUP(Договоры_tb[[#This Row],[Поставщик22]],Поставщики_tb[[Поставщик]:[Контактные данные]],2,)","v":"ООО \"Сибмедком\" (дог. №ЭЗК-2018-03-06-14) Внести данные"},"ООО \"Сибмедком\"","ЭЗК-2018-03-06-14",null,"набор",2,{"$f":"SUMIFS(Главная_tb[Приход],Главная_tb[Наименование],Договоры_tb[[#This Row],[Наименование]],Главная_tb[Выбор поставщика],Договоры_tb[[#This Row],[Поставщик]],Главная_tb[Операция],\"Получено от поставщика\")","v":0},{"$f":"Договоры_tb[[#This Row],[Объем закупки]]-Договоры_tb[[#This Row],[Получено от поставщика]]","v":2}]
[null,null,null,null,null,null,null,null,null,null,"Набор реагентов для определения кальция (2х50 мл.)",{"$f":"Договоры_tb[[#This Row],[Поставщик22]]&\" (дог. №\"&Договоры_tb[[#This Row],[Договор]]&\") \"&VLOOKUP(Договоры_tb[[#This Row],[Поставщик22]],Поставщики_tb[[Поставщик]:[Контактные данные]],2,)","v":"ООО \"Сибмедком\" (дог. №ЭЗК-2018-03-06-14) Внести данные"},"ООО \"Сибмедком\"","ЭЗК-2018-03-06-14",null,"набор",2,{"$f":"SUMIFS(Главная_tb[Приход],Главная_tb[Наименование],Договоры_tb[[#This Row],[Наименование]],Главная_tb[Выбор поставщика],Договоры_tb[[#This Row],[Поставщик]],Главная_tb[Операция],\"Получено от поставщика\")","v":0},{"$f":"Договоры_tb[[#This Row],[Объем закупки]]-Договоры_tb[[#This Row],[Получено от поставщика]]","v":2}]
[null,null,null,null,null,null,null,null,null,null,"Набор реагентов для определения креатинина (100 мл.)",{"$f":"Договоры_tb[[#This Row],[Поставщик22]]&\" (дог. №\"&Договоры_tb[[#This Row],[Договор]]&\") \"&VLOOKUP(Договоры_tb[[#This Row],[Поставщик22]],Поставщики_tb[[Поставщик]:[Контактные данные]],2,)","v":"ООО \"Сибмедком\" (дог. №ЭЗК-2018-03-06-14) Внести данные"},"ООО \"Сибмедком\"","ЭЗК-2018-03-06-14",null,"набор",2,{"$f":"SUMIFS(Главная_tb[Приход],Главная_tb[Наименование],Договоры_tb[[#This Row],[Наименование]],Главная_tb[Выбор поставщика],Договоры_tb[[#This Row],[Поставщик]],Главная_tb[Операция],\"Получено от поставщика\")","v":0},{"$f":"Договоры_tb[[#This Row],[Объем закупки]]-Договоры_tb[[#This Row],[Получено от поставщика]]","v":2}]
[null,null,null,null,null,null,null,null,null,null,"Набор реагентов для определения магния (50 мл.)",{"$f":"Договоры_tb[[#This Row],[Поставщик22]]&\" (дог. №\"&Договоры_tb[[#This Row],[Договор]]&\") \"&VLOOKUP(Договоры_tb[[#This Row],[Поставщик22]],Поставщики_tb[[Поставщик]:[Контактные данные]],2,)","v":"ООО \"Сибмедком\" (дог. №ЭЗК-2018-03-06-14) Внести данные"},"ООО \"Сибмедком\"","ЭЗК-2018-03-06-14",null,"набор",2,{"$f":"SUMIFS(Главная_tb[Приход],Главная_tb[Наименование],Договоры_tb[[#This Row],[Наименование]],Главная_tb[Выбор поставщика],Договоры_tb[[#This Row],[Поставщик]],Главная_tb[Операция],\"Получено от поставщика\")","v":0},{"$f":"Договоры_tb[[#This Row],[Объем закупки]]-Договоры_tb[[#This Row],[Получено от поставщика]]","v":2}]
[null,null,null,null,null,null,null,null,null,null,"Набор реагентов для определения мочевины (50 мл.)",{"$f":"Договоры_tb[[#This Row],[Поставщик22]]&\" (дог. №\"&Договоры_tb[[#This Row],[Договор]]&\") \"&VLOOKUP(Договоры_tb[[#This Row],[Поставщик22]],Поставщики_tb[[Поставщик]:[Контактные данные]],2,)","v":"ООО \"Сибмедком\" (дог. №ЭЗК-2018-03-06-14) Внести данные"},"ООО \"Сибмедком\"","ЭЗК-2018-03-06-14",null,"набор",4,{"$f":"SUMIFS(Главная_tb[Приход],Главная_tb[Наименование],Договоры_tb[[#This Row],[Наименование]],Главная_tb[Выбор поставщика],Договоры_tb[[#This Row],[Поставщик]],Главная_tb[Операция],\"Получено от поставщика\")","v":0},{"$f":"Договоры_tb[[#This Row],[Объем закупки]]-Договоры_tb[[#This Row],[Получено от поставщика]]","v":4}]
[null,null,null,null,null,null,null,null,null,null,"Набор реагентов для определения общего белка (1х1 л., 1х5 мл.)",{"$f":"Договоры_tb[[#This Row],[Поставщик22]]&\" (дог. №\"&Договоры_tb[[#This Row],[Договор]]&\") \"&VLOOKUP(Договоры_tb[[#This Row],[Поставщик22]],Поставщики_tb[[Поставщик]:[Контактные данные]],2,)","v":"ООО \"Сибмедком\" (дог. №ЭЗК-2018-03-06-14) Внести данные"},"ООО \"Сибмедком\"","ЭЗК-2018-03-06-14",null,null,1,{"$f":"SUMIFS(Главная_tb[Приход],Главная_tb[Наименование],Договоры_tb[[#This Row],[Наименование]],Главная_tb[Выбор поставщика],Договоры_tb[[#This Row],[Поставщик]],Главная_tb[Операция],\"Получено от поставщика\")","v":0},{"$f":"Договоры_tb[[#This Row],[Объем закупки]]-Договоры_tb[[#This Row],[Получено от поставщика]]","v":1}]
[null,null,null,null,null,null,null,null,null,null,"Набор реагентов для определения общего и прямого билирубина (508 мл.)",{"$f":"Договоры_tb[[#This Row],[Поставщик22]]&\" (дог. №\"&Договоры_tb[[#This Row],[Договор]]&\") \"&VLOOKUP(Договоры_tb[[#This Row],[Поставщик22]],Поставщики_tb[[Поставщик]:[Контактные данные]],2,)","v":"ООО \"Сибмедком\" (дог. №ЭЗК-2018-03-06-14) Внести данные"},"ООО \"Сибмедком\"","ЭЗК-2018-03-06-14",null,"набор",3,{"$f":"SUMIFS(Главная_tb[Приход],Главная_tb[Наименование],Договоры_tb[[#This Row],[Наименование]],Главная_tb[Выбор поставщика],Договоры_tb[[#This Row],[Поставщик]],Главная_tb[Операция],\"Получено от поставщика\")","v":0},{"$f":"Договоры_tb[[#This Row],[Объем закупки]]-Договоры_tb[[#This Row],[Получено от поставщика]]","v":3}]
[null,null,null,null,null,null,null,null,null,null,"Набор реагентов для определения общего холестерина (2х100 мл.)",{"$f":"Договоры_tb[[#This Row],[Поставщик22]]&\" (дог. №\"&Договоры_tb[[#This Row],[Договор]]&\") \"&VLOOKUP(Договоры_tb[[#This Row],[Поставщик22]],Поставщики_tb[[Поставщик]:[Контактные данные]],2,)","v":"ООО \"Сибмедком\" (дог. №ЭЗК-2018-03-06-14) Внести данные"},"ООО \"Сибмедком\"","ЭЗК-2018-03-06-14",null,"набор",6,{"$f":"SUMIFS(Главная_tb[Приход],Главная_tb[Наименование],Договоры_tb[[#This Row],[Наименование]],Главная_tb[Выбор поставщика],Договоры_tb[[#This Row],[Поставщик]],Главная_tb[Операция],\"Получено от поставщика\")","v":0},{"$f":"Договоры_tb[[#This Row],[Объем закупки]]-Договоры_tb[[#This Row],[Получено от поставщика]]","v":6}]
[null,null,null,null,null,null,null,null,null,null,"Набор реагентов для определения содержания антистрептолизина О (12,5 мл., 100 опред.)",{"$f":"Договоры_tb[[#This Row],[Поставщик22]]&\" (дог. №\"&Договоры_tb[[#This Row],[Договор]]&\") \"&VLOOKUP(Договоры_tb[[#This Row],[Поставщик22]],Поставщики_tb[[Поставщик]:[Контактные данные]],2,)","v":"ООО \"Сибмедком\" (дог. №ЭЗК-2018-03-06-14) Внести данные"},"ООО \"Сибмедком\"","ЭЗК-2018-03-06-14",null,"набор",6,{"$f":"SUMIFS(Главная_tb[Приход],Главная_tb[Наименование],Договоры_tb[[#This Row],[Наименование]],Главная_tb[Выбор поставщика],Договоры_tb[[#This Row],[Поставщик]],Главная_tb[Операция],\"Получено от поставщика\")","v":0},{"$f":"Договоры_tb[[#This Row],[Объем закупки]]-Договоры_tb[[#This Row],[Получено от поставщика]]","v":6}]
[null,null,null,null,null,null,null,null,null,null,"Набор реагентов для определения содержания ревматоидного фактора (100 опред.)",{"$f":"Договоры_tb[[#This Row],[Поставщик22]]&\" (дог. №\"&Договоры_tb[[#This Row],[Договор]]&\") \"&VLOOKUP(Договоры_tb[[#This Row],[Поставщик22]],Поставщики_tb[[Поставщик]:[Контактные данные]],2,)","v":"ООО \"Сибмедком\" (дог. №ЭЗК-2018-03-06-14) Внести данные"},"ООО \"Сибмедком\"","ЭЗК-2018-03-06-14",null,"набор",6,{"$f":"SUMIFS(Главная_tb[Приход],Главная_tb[Наименование],Договоры_tb[[#This Row],[Наименование]],Главная_tb[Выбор поставщика],Договоры_tb[[#This Row],[Поставщик]],Главная_tb[Операция],\"Получено от поставщика\")","v":0},{"$f":"Договоры_tb[[#This Row],[Объем закупки]]-Договоры_tb[[#This Row],[Получено от поставщика]]","v":6}]
[null,null,null,null,null,null,null,null,null,null,"Набор реагентов для определения триглицеридов (2х50 мл.)",{"$f":"Договоры_tb[[#This Row],[Поставщик22]]&\" (дог. №\"&Договоры_tb[[#This Row],[Договор]]&\") \"&VLOOKUP(Договоры_tb[[#This Row],[Поставщик22]],Поставщики_tb[[Поставщик]:[Контактные данные]],2,)","v":"ООО \"Сибмедком\" (дог. №ЭЗК-2018-03-06-14) Внести данные"},"ООО \"Сибмедком\"","ЭЗК-2018-03-06-14",null,"набор",3,{"$f":"SUMIFS(Главная_tb[Приход],Главная_tb[Наименование],Договоры_tb[[#This Row],[Наименование]],Главная_tb[Выбор поставщика],Договоры_tb[[#This Row],[Поставщик]],Главная_tb[Операция],\"Получено от поставщика\")","v":0},{"$f":"Договоры_tb[[#This Row],[Объем закупки]]-Договоры_tb[[#This Row],[Получено от поставщика]]","v":3}]
[null,null,null,null,null,null,null,null,null,null,"Набор реагентов для определения фосфора (2х100 мл.)",{"$f":"Договоры_tb[[#This Row],[Поставщик22]]&\" (дог. №\"&Договоры_tb[[#This Row],[Договор]]&\") \"&VLOOKUP(Договоры_tb[[#This Row],[Поставщик22]],Поставщики_tb[[Поставщик]:[Контактные данные]],2,)","v":"ООО \"Сибмедком\" (дог. №ЭЗК-2018-03-06-14) Внести данные"},"ООО \"Сибмедком\"","ЭЗК-2018-03-06-14",null,"набор",1,{"$f":"SUMIFS(Главная_tb[Приход],Главная_tb[Наименование],Договоры_tb[[#This Row],[Наименование]],Главная_tb[Выбор поставщика],Договоры_tb[[#This Row],[Поставщик]],Главная_tb[Операция],\"Получено от поставщика\")","v":0},{"$f":"Договоры_tb[[#This Row],[Объем закупки]]-Договоры_tb[[#This Row],[Получено от поставщика]]","v":1}]
[null,null,null,null,null,null,null,null,null,null,"Набор реагентов для определения хлоридов (2х100 мл.)",{"$f":"Договоры_tb[[#This Row],[Поставщик22]]&\" (дог. №\"&Договоры_tb[[#This Row],[Договор]]&\") \"&VLOOKUP(Договоры_tb[[#This Row],[Поставщик22]],Поставщики_tb[[Поставщик]:[Контактные данные]],2,)","v":"ООО \"Сибмедком\" (дог. №ЭЗК-2018-03-06-14) Внести данные"},"ООО \"Сибмедком\"","ЭЗК-2018-03-06-14",null,"набор",1,{"$f":"SUMIFS(Главная_tb[Приход],Главная_tb[Наименование],Договоры_tb[[#This Row],[Наименование]],Главная_tb[Выбор поставщика],Договоры_tb[[#This Row],[Поставщик]],Главная_tb[Операция],\"Получено от поставщика\")","v":0},{"$f":"Договоры_tb[[#This Row],[Объем закупки]]-Договоры_tb[[#This Row],[Получено от поставщика]]","v":1}]
[null,null,null,null,null,null,null,null,null,null,"Набор реагентов для определения щелочной фосфатазы (250 мл.)",{"$f":"Договоры_tb[[#This Row],[Поставщик22]]&\" (дог. №\"&Договоры_tb[[#This Row],[Договор]]&\") \"&VLOOKUP(Договоры_tb[[#This Row],[Поставщик22]],Поставщики_tb[[Поставщик]:[Контактные данные]],2,)","v":"ООО \"Сибмедком\" (дог. №ЭЗК-2018-03-06-14) Внести данные"},"ООО \"Сибмедком\"","ЭЗК-2018-03-06-14",null,"набор",1,{"$f":"SUMIFS(Главная_tb[Приход],Главная_tb[Наименование],Договоры_tb[[#This Row],[Наименование]],Главная_tb[Выбор поставщика],Договоры_tb[[#This Row],[Поставщик]],Главная_tb[Операция],\"Получено от поставщика\")","v":0},{"$f":"Договоры_tb[[#This Row],[Объем закупки]]-Договоры_tb[[#This Row],[Получено от поставщика]]","v":1}]
[null,null,null,null,null,null,null,null,null,null,"Наконечники для дозаторов 100-1000 мкл (480 шт.)",{"$f":"Договоры_tb[[#This Row],[Поставщик22]]&\" (дог. №\"&Договоры_tb[[#This Row],[Договор]]&\") \"&VLOOKUP(Договоры_tb[[#This Row],[Поставщик22]],Поставщики_tb[[Поставщик]:[Контактные данные]],2,)","v":"ООО \"Сибмедком\" (дог. №ЭЗК-2018-03-06-14) Внести данные"},"ООО \"Сибмедком\"","ЭЗК-2018-03-06-14",null,"уп.",6,{"$f":"SUMIFS(Главная_tb[Приход],Главная_tb[Наименование],Договоры_tb[[#This Row],[Наименование]],Главная_tb[Выбор поставщика],Договоры_tb[[#This Row],[Поставщик]],Главная_tb[Операция],\"Получено от поставщика\")","v":0},{"$f":"Договоры_tb[[#This Row],[Объем закупки]]-Договоры_tb[[#This Row],[Получено от поставщика]]","v":6}]
[null,null,null,null,null,null,null,null,null,null,"Наконечники для дозаторов 20-200 мкл (1000 шт.)",{"$f":"Договоры_tb[[#This Row],[Поставщик22]]&\" (дог. №\"&Договоры_tb[[#This Row],[Договор]]&\") \"&VLOOKUP(Договоры_tb[[#This Row],[Поставщик22]],Поставщики_tb[[Поставщик]:[Контактные данные]],2,)","v":"ООО \"Сибмедком\" (дог. №ЭЗК-2018-03-06-14) Внести данные"},"ООО \"Сибмедком\"","ЭЗК-2018-03-06-14",null,"уп.",6,{"$f":"SUMIFS(Главная_tb[Приход],Главная_tb[Наименование],Договоры_tb[[#This Row],[Наименование]],Главная_tb[Выбор поставщика],Договоры_tb[[#This Row],[Поставщик]],Главная_tb[Операция],\"Получено от поставщика\")","v":0},{"$f":"Договоры_tb[[#This Row],[Объем закупки]]-Договоры_tb[[#This Row],[Получено от поставщика]]","v":6}]
[null,null,null,null,null,null,null,null,null,null,"Очищающая жидкость (800 промывок, 4 шт.)",{"$f":"Договоры_tb[[#This Row],[Поставщик22]]&\" (дог. №\"&Договоры_tb[[#This Row],[Договор]]&\") \"&VLOOKUP(Договоры_tb[[#This Row],[Поставщик22]],Поставщики_tb[[Поставщик]:[Контактные данные]],2,)","v":"ООО \"Сибмедком\" (дог. №ЭЗК-2018-03-06-14) Внести данные"},"ООО \"Сибмедком\"","ЭЗК-2018-03-06-14",null,"уп.",2,{"$f":"SUMIFS(Главная_tb[Приход],Главная_tb[Наименование],Договоры_tb[[#This Row],[Наименование]],Главная_tb[Выбор поставщика],Договоры_tb[[#This Row],[Поставщик]],Главная_tb[Операция],\"Получено от поставщика\")","v":0},{"$f":"Договоры_tb[[#This Row],[Объем закупки]]-Договоры_tb[[#This Row],[Получено от поставщика]]","v":2}]
[null,null,null,null,null,null,null,null,null,null,"Реагент буферная смесь (10 гр.)",{"$f":"Договоры_tb[[#This Row],[Поставщик22]]&\" (дог. №\"&Договоры_tb[[#This Row],[Договор]]&\") \"&VLOOKUP(Договоры_tb[[#This Row],[Поставщик22]],Поставщики_tb[[Поставщик]:[Контактные данные]],2,)","v":"ООО \"Сибмедком\" (дог. №ЭЗК-2018-03-06-14) Внести данные"},"ООО \"Сибмедком\"","ЭЗК-2018-03-06-14",null,"уп.",2,{"$f":"SUMIFS(Главная_tb[Приход],Главная_tb[Наименование],Договоры_tb[[#This Row],[Наименование]],Главная_tb[Выбор поставщика],Договоры_tb[[#This Row],[Поставщик]],Главная_tb[Операция],\"Получено от поставщика\")","v":0},{"$f":"Договоры_tb[[#This Row],[Объем закупки]]-Договоры_tb[[#This Row],[Получено от поставщика]]","v":2}]
[null,null,null,null,null,null,null,null,null,null,"Термобумага для биохимического анализатора (шир. 80 мм.)",{"$f":"Договоры_tb[[#This Row],[Поставщик22]]&\" (дог. №\"&Договоры_tb[[#This Row],[Договор]]&\") \"&VLOOKUP(Договоры_tb[[#This Row],[Поставщик22]],Поставщики_tb[[Поставщик]:[Контактные данные]],2,)","v":"ООО \"Сибмедком\" (дог. №ЭЗК-2018-03-06-14) Внести данные"},"ООО \"Сибмедком\"","ЭЗК-2018-03-06-14",null,"рулон",20,{"$f":"SUMIFS(Главная_tb[Приход],Главная_tb[Наименование],Договоры_tb[[#This Row],[Наименование]],Главная_tb[Выбор поставщика],Договоры_tb[[#This Row],[Поставщик]],Главная_tb[Операция],\"Получено от поставщика\")","v":0},{"$f":"Договоры_tb[[#This Row],[Объем закупки]]-Договоры_tb[[#This Row],[Получено от поставщика]]","v":20}]
[null,null,null,null,null,null,null,null,null,null,"Цоликлон Анти-А (флак., 10 мл., 10 шт.)",{"$f":"Договоры_tb[[#This Row],[Поставщик22]]&\" (дог. №\"&Договоры_tb[[#This Row],[Договор]]&\") \"&VLOOKUP(Договоры_tb[[#This Row],[Поставщик22]],Поставщики_tb[[Поставщик]:[Контактные данные]],2,)","v":"ООО \"Сибмедком\" (дог. №ЭЗК-2018-03-06-14) Внести данные"},"ООО \"Сибмедком\"","ЭЗК-2018-03-06-14",null,"уп.",2,{"$f":"SUMIFS(Главная_tb[Приход],Главная_tb[Наименование],Договоры_tb[[#This Row],[Наименование]],Главная_tb[Выбор поставщика],Договоры_tb[[#This Row],[Поставщик]],Главная_tb[Операция],\"Получено от поставщика\")","v":0},{"$f":"Договоры_tb[[#This Row],[Объем закупки]]-Договоры_tb[[#This Row],[Получено от поставщика]]","v":2}]
[null,null,null,null,null,null,null,null,null,null,"Цоликлон Анти-В (флак., 10 мл., 10 шт.)",{"$f":"Договоры_tb[[#This Row],[Поставщик22]]&\" (дог. №\"&Договоры_tb[[#This Row],[Договор]]&\") \"&VLOOKUP(Договоры_tb[[#This Row],[Поставщик22]],Поставщики_tb[[Поставщик]:[Контактные данные]],2,)","v":"ООО \"Сибмедком\" (дог. №ЭЗК-2018-03-06-14) Внести данные"},"ООО \"Сибмедком\"","ЭЗК-2018-03-06-14",null,"уп.",2,{"$f":"SUMIFS(Главная_tb[Приход],Главная_tb[Наименование],Договоры_tb[[#This Row],[Наименование]],Главная_tb[Выбор поставщика],Договоры_tb[[#This Row],[Поставщик]],Главная_tb[Операция],\"Получено от поставщика\")","v":0},{"$f":"Договоры_tb[[#This Row],[Объем закупки]]-Договоры_tb[[#This Row],[Получено от поставщика]]","v":2}]
[null,null,null,null,null,null,null,null,null,null,"Цоликлон Анти-Д (флак., 10 мл., 10 шт.)",{"$f":"Договоры_tb[[#This Row],[Поставщик22]]&\" (дог. №\"&Договоры_tb[[#This Row],[Договор]]&\") \"&VLOOKUP(Договоры_tb[[#This Row],[Поставщик22]],Поставщики_tb[[Поставщик]:[Контактные данные]],2,)","v":"ООО \"Сибмедком\" (дог. №ЭЗК-2018-03-06-14) Внести данные"},"ООО \"Сибмедком\"","ЭЗК-2018-03-06-14",null,"уп.",2,{"$f":"SUMIFS(Главная_tb[Приход],Главная_tb[Наименование],Договоры_tb[[#This Row],[Наименование]],Главная_tb[Выбор поставщика],Договоры_tb[[#This Row],[Поставщик]],Главная_tb[Операция],\"Получено от поставщика\")","v":0},{"$f":"Договоры_tb[[#This Row],[Объем закупки]]-Договоры_tb[[#This Row],[Получено от поставщика]]","v":2}]
[null,null,null,null,null,null,null,null,null,null,"Шприц (1 мл.)",{"$f":"Договоры_tb[[#This Row],[Поставщик22]]&\" (дог. №\"&Договоры_tb[[#This Row],[Договор]]&\") \"&VLOOKUP(Договоры_tb[[#This Row],[Поставщик22]],Поставщики_tb[[Поставщик]:[Контактные данные]],2,)","v":"ООО \"Восток-Интертрейд\" (дог. №ЭЗК-2018-03-12-16) Внести данные"},"ООО \"Восток-Интертрейд\"","ЭЗК-2018-03-12-16",null,"шт.",10000,{"$f":"SUMIFS(Главная_tb[Приход],Главная_tb[Наименование],Договоры_tb[[#This Row],[Наименование]],Главная_tb[Выбор поставщика],Договоры_tb[[#This Row],[Поставщик]],Главная_tb[Операция],\"Получено от поставщика\")","v":0},{"$f":"Договоры_tb[[#This Row],[Объем закупки]]-Договоры_tb[[#This Row],[Получено от поставщика]]","v":10000}]
[null,null,null,null,null,null,null,null,null,null,"Шприц (10 мл.)",{"$f":"Договоры_tb[[#This Row],[Поставщик22]]&\" (дог. №\"&Договоры_tb[[#This Row],[Договор]]&\") \"&VLOOKUP(Договоры_tb[[#This Row],[Поставщик22]],Поставщики_tb[[Поставщик]:[Контактные данные]],2,)","v":"ООО \"Восток-Интертрейд\" (дог. №ЭЗК-2018-03-12-16) Внести данные"},"ООО \"Восток-Интертрейд\"","ЭЗК-2018-03-12-16",null,"шт.",1000,{"$f":"SUMIFS(Главная_tb[Приход],Главная_tb[Наименование],Договоры_tb[[#This Row],[Наименование]],Главная_tb[Выбор поставщика],Договоры_tb[[#This Row],[Поставщик]],Главная_tb[Операция],\"Получено от поставщика\")","v":0},{"$f":"Договоры_tb[[#This Row],[Объем закупки]]-Договоры_tb[[#This Row],[Получено от поставщика]]","v":1000}]
[null,null,null,null,null,null,null,null,null,null,"Шприц (2 мл.)",{"$f":"Договоры_tb[[#This Row],[Поставщик22]]&\" (дог. №\"&Договоры_tb[[#This Row],[Договор]]&\") \"&VLOOKUP(Договоры_tb[[#This Row],[Поставщик22]],Поставщики_tb[[Поставщик]:[Контактные данные]],2,)","v":"ООО \"Восток-Интертрейд\" (дог. №ЭЗК-2018-03-12-16) Внести данные"},"ООО \"Восток-Интертрейд\"","ЭЗК-2018-03-12-16",null,"шт.",6000,{"$f":"SUMIFS(Главная_tb[Приход],Главная_tb[Наименование],Договоры_tb[[#This Row],[Наименование]],Главная_tb[Выбор поставщика],Договоры_tb[[#This Row],[Поставщик]],Главная_tb[Операция],\"Получено от поставщика\")","v":0},{"$f":"Договоры_tb[[#This Row],[Объем закупки]]-Договоры_tb[[#This Row],[Получено от поставщика]]","v":6000}]
[null,null,null,null,null,null,null,null,null,null,"Шприц (5 мл.)",{"$f":"Договоры_tb[[#This Row],[Поставщик22]]&\" (дог. №\"&Договоры_tb[[#This Row],[Договор]]&\") \"&VLOOKUP(Договоры_tb[[#This Row],[Поставщик22]],Поставщики_tb[[Поставщик]:[Контактные данные]],2,)","v":"ООО \"Восток-Интертрейд\" (дог. №ЭЗК-2018-03-12-16) Внести данные"},"ООО \"Восток-Интертрейд\"","ЭЗК-2018-03-12-16",null,"шт.",3000,{"$f":"SUMIFS(Главная_tb[Приход],Главная_tb[Наименование],Договоры_tb[[#This Row],[Наименование]],Главная_tb[Выбор поставщика],Договоры_tb[[#This Row],[Поставщик]],Главная_tb[Операция],\"Получено от поставщика\")","v":0},{"$f":"Договоры_tb[[#This Row],[Объем закупки]]-Договоры_tb[[#This Row],[Получено от поставщика]]","v":3000}]
[null,null,null,null,null,null,null,null,null,null,"Дозатор автоматический BIOHIT (100-1000 мкл.)",{"$f":"Договоры_tb[[#This Row],[Поставщик22]]&\" (дог. №\"&Договоры_tb[[#This Row],[Договор]]&\") \"&VLOOKUP(Договоры_tb[[#This Row],[Поставщик22]],Поставщики_tb[[Поставщик]:[Контактные данные]],2,)","v":"ИП Малков Федор Сергеевич (дог. №ЭЗК-2018-05-15-31) Внести данные"},"ИП Малков Федор Сергеевич","ЭЗК-2018-05-15-31",null,"шт",2,{"$f":"SUMIFS(Главная_tb[Приход],Главная_tb[Наименование],Договоры_tb[[#This Row],[Наименование]],Главная_tb[Выбор поставщика],Договоры_tb[[#This Row],[Поставщик]],Главная_tb[Операция],\"Получено от поставщика\")","v":0},{"$f":"Договоры_tb[[#This Row],[Объем закупки]]-Договоры_tb[[#This Row],[Получено от поставщика]]","v":2}]
[null,null,null,null,null,null,null,null,null,null,"Дозатор автоматический BIOHIT (500-5000 мкл.)",{"$f":"Договоры_tb[[#This Row],[Поставщик22]]&\" (дог. №\"&Договоры_tb[[#This Row],[Договор]]&\") \"&VLOOKUP(Договоры_tb[[#This Row],[Поставщик22]],Поставщики_tb[[Поставщик]:[Контактные данные]],2,)","v":"ИП Малков Федор Сергеевич (дог. №ЭЗК-2018-05-15-31) Внести данные"},"ИП Малков Федор Сергеевич","ЭЗК-2018-05-15-31",null,"шт",1,{"$f":"SUMIFS(Главная_tb[Приход],Главная_tb[Наименование],Договоры_tb[[#This Row],[Наименование]],Главная_tb[Выбор поставщика],Договоры_tb[[#This Row],[Поставщик]],Главная_tb[Операция],\"Получено от поставщика\")","v":0},{"$f":"Договоры_tb[[#This Row],[Объем закупки]]-Договоры_tb[[#This Row],[Получено от поставщика]]","v":1}]
[null,null,null,null,null,null,null,null,null,null,"Игла двусторонняя Vacuette ( 0,8х38 мм (21Gх1 ½), 100 шт.)",{"$f":"Договоры_tb[[#This Row],[Поставщик22]]&\" (дог. №\"&Договоры_tb[[#This Row],[Договор]]&\") \"&VLOOKUP(Договоры_tb[[#This Row],[Поставщик22]],Поставщики_tb[[Поставщик]:[Контактные данные]],2,)","v":"ИП Малков Федор Сергеевич (дог. №ЭЗК-2018-05-15-31) Внести данные"},"ИП Малков Федор Сергеевич","ЭЗК-2018-05-15-31",null,"уп",80,{"$f":"SUMIFS(Главная_tb[Приход],Главная_tb[Наименование],Договоры_tb[[#This Row],[Наименование]],Главная_tb[Выбор поставщика],Договоры_tb[[#This Row],[Поставщик]],Главная_tb[Операция],\"Получено от поставщика\")","v":0},{"$f":"Договоры_tb[[#This Row],[Объем закупки]]-Договоры_tb[[#This Row],[Получено от поставщика]]","v":80}]
[null,null,null,null,null,null,null,null,null,null,"Пробирка вакуумная Cerebrum (4 мл., 50 шт.)",{"$f":"Договоры_tb[[#This Row],[Поставщик22]]&\" (дог. №\"&Договоры_tb[[#This Row],[Договор]]&\") \"&VLOOKUP(Договоры_tb[[#This Row],[Поставщик22]],Поставщики_tb[[Поставщик]:[Контактные данные]],2,)","v":"ИП Малков Федор Сергеевич (дог. №ЭЗК-2018-05-15-31) Внести данные"},"ИП Малков Федор Сергеевич","ЭЗК-2018-05-15-31",null,"шт",11000,{"$f":"SUMIFS(Главная_tb[Приход],Главная_tb[Наименование],Договоры_tb[[#This Row],[Наименование]],Главная_tb[Выбор поставщика],Договоры_tb[[#This Row],[Поставщик]],Главная_tb[Операция],\"Получено от поставщика\")","v":0},{"$f":"Договоры_tb[[#This Row],[Объем закупки]]-Договоры_tb[[#This Row],[Получено от поставщика]]","v":11000}]
[null,null,null,null,null,null,null,null,null,null,"Пробирка вакуумная Cerebrum (5 мл., 50 шт.)",{"$f":"Договоры_tb[[#This Row],[Поставщик22]]&\" (дог. №\"&Договоры_tb[[#This Row],[Договор]]&\") \"&VLOOKUP(Договоры_tb[[#This Row],[Поставщик22]],Поставщики_tb[[Поставщик]:[Контактные данные]],2,)","v":"ИП Малков Федор Сергеевич (дог. №ЭЗК-2018-05-15-31) Внести данные"},"ИП Малков Федор Сергеевич","ЭЗК-2018-05-15-31",null,"шт",100,{"$f":"SUMIFS(Главная_tb[Приход],Главная_tb[Наименование],Договоры_tb[[#This Row],[Наименование]],Главная_tb[Выбор поставщика],Договоры_tb[[#This Row],[Поставщик]],Главная_tb[Операция],\"Получено от поставщика\")","v":0},{"$f":"Договоры_tb[[#This Row],[Объем закупки]]-Договоры_tb[[#This Row],[Получено от поставщика]]","v":100}]
[null,null,null,null,null,null,null,null,null,null,"Пробирка вакуумная Cerebrum (6 мл., 100 шт.)",{"$f":"Договоры_tb[[#This Row],[Поставщик22]]&\" (дог. №\"&Договоры_tb[[#This Row],[Договор]]&\") \"&VLOOKUP(Договоры_tb[[#This Row],[Поставщик22]],Поставщики_tb[[Поставщик]:[Контактные данные]],2,)","v":"ИП Малков Федор Сергеевич (дог. №ЭЗК-2018-05-15-31) Внести данные"},"ИП Малков Федор Сергеевич","ЭЗК-2018-05-15-31",null,"шт",20000,{"$f":"SUMIFS(Главная_tb[Приход],Главная_tb[Наименование],Договоры_tb[[#This Row],[Наименование]],Главная_tb[Выбор поставщика],Договоры_tb[[#This Row],[Поставщик]],Главная_tb[Операция],\"Получено от поставщика\")","v":0},{"$f":"Договоры_tb[[#This Row],[Объем закупки]]-Договоры_tb[[#This Row],[Получено от поставщика]]","v":20000}]
[null,null,null,null,null,null,null,null,null,null,"Пробирка вакуумная Cerebrum (8 мл., 50 шт.)",{"$f":"Договоры_tb[[#This Row],[Поставщик22]]&\" (дог. №\"&Договоры_tb[[#This Row],[Договор]]&\") \"&VLOOKUP(Договоры_tb[[#This Row],[Поставщик22]],Поставщики_tb[[Поставщик]:[Контактные данные]],2,)","v":"ИП Малков Федор Сергеевич (дог. №ЭЗК-2018-05-15-31) Внести данные"},"ИП Малков Федор Сергеевич","ЭЗК-2018-05-15-31",null,"уп",20,{"$f":"SUMIFS(Главная_tb[Приход],Главная_tb[Наименование],Договоры_tb[[#This Row],[Наименование]],Главная_tb[Выбор поставщика],Договоры_tb[[#This Row],[Поставщик]],Главная_tb[Операция],\"Получено от поставщика\")","v":0},{"$f":"Договоры_tb[[#This Row],[Объем закупки]]-Договоры_tb[[#This Row],[Получено от поставщика]]","v":20}]
[null,null,null,null,null,null,null,null,null,null,"Пробирка с ватным тампоном",{"$f":"Договоры_tb[[#This Row],[Поставщик22]]&\" (дог. №\"&Договоры_tb[[#This Row],[Договор]]&\") \"&VLOOKUP(Договоры_tb[[#This Row],[Поставщик22]],Поставщики_tb[[Поставщик]:[Контактные данные]],2,)","v":"ИП Малков Федор Сергеевич (дог. №ЭЗК-2018-05-15-31) Внести данные"},"ИП Малков Федор Сергеевич","ЭЗК-2018-05-15-31",null,"шт",500,{"$f":"SUMIFS(Главная_tb[Приход],Главная_tb[Наименование],Договоры_tb[[#This Row],[Наименование]],Главная_tb[Выбор поставщика],Договоры_tb[[#This Row],[Поставщик]],Главная_tb[Операция],\"Получено от поставщика\")","v":0},{"$f":"Договоры_tb[[#This Row],[Объем закупки]]-Договоры_tb[[#This Row],[Получено от поставщика]]","v":500}]
[null,null,null,null,null,null,null,null,null,null,"Пробирка стеклянная (10 мл.)",{"$f":"Договоры_tb[[#This Row],[Поставщик22]]&\" (дог. №\"&Договоры_tb[[#This Row],[Договор]]&\") \"&VLOOKUP(Договоры_tb[[#This Row],[Поставщик22]],Поставщики_tb[[Поставщик]:[Контактные данные]],2,)","v":"ИП Малков Федор Сергеевич (дог. №ЭЗК-2018-05-15-31) Внести данные"},"ИП Малков Федор Сергеевич","ЭЗК-2018-05-15-31",null,"шт",20,{"$f":"SUMIFS(Главная_tb[Приход],Главная_tb[Наименование],Договоры_tb[[#This Row],[Наименование]],Главная_tb[Выбор поставщика],Договоры_tb[[#This Row],[Поставщик]],Главная_tb[Операция],\"Получено от поставщика\")","v":0},{"$f":"Договоры_tb[[#This Row],[Объем закупки]]-Договоры_tb[[#This Row],[Получено от поставщика]]","v":20}]
[null,null,null,null,null,null,null,null,null,null,"Фильтры обеззоленные «Белая лента» (диам. 5,5 см., 100 шт.)",{"$f":"Договоры_tb[[#This Row],[Поставщик22]]&\" (дог. №\"&Договоры_tb[[#This Row],[Договор]]&\") \"&VLOOKUP(Договоры_tb[[#This Row],[Поставщик22]],Поставщики_tb[[Поставщик]:[Контактные данные]],2,)","v":"ИП Малков Федор Сергеевич (дог. №ЭЗК-2018-05-15-31) Внести данные"},"ИП Малков Федор Сергеевич","ЭЗК-2018-05-15-31",null,"уп",2,{"$f":"SUMIFS(Главная_tb[Приход],Главная_tb[Наименование],Договоры_tb[[#This Row],[Наименование]],Главная_tb[Выбор поставщика],Договоры_tb[[#This Row],[Поставщик]],Главная_tb[Операция],\"Получено от поставщика\")","v":0},{"$f":"Договоры_tb[[#This Row],[Объем закупки]]-Договоры_tb[[#This Row],[Получено от поставщика]]","v":2}]
[null,null,null,null,null,null,null,null,null,null,"Чашка Петри (60 мм. х 15 мм.)",{"$f":"Договоры_tb[[#This Row],[Поставщик22]]&\" (дог. №\"&Договоры_tb[[#This Row],[Договор]]&\") \"&VLOOKUP(Договоры_tb[[#This Row],[Поставщик22]],Поставщики_tb[[Поставщик]:[Контактные данные]],2,)","v":"ИП Малков Федор Сергеевич (дог. №ЭЗК-2018-05-15-31) Внести данные"},"ИП Малков Федор Сергеевич","ЭЗК-2018-05-15-31",null,"шт",26,{"$f":"SUMIFS(Главная_tb[Приход],Главная_tb[Наименование],Договоры_tb[[#This Row],[Наименование]],Главная_tb[Выбор поставщика],Договоры_tb[[#This Row],[Поставщик]],Главная_tb[Операция],\"Получено от поставщика\")","v":0},{"$f":"Договоры_tb[[#This Row],[Объем закупки]]-Договоры_tb[[#This Row],[Получено от поставщика]]","v":26}]